{"text_format":"1","workbook":"xlsx","n_sheets":10,"sheets":["DOCUMENTACION","Hoja1","CODIFICACION DOCUMENTOS","CODIGOS BENEFICIARIOS Y LINEAS","PREGUNTAS","DOCUMENTACION DEFINITIVA","COMBINACIONES","DOCUMENTACIÓN A TRAMITAR","DESPLEGABLES","CABECERAS"],"not_rendered":{"charts":0,"images":1,"macros":1,"external_links":0,"defined_names":29,"comments":0,"pivot_tables":0},"unopened":[],"bounds":{"document_bytes":16777216,"sheet_cells":100000,"rows_first":2000,"rows_last":500,"rows_between":2000,"halvings":0,"cell_chars":16384,"cell_head_chars":4096},"cells_cut":0,"cells_raw":0,"read":"whole","date_system":"1900"}

{"sheet":"DOCUMENTACION","index":0,"n_rows":106,"n_cols":8,"rows_kept":106,"cut":false,"hidden":false,"merged":[[105,3,105,7],[4,3,4,7],[18,3,18,7],[50,3,50,7],[28,4,28,6],[33,4,33,6],[35,4,35,6],[20,4,20,6],[22,4,22,6],[24,4,24,6],[26,4,26,6],[6,5,6,7],[8,5,8,7],[10,5,10,7],[12,5,12,7],[14,4,16,6],[74,4,74,6],[75,4,75,6],[100,4,100,6],[83,4,83,6],[84,4,84,6],[85,4,85,6],[86,4,86,6],[87,4,87,6],[88,4,88,6],[89,4,89,6],[90,4,90,6],[95,4,95,6],[96,4,96,6],[97,4,97,6],[98,4,98,6],[99,4,99,6],[65,4,65,6],[66,4,66,6],[71,4,71,6],[72,4,72,6],[73,4,73,6],[81,4,81,6],[82,4,82,6],[77,4,77,6],[78,4,78,6],[103,4,103,6],[101,4,101,6],[102,4,102,6],[91,4,91,6],[92,4,92,6],[93,4,93,6],[94,4,94,6],[58,4,58,6],[53,4,53,6],[54,4,54,6],[79,4,79,6],[80,4,80,6],[76,4,76,6],[59,4,59,6],[60,4,60,6],[61,4,61,6],[62,4,62,6],[63,4,63,6],[64,4,64,6],[67,4,67,6],[68,4,68,6],[69,4,69,6],[70,4,70,6],[2,3,2,7],[55,4,55,6],[56,4,56,6],[57,4,57,6],[30,4,30,6],[37,4,37,6]]}
[]
[]
[null,null,null,"Herramienta de ayuda para cumplimentar las solicitudes de subvención acogidas al Decreto 145/2021 de 21 de diciembre.\nLos datos obtenidos en el uso de esta herramienta tienen carácter meramente informativo, sin que en ningún caso pueda derivarse efecto jurídico vinculante alguno con esta administración."]
[]
[null,null,null,"PASO 1: Especifique en cada una de las casillas inferiores el grupo, beneficiario, opción y programa de incentivos por el cual solicita subvención."]
[]
[null,null,null,"GRUPO:",null,"Seleccionar"]
[]
[null,null,null,"BENEFICIARIOS:",null,"Seleccionar"]
[]
[null,null,null,"OPCIÓN:",null,"Seleccionar"]
[]
[null,null,null,"PROGRAMA DE INCENTIVOS",null,"Seleccionar"]
[]
[null,null,null,null,{"$f":"IF(DESPLEGABLES!AT94<>100,DESPLEGABLES!AU91,DESPLEGABLES!AU92)","v":"SELECCIÓN INCORRECTA. LA COMBINACIÓN QUE HA INDICADO NO ES POSIBLE. POR FAVOR, REVISE LOS CAMPOS DE GRUPO, BENEFICIARIOS, OPCIÓN Y PROGRAMA DE INCENTIVOS."}]
[]
[]
[]
[null,null,null,"PASO 2: Responda a las siguientes preguntas:"]
[]
[null,null,null,"PREGUNTA 1:","¿Es usted el representate legal mediante notario con fecha de validez anterior al 5 de junio de 2014?",null,null,"Seleccionar"]
[]
[null,null,null,"PREGUNTA 2:","¿La potencia de generación de su instalación es superior a los 100 kW?",null,null,"Seleccionar"]
[]
[null,null,null,"PREGUNTA 3:","¿La subvención solicitada es para una instalación tipo fotovoltaica en cubierta o de energía renovable térmica?",null,null,"Seleccionar"]
[]
[null,null,null,"PREGUNTA 4:","¿Ha utilizado o comprado equipos o materiales de segunda mano para su instalación?",null,null,"Seleccionar"]
[]
[null,null,null,"PREGUNTA 5:","¿Va a utilizar un aparato de calefacción local alimentado por biomasa?",null,null,"Seleccionar"]
[]
[null,null,null,"PREGUNTA 6:","¿Va a utilizar un aparato de calefacción local o una caldera alimentado por biomasa y con una potencia inferior a 1MW?",null,null,"Seleccionar"]
[]
[]
[null,null,null,"PREGUNTA 7:","¿La actuación subvencionable incluye almacenamiento de la generación eléctrica?",null,null,"Seleccionar"]
[]
[null,null,null,"PREGUNTA 8:","¿Su instalación utiliza biomasa como combustible?",null,null,"Seleccionar"]
[]
[null,null,null,"PREGUNTA 9:","¿Tiene usted residencia fiscal en España?",null,null,"Seleccionar"]
[]
[]
[]
[]
[]
[]
[]
[]
[]
[]
[]
[]
[null,null,null,"PASO 3: La documentación que debe entregar junto a su solicitud es la siguiente:"]
[]
[]
[null,null,null,"ARTÍCULO","DOCUMENTO"]
[null,null,null,{"$f":"'DOCUMENTACION DEFINITIVA'!C4","v":"11.2.b"},{"$f":"'DOCUMENTACION DEFINITIVA'!E4","v":"Memoria técnica que acredite y justifique de forma adecuada, como mínimo, los datos aportados en el apartado 6.3. de la solicitud de ayuda del modelo establecido en el Anexo II del presente decreto."},null,null,{"$f":"'DOCUMENTACION DEFINITIVA'!G4","v":{"$error":"#N/A"}}]
[null,null,null,{"$f":"'DOCUMENTACION DEFINITIVA'!C5","v":"11.2.c"},{"$f":"'DOCUMENTACION DEFINITIVA'!E5","v":"Presupuesto de la empresa o empresas que realizarán la ejecución de las actuaciones, suficientemente desglosado por partidas y precios unitarios, de fecha posterior al 30 de junio de 2021. En el caso de que los solicitantes de las ayudas queden sujetos a normativa de contratación pública, esta documentación podrá sustituirse por el borrador de los pliegos de licitación correspondientes."},null,null,{"$f":"'DOCUMENTACION DEFINITIVA'!G5","v":{"$error":"#N/A"}}]
[null,null,null,{"$f":"'DOCUMENTACION DEFINITIVA'!C6","v":"11.2.f"},{"$f":"'DOCUMENTACION DEFINITIVA'!E6","v":"Declaración responsable del solicitante de hallarse al corriente en el pago de obligaciones por reintegro de subvenciones."},null,null,{"$f":"'DOCUMENTACION DEFINITIVA'!G6","v":{"$error":"#N/A"}}]
[null,null,null,{"$f":"'DOCUMENTACION DEFINITIVA'!C7","v":"11.2.g"},{"$f":"'DOCUMENTACION DEFINITIVA'!E7","v":"Declaración responsable del solicitante, indicando que no ha solicitado o recibido otras ayudas para la misma actuación o finalidad."},null,null,{"$f":"'DOCUMENTACION DEFINITIVA'!G7","v":{"$error":"#N/A"}}]
[null,null,null,{"$f":"'DOCUMENTACION DEFINITIVA'!C8","v":"11.3.1"},{"$f":"'DOCUMENTACION DEFINITIVA'!E8","v":"Declaración responsable que acredita que el sistema de almacenamiento no estará directamente conectado a red, sino que formará parte de la instalación de autoconsumo."},null,null,{"$f":"'DOCUMENTACION DEFINITIVA'!G8","v":{"$error":"#N/A"}}]
[null,null,null,{"$f":"'DOCUMENTACION DEFINITIVA'!C9","v":"11.3.2"},{"$f":"'DOCUMENTACION DEFINITIVA'!E9","v":"Declaración responsable del solicitante o representante legal, en su caso, manifestando el grupo donde queda encuadrada su actividad según la clasificación del CNAE."},null,null,{"$f":"'DOCUMENTACION DEFINITIVA'!G9","v":{"$error":"#N/A"}}]
[null,null,null,{"$f":"'DOCUMENTACION DEFINITIVA'!C10","v":"11.4.6.b"},{"$f":"'DOCUMENTACION DEFINITIVA'!E10","v":"Composición, estructura y régimen de funcionamiento y acuerdos de los órganos de gobierno de la entidad, para acreditar que todos los socios o miembros son personas físicas, pymes o autoridades locales, incluidos los municipios."},null,null,{"$f":"'DOCUMENTACION DEFINITIVA'!G10","v":{"$error":"#N/A"}}]
[null,null,null,{"$f":"'DOCUMENTACION DEFINITIVA'!C11","v":"11.4.6.b"},{"$f":"'DOCUMENTACION DEFINITIVA'!E11","v":"Declaración responsable incluida en el (Anexo IV)."},null,null,{"$f":"'DOCUMENTACION DEFINITIVA'!G11","v":{"$error":"#N/A"}}]
[null,null,null,{"$f":"'DOCUMENTACION DEFINITIVA'!C12","v":"11.4.6.c"},{"$f":"'DOCUMENTACION DEFINITIVA'!E12","v":"Certificado de empadronamiento para la persona física situada a mayor distancia de la dirección del proyecto presentado, y/o tarjeta NIF donde conste la dirección social para las pymes, socios o miembros de la misma."},null,null,{"$f":"'DOCUMENTACION DEFINITIVA'!G12","v":{"$error":"#N/A"}}]
[null,null,null,{"$f":"'DOCUMENTACION DEFINITIVA'!C13","v":"11.4.6.c"},{"$f":"'DOCUMENTACION DEFINITIVA'!E13","v":"Mapa a escala de todas las ubicaciones todos los socios o miembros de la comunidad de energías renovable, debiendo quedar todos circunscritos dentro de una circunferencia de radio inferior o igual a veinticinco kilómetros con centro en la dirección del proyecto presentado."},null,null,{"$f":"'DOCUMENTACION DEFINITIVA'!G13","v":{"$error":"#N/A"}}]
[null,null,null,{"$f":"'DOCUMENTACION DEFINITIVA'!C14","v":"11.4.6.d"},{"$f":"'DOCUMENTACION DEFINITIVA'!E14","v":"Copia de los estatutos donde quede debidamente justificado que su finalidad primordial sea proporcionar beneficios medioambientales, económicos o sociales."},null,null,{"$f":"'DOCUMENTACION DEFINITIVA'!G14","v":{"$error":"#N/A"}}]
[null,null,null,{"$f":"'DOCUMENTACION DEFINITIVA'!C15","v":"11.4.6.e"},{"$f":"'DOCUMENTACION DEFINITIVA'!E15","v":"Acuerdo de la reunión donde se apruebe la ejecución de las actuaciones, se nombre a uno de sus socios como representante, a los efectos de la presentación, seguimiento de la solicitud de ayudas y cumplimiento de las obligaciones que les pudiera corresponder a los mismos. También deberá quedar contemplado en el acuerdo el número de cuenta a la que se hará el ingreso de la subvención en caso de corresponder la misma, debiendo los titulares de dicha cuenta formar parte de la comunidad. Este representante será el encargado de efectuar y justificar la inversión objeto de ayuda."},null,null,{"$f":"'DOCUMENTACION DEFINITIVA'!G15","v":{"$error":"#N/A"}}]
[null,null,null,{"$f":"'DOCUMENTACION DEFINITIVA'!C16","v":"11.2.a"},{"$f":"'DOCUMENTACION DEFINITIVA'!E16","v":"Escritura de apoderamiento o documento acreditativo de representación legal, conforme el artículo 5 de la Ley 39/2015, de 1 de octubre, del Procedimiento Administrativo Común de las Administraciones Públicas, únicamente en el caso de que el poder de representante legal se haya elevado a público ante notario con anterioridad al 5 de junio de 2014, o para fechas posteriores caso de que se oponga a su consulta."},null,null,{"$f":"'DOCUMENTACION DEFINITIVA'!G16","v":{"$error":"#N/A"}}]
[null,null,null,{"$f":"'DOCUMENTACION DEFINITIVA'!C17","v":"11.2.d"},{"$f":"'DOCUMENTACION DEFINITIVA'!E17","v":"Informe que incluya plan estratégico, justificación del cumplimiento de no causar daño significativo a ninguno de los objetivos medioambientales y memoria de residuo generado."},null,null,{"$f":"'DOCUMENTACION DEFINITIVA'!G17","v":{"$error":"#N/A"}}]
[null,null,null,{"$f":"'DOCUMENTACION DEFINITIVA'!C18","v":"11.2.h"},{"$f":"'DOCUMENTACION DEFINITIVA'!E18","v":"Se deberá presentar un certificado de residencia fiscal emitido por las autoridades competentes de su país de residencia."},null,null,{"$f":"'DOCUMENTACION DEFINITIVA'!G18","v":{"$error":"#N/A"}}]
[null,null,null,{"$f":"'DOCUMENTACION DEFINITIVA'!C19","v":"11.2.i"},{"$f":"'DOCUMENTACION DEFINITIVA'!E19","v":"Certificados de estar al corriente en el cumplimiento de las obligaciones fiscales y tributarias del interesado con la Hacienda autonómica y con la Seguridad Social. Solo será necesaria su aportación cuando el solicitante no haya autorizado o se oponga expresamente a su consulta."},null,null,{"$f":"'DOCUMENTACION DEFINITIVA'!G19","v":{"$error":"#N/A"}}]
[null,null,null,{"$f":"'DOCUMENTACION DEFINITIVA'!C20","v":"11.2.j"},{"$f":"'DOCUMENTACION DEFINITIVA'!E20","v":"Certificado de estar al corriente con la Hacienda estatal. Solo será necesaria su aportación cuando el solicitante no haya autorizado o se oponga expresamente a su consulta."},null,null,{"$f":"'DOCUMENTACION DEFINITIVA'!G20","v":{"$error":"#N/A"}}]
[null,null,null,{"$f":"'DOCUMENTACION DEFINITIVA'!C21","v":"7.2.o"},{"$f":"'DOCUMENTACION DEFINITIVA'!E21","v":"Declaración de vendedor y certificación de tasador para costes de equipos de segunda mano."},null,null,{"$f":"'DOCUMENTACION DEFINITIVA'!G21","v":{"$error":"#N/A"}}]
[null,null,null,{"$f":"'DOCUMENTACION DEFINITIVA'!C22","v":"11.2.e"},{"$f":"'DOCUMENTACION DEFINITIVA'!E22","v":"Declaración responsable de promotor de proyecto de no afectación medioambiental, si el proyecto no se haya sometido a previa autorización administrativa, ni a declaración responsable o comunicación previa a ninguna administración, y que no se encuentre en ninguno de los supuestos de evaluación de impacto ambiental obligatoria contemplados en el artículo 7 de la Ley 21/2013 de evaluación ambiental."},null,null,{"$f":"'DOCUMENTACION DEFINITIVA'!G22","v":{"$error":"#N/A"}}]
[null,null,null,{"$f":"'DOCUMENTACION DEFINITIVA'!C23","v":"11.4.6.a"},{"$f":"'DOCUMENTACION DEFINITIVA'!E23","v":"NIF de la entidad jurídica que gestione la comunidad, en el caso de que la persona interesada se oponga expresamente en el apartado correspondiente del Anexo II relativo a la solicitud de ayuda, a que el órgano gestor lo recabe de oficio. Dicha entidad será la considerada como beneficiaria de la ayuda."},null,null,{"$f":"'DOCUMENTACION DEFINITIVA'!G23","v":{"$error":"#N/A"}}]
[null,null,null,{"$f":"'DOCUMENTACION DEFINITIVA'!C24","v":"11.4.2.b"},{"$f":"'DOCUMENTACION DEFINITIVA'!E24","v":"Escrituras de constitución de la empresa o estatutos vigentes de la misma, debidamente inscritos, en su caso, en los registros públicos correspondientes."},null,null,{"$f":"'DOCUMENTACION DEFINITIVA'!G24","v":{"$error":"#N/A"}}]
[null,null,null,{"$f":"'DOCUMENTACION DEFINITIVA'!C25","v":"11.4.2.c"},{"$f":"'DOCUMENTACION DEFINITIVA'!E25","v":"Declaración responsable en la que figure la condición de gran empresa, mediana o pequeña empresa."},null,null,{"$f":"'DOCUMENTACION DEFINITIVA'!G25","v":{"$error":"#N/A"}}]
[null,null,null,{"$f":"'DOCUMENTACION DEFINITIVA'!C26","v":"11.4.9"},{"$f":"'DOCUMENTACION DEFINITIVA'!E26","v":"Documento de colaboración o instrumento análogo formalizado por el representante debidamente facultado que especifique la aceptación y designación expresa del representante único, y donde conste expresamente los compromisos de ejecución asumidos por cada miembro, así como el importe de la ayuda a aplicar a cada uno de ellos."},null,null,{"$f":"'DOCUMENTACION DEFINITIVA'!G26","v":{"$error":"#N/A"}}]
[null,null,null,{"$f":"'DOCUMENTACION DEFINITIVA'!C27","v":"11.4.8.a"},{"$f":"'DOCUMENTACION DEFINITIVA'!E27","v":"Copia del acta de constitución de la comunidad de bienes."},null,null,{"$f":"'DOCUMENTACION DEFINITIVA'!G27","v":{"$error":"#N/A"}}]
[null,null,null,{"$f":"'DOCUMENTACION DEFINITIVA'!C28","v":"11.4.8.b"},{"$f":"'DOCUMENTACION DEFINITIVA'!E28","v":"Declaración responsable del solicitante donde conste si la comunidad de bienes ejerce actividad económica."},null,null,{"$f":"'DOCUMENTACION DEFINITIVA'!G28","v":{"$error":"#N/A"}}]
[null,null,null,{"$f":"'DOCUMENTACION DEFINITIVA'!C29","v":"11.4.8.c"},{"$f":"'DOCUMENTACION DEFINITIVA'!E29","v":"Declaración de comuneros del Anexo III."},null,null,{"$f":"'DOCUMENTACION DEFINITIVA'!G29","v":{"$error":"#N/A"}}]
[null,null,null,{"$f":"'DOCUMENTACION DEFINITIVA'!C30","v":"11.4.2.a"},{"$f":"'DOCUMENTACION DEFINITIVA'!E30","v":"Certificado expedido por la Agencia Estatal de la Administración Tributaria relativo a las altas y bajas en el impuesto sobre actividades económicas, cuando exista oposición expresa."},null,null,{"$f":"'DOCUMENTACION DEFINITIVA'!G30","v":{"$error":"#N/A"}}]
[null,null,null,{"$f":"'DOCUMENTACION DEFINITIVA'!C31","v":"11.3.3"},{"$f":"'DOCUMENTACION DEFINITIVA'!E31","v":"Declaración de exención de IVA por no ser recuperable."},null,null,{"$f":"'DOCUMENTACION DEFINITIVA'!G31","v":{"$error":"#N/A"}}]
[null,null,null,{"$f":"'DOCUMENTACION DEFINITIVA'!C32","v":"11.4.5.1"},{"$f":"'DOCUMENTACION DEFINITIVA'!E32","v":"Escritura de constitución de la comunidad de propietarios o acta de la reunión en la que se constituyó como tal."},null,null,{"$f":"'DOCUMENTACION DEFINITIVA'!G32","v":{"$error":"#N/A"}}]
[null,null,null,{"$f":"'DOCUMENTACION DEFINITIVA'!C33","v":"11.4.5.2"},{"$f":"'DOCUMENTACION DEFINITIVA'!E33","v":"Acta de la reunión en la que se nombró al presidente."},null,null,{"$f":"'DOCUMENTACION DEFINITIVA'!G33","v":{"$error":"#N/A"}}]
[null,null,null,{"$f":"'DOCUMENTACION DEFINITIVA'!C34","v":"11.4.5.3"},{"$f":"'DOCUMENTACION DEFINITIVA'!E34","v":"Acta de la reunión en la que conste el acuerdo de la comunidad para solicitar la ayuda, adoptado con el quórum legalmente establecido."},null,null,{"$f":"'DOCUMENTACION DEFINITIVA'!G34","v":{"$error":"#N/A"}}]
[null,null,null,{"$f":"'DOCUMENTACION DEFINITIVA'!C35","v":"11.4.5.4"},{"$f":"'DOCUMENTACION DEFINITIVA'!E35","v":"Declaración de comuneros del Anexo III."},null,null,{"$f":"'DOCUMENTACION DEFINITIVA'!G35","v":{"$error":"#N/A"}}]
[null,null,null,{"$f":"'DOCUMENTACION DEFINITIVA'!C36","v":"11.3.5.a.1"},{"$f":"'DOCUMENTACION DEFINITIVA'!E36","v":"En instalaciones de Biomasa, se aportará proyecto o memoria técnica, de acuerdo con lo establecido en el RITE, suscrita por técnico competente o empresa instaladora, según corresponda."},null,null,{"$f":"'DOCUMENTACION DEFINITIVA'!G36","v":{"$error":"#N/A"}}]
[null,null,null,{"$f":"'DOCUMENTACION DEFINITIVA'!C37","v":"11.3.5.a.2"},{"$f":"'DOCUMENTACION DEFINITIVA'!E37","v":"Declaración de que todos los combustibles que se van a utilizar tienen un valor por defecto de reducción de emisiones de GEI del 80 % o superior según los indicados para producción de calor establecidos en el Anexo VI de la Directiva (UE) 2018/2001 del Parlamento Europeo y del Consejo, de 11 de diciembre de 2018, relativa al fomento del uso de energía procedente de fuentes renovables, teniendo en cuenta el sistema de producción y resto de condiciones que determinan dicho valor por defecto, indicando la descripción del combustible o de los combustibles y el valor o los valores por defecto."},null,null,{"$f":"'DOCUMENTACION DEFINITIVA'!G37","v":{"$error":"#N/A"}}]
[null,null,null,{"$f":"'DOCUMENTACION DEFINITIVA'!C38","v":"11.3.5.a.3"},{"$f":"'DOCUMENTACION DEFINITIVA'!E38","v":"Una acreditación por parte del fabricante del equipo del cumplimiento de los requisitos de eficiencia energética estacional y emisiones para el combustible que se vaya a utilizar, que no podrán ser menos exigentes que los definidos en el Reglamento de Ecodiseño en vigor (según corresponda, Reglamento (UE) 2015/1185 de la Comisión o Reglamento (UE) 2015/1189 de la Comisión)."},null,null,{"$f":"'DOCUMENTACION DEFINITIVA'!G38","v":{"$error":"#N/A"}}]
[null,null,null,{"$f":"'DOCUMENTACION DEFINITIVA'!C39","v":"11.3.5.a.3"},{"$f":"'DOCUMENTACION DEFINITIVA'!E39","v":"Declaración por parte del beneficiario comprometiéndose a mantener, durante un plazo de cinco años, un registro documental suficiente que permita acreditar que el combustible empleado en el equipo dispone de un certificado otorgado por una entidad independiente acreditada relativo al cumplimiento de la clase A1 según lo establecido en la norma UNE-EN-ISO 17225-2, de la clase 1 de la norma UNE-EN-ISO 17225-4, de la clase A1 de la norma 164003 o de la clase A1 de la norma 164004."},null,null,{"$f":"'DOCUMENTACION DEFINITIVA'!G39","v":{"$error":"#N/A"}}]
[null,null,null,{"$f":"'DOCUMENTACION DEFINITIVA'!C40","v":"11.3.5.b"},{"$f":"'DOCUMENTACION DEFINITIVA'!E40","v":"En instalaciones de geotermia, hidrotermia y aerotermia, donde la instalación necesite legalización, se aportará proyecto o memoria técnica, de acuerdo con lo establecido en el RITE, suscrita por técnico competente o empresa instaladora según corresponda."},null,null,{"$f":"'DOCUMENTACION DEFINITIVA'!G40","v":{"$error":"#N/A"}}]
[null,null,null,{"$f":"'DOCUMENTACION DEFINITIVA'!C41","v":"11.3.5.c"},{"$f":"'DOCUMENTACION DEFINITIVA'!E41","v":"Declaración responsable del beneficiario sobre la titularidad pública de las viviendas."},null,null,{"$f":"'DOCUMENTACION DEFINITIVA'!G41","v":{"$error":"#N/A"}}]
[null,null,null,{"$f":"'DOCUMENTACION DEFINITIVA'!C42","v":"11.3.4"},{"$f":"'DOCUMENTACION DEFINITIVA'!E42","v":"Declaración responsable de una producción anual de la cual se consume el 80 %."},null,null,{"$f":"'DOCUMENTACION DEFINITIVA'!G42","v":{"$error":"#N/A"}}]
[null,null,null,{"$f":"'DOCUMENTACION DEFINITIVA'!C43","v":"11.4.10"},{"$f":"'DOCUMENTACION DEFINITIVA'!E43","v":"Copia de documento que acredite estar inscritas en el registro correspondiente."},null,null,{"$f":"'DOCUMENTACION DEFINITIVA'!G43","v":{"$error":"#N/A"}}]
[null,null,null,{"$f":"'DOCUMENTACION DEFINITIVA'!C44","v":"11.4.10"},{"$f":"'DOCUMENTACION DEFINITIVA'!E44","v":"Declaración responsable que acredite la puesta a disposición de colectivos vulnerables de viviendas sociales, en su caso. (realizada por el solicitante)"},null,null,{"$f":"'DOCUMENTACION DEFINITIVA'!G44","v":{"$error":"#N/A"}}]
[null,null,null,{"$f":"'DOCUMENTACION DEFINITIVA'!C45","v":"11.4.3"},{"$f":"'DOCUMENTACION DEFINITIVA'!E45","v":"Certificación acreditativa de resolución o acuerdo adoptado por el órgano competente de la administración o entidad pública solicitante, por la que se apruebe la participación en el programa de incentivos correspondiente asumiendo los compromisos contenidos en el mismo."},null,null,{"$f":"'DOCUMENTACION DEFINITIVA'!G45","v":{"$error":"#N/A"}}]
[null,null,null,{"$f":"'DOCUMENTACION DEFINITIVA'!C46","v":"11.4.12"},{"$f":"'DOCUMENTACION DEFINITIVA'!E46","v":"Copia del convenio que recoja la designación de la administración o entidad pública como representante y beneficiario del derecho de cobro de la ayuda por parte de los propietarios a la entidad, así como la forma de recuperación de la inversión."},null,null,{"$f":"'DOCUMENTACION DEFINITIVA'!G46","v":{"$error":"#N/A"}}]
[null,null,null,{"$f":"'DOCUMENTACION DEFINITIVA'!C47","v":"11.4.4"},{"$f":"'DOCUMENTACION DEFINITIVA'!E47","v":"Declaración responsable donde acredite su adscripción a la Administración correspondiente."},null,null,{"$f":"'DOCUMENTACION DEFINITIVA'!G47","v":{"$error":"#N/A"}}]
[null,null,null,{"$f":"'DOCUMENTACION DEFINITIVA'!C48","v":"11.4.11"},{"$f":"'DOCUMENTACION DEFINITIVA'!E48","v":"Declaración responsable donde acredite su adscripción a una Administración Pública y donde declare si desarrolla actividad económica por la que ofrezca bienes y/o servicios en el mercado, y en cado de realizarla cuál es su finalidad y CNAE."},null,null,{"$f":"'DOCUMENTACION DEFINITIVA'!G48","v":{"$error":"#N/A"}}]
[null,null,null,{"$f":"'DOCUMENTACION DEFINITIVA'!C49","v":"11.4.2.d"},{"$f":"'DOCUMENTACION DEFINITIVA'!E49","v":"Documento de colaboración o instrumento análogo formalizado por el representante debidamente facultado de las mismas que especifique la aceptación y designación expresa del representante único de todas ellas, que formule la solicitud y reciba el importe total de la ayuda otorgada, así como la aceptación expresa de participación de todas ellas en el Programa de ayudas establecido por esta convocatoria, asumiendo la totalidad de compromisos y obligaciones derivados del mismo, con detalle de los compromisos de ejecución correspondientes a cada miembro de la agrupación así como importe de la ayuda a aplicar a cada uno de ellos."},null,null,{"$f":"'DOCUMENTACION DEFINITIVA'!G49","v":{"$error":"#N/A"}}]
[null,null,null,{"$f":"'DOCUMENTACION DEFINITIVA'!C50","v":"11.4.1.a"},{"$f":"'DOCUMENTACION DEFINITIVA'!E50","v":"Certificado de alta en el Censo de Empresarios, Profesionales y Retenedores o Certificado de Situación Censal. Solo será necesaria su aportación cuando el solicitante se oponga expresamente a su consulta."},null,null,{"$f":"'DOCUMENTACION DEFINITIVA'!G50","v":{"$error":"#N/A"}}]
[null,null,null,{"$f":"'DOCUMENTACION DEFINITIVA'!C51","v":"11.4.1.b"},{"$f":"'DOCUMENTACION DEFINITIVA'!E51","v":"Declaración de ayudas solicitadas o recibidas bajo el régimen de minimis en los tres últimos años."},null,null,{"$f":"'DOCUMENTACION DEFINITIVA'!G51","v":{"$error":"#N/A"}}]
[null,null,null,{"$f":"'DOCUMENTACION DEFINITIVA'!C52","v":"3.1-1.1-a-3"},{"$f":"'DOCUMENTACION DEFINITIVA'!E52","v":"Acuerdo y/o contrato con empresa donde se realizará la actuación."},null,null,{"$f":"'DOCUMENTACION DEFINITIVA'!G52","v":{"$error":"#N/A"}}]
[null,null,null,{"$f":"'DOCUMENTACION DEFINITIVA'!C53","v":"11.4.7"},{"$f":"'DOCUMENTACION DEFINITIVA'!E53","v":"Copia del contrato o contratos formalizados con el propietario o propietarios del emplazamiento donde se vaya a ejecutar la actuación y así como autorización expresa para la realización de las actuaciones objeto de ayuda."},null,null,{"$f":"'DOCUMENTACION DEFINITIVA'!G53","v":{"$error":"#N/A"}}]
[]
[null,null,null,"Este listado se genera a partir de la premisa de que el solicitante ha aceptado todas las declaraciones del Anexo II y ha autorizado a la Administración a recabar y verificar los datos expuestos en el mismo."]

{"sheet":"Hoja1","index":1,"n_rows":0,"n_cols":0,"rows_kept":0,"cut":false,"hidden":true,"merged":[]}

{"sheet":"CODIFICACION DOCUMENTOS","index":2,"n_rows":69,"n_cols":7,"rows_kept":69,"cut":false,"hidden":true,"merged":[]}
[]
[]
[]
[null,null,"Articulo","Nº DOCUMENTO","Documentación general","MODALIDAD","TIPO"]
[null,null,"11.2.a",1,"Escritura de apoderamiento o documento acreditativo de representación legal, conforme el artículo 5 de la Ley 39/2015, de 1 de octubre, del Procedimiento Administrativo Común de las Administraciones Públicas (únicamente en el caso de que el poder de representante legal se haya elevado a público ante notario con anterioridad al 5 de junio de 2014 y se oponga a su consulta).","REQUIERE ANEXAR DOCUMENTO","Condicionado"]
[null,null,"11.2.b",2,"Memoria acreditativa y justificativa de los datos aportados en el apartado 6.3. de la presente solicitud","REQUIERE ANEXAR DOCUMENTO","Obligatorio"]
[null,null,"11.2.c",3,"Presupuesto de la empresa o empresas que realizarán la ejecución de las actuaciones, suficientemente desglosado.","REQUIERE ANEXAR DOCUMENTO","Obligatorio"]
[null,null,"11.2.d",4,"Informe que incluya plan estratégico, justificación del cumplimiento de no causar daño significativo a ninguno de los objetivos medioambientales y memoria de residuo generado, solo en el caso de actuaciones que superen los 100 kW de potencia nominal.","REQUIERE ANEXAR DOCUMENTO","Condicionado"]
[null,null,"11.2.e",5,"Declaración responsable de promotor de proyecto de no afectación medioambiental, cuando proceda.(No para fotovoltaica en cubierta y línea 6)","REQUIERE ANEXAR DOCUMENTO","Condicionado"]
[null,null,"11.2.f",6,"Declaración responsable del solicitante de hallarse al corriente en el pago de obligaciones por reintegro de subvenciones (Anexo II-8 o Anexo III para comunidades y agrupaciones)","COMUNEROS ADJUNTAN ANEXO III  /  NO COMUNEROS RELLENAN ANEXO II","Obligatorio"]
[null,null,"11.2.g",7,"Declaración responsable del solicitante, indicando que no ha solicitado o recibido otras ayudas para la misma actuación o finalidad. (Anexo II - 8.6)","SE RELLENA EN ANEXO II","Obligatorio"]
[null,null,"11.2.h",8,"Certificado residencia fiscal de la Hacienda Estatal, solo será necesario su aportación cuando el solicitante no haya autorizado o se oponga expresamente a su consulta (Anexo II - 9-5), o, en su caso, para solicitantes que no tengan su residencia fiscal en territorio español deberán presentar un certificado de residencia fiscal emitido por las autoridades competentes de su país de residencia.","SE DEBE ANEXAR EN CASO DE OPONERSE A COMPROBACION POR PARTE DE LA ADMINISTRACION","Condicionado"]
[null,null,"11.2.i",9,"Certificados de estar al corriente en el cumplimiento de las obligaciones fiscales y tributarias del interesado con la Hacienda autonómica y con la Seguridad Social. Solo será necesaria su aportación cuando el solicitante no haya autorizado o se oponga expresamente a su consulta. (Anexo II - 9-1 y 9-4)  si<10.000€ ==> (Anexo II - 8.3)","SE DEBE ANEXAR EN CASO DE OPONERSE A COMPROBACION POR PARTE DE LA ADMINISTRACION","Condicionado"]
[null,null,"11.2.j",10,"Certificado de estar al corriente con la Hacienda estatal. Solo será necesaria su aportación cuando el solicitante no haya autorizado o se oponga expresamente a su consulta. (Anexo II - 9.1)  si<10.000€ ==> Anexo II - 8.3)","SE DEBE ANEXAR EN CASO DE OPONERSE A COMPROBACION POR PARTE DE LA ADMINISTRACION","Condicionado"]
[null,null,"7.2.o",11,"Declaración de vendedor y certificación de tasador para costes de equipos de segunda mano.","REQUIERE ANEXAR DOCUMENTO","Condicionado"]
[null,null,"Articulo","Nº DOCUMENTO","Documentación técnica","MODALIDAD","TIPO"]
[null,null,"11.3.1",12,"Declaración responsable (realizada por el solicitante) (líneas 1,2,3,4,5) que acredita que el sistema de almacenamiento no estará directamente conectado a red, sino que formará parte de la instalación de autoconsumo. No se aportará en el programa de incentivos 6.","REQUIERE ANEXAR DOCUMENTO","Obligatorio"]
[null,null,"11.3.2",13,"Declaración responsable del solicitante o representante legal, en su caso, manifestando el grupo donde queda encuadrada su actividad según la clasificación del CNAE. (Anexo II - 6.2)(programas de incentivos 1, 2 y 3)","SE RELLENA EN ANEXO II","Obligatorio"]
[null,null,"11.3.3",14,"Declaración de exención de IVA por no ser recuperable. (Anexo II - 8.5) (programas de incentivos 4, 5 y 6)","SE RELLENA EN ANEXO II","Obligatorio"]
[null,null,"11.3.4",15,"Declaración responsable (realizada por el solicitante) de una producción de la cual se consume el 80 %, solo en el caso de programa de incentivos 4.","REQUIERE ANEXAR DOCUMENTO","Obligatorio"]
[null,null,"11.3.5.a.1",16,"Proyecto o memoria técnica, de acuerdo con lo establecido en el RITE, suscrita por técnico competente o empresa instaladora, según corresponda, excepto para la tipología de biomasa de aparatos de calefacción local.(Solo para Biomasa)","REQUIERE ANEXAR DOCUMENTO","Obligatorio"]
[null,null,"11.3.5.a.2",17,"Declaración  (realizada por el solicitante) de combustibles a utilizar con 80% reducción emisiones, para actuaciones de biomasa de programa de incentivos 6. En su defecto memoria justificativa firmada.","REQUIERE ANEXAR DOCUMENTO","Obligatorio"]
[null,null,"11.3.5.a.3",18,"Acreditación del fabricante de equipo de requisitos de eficiencia energética y emisiones, para actuaciones de biomasa de programa de incentivos 6. (aparatos de calefacción local o calderas de menos de 1 MW)","REQUIERE ANEXAR DOCUMENTO","Obligatorio"]
[null,null,"11.3.5.a.3",19,"Declaración de beneficiario (realizada por el solicitante) de compromiso de registro documental de combustible, para actuaciones de biomasa de programa de incentivos 6, según proceda. (aparatos de calefacción local o calderas de menos de 1 MW)","REQUIERE ANEXAR DOCUMENTO","Obligatorio"]
[null,null,"11.3.5.b",20,"En instalaciones de geotermia, hidrotermia y aerotermia, donde la instalación necesite legalización, se aportará proyecto o memoria técnica, de acuerdo con lo establecido en el RITE, suscrita por técnico competente o empresa instaladora","REQUIERE ANEXAR DOCUMENTO","Obligatorio"]
[null,null,"11.3.5.c",21,"Declaración responsable del beneficiario  (realizada por el solicitante) , para actuaciones del programa de incentivos 6, sobre la titularidad pública de las viviendas, si procede.","REQUIERE ANEXAR DOCUMENTO","Obligatorio"]
[null,null,"Articulo","Nº DOCUMENTO","Documentación según el tipo de beneficiario.","MODALIDAD","TIPO"]
[null,null,null,null,"Profesional autónomo"]
[null,null,"11.4.1.a",22,"Certificado de alta en el Censo de Empresarios, Profesionales y Retenedores o Certificado de Situación Censal. Solo será necesaria su aportación cuando el solicitante se oponga expresamente a su consulta.(Anexo II - 9-6)","SE DEBE ANEXAR EN CASO DE OPONERSE A COMPROBACION POR PARTE DE LA ADMINISTRACION","Condicionado"]
[null,null,"11.4.1.b",23,"Declaración de ayudas solicitadas o recibidas bajo el régimen de minimis en los tres últimos años. (Anexo II - 8.6)","SE RELLENA EN ANEXO II","Obligatorio"]
[null,null,null,null,"Empresas o agrupaciones de empresas"]
[null,null,"11.4.2.a",24,"Certificado expedido por la Agencia Estatal de la Administración Tributaria relativo a las altas y bajas en el impuesto sobre actividades económicas, cuando exista oposición expresa en el apartado correspondiente del (Anexo II - 9-2)","SE DEBE ANEXAR EN CASO DE OPONERSE A COMPROBACION POR PARTE DE LA ADMINISTRACION","Condicionado"]
[null,null,"11.4.2.b",25,"Escrituras de constitución de la empresa o estatutos vigentes de la misma, debidamente inscritos, en su caso, en los registros públicos correspondientes.","REQUIERE ANEXAR DOCUMENTO","Obligatorio"]
[null,null,"11.4.2.c",26,"Declaración responsable en la que figure la condición de gran empresa, mediana o pequeña empresa. (Anexo II - 8.1.1)","SE RELLENA EN ANEXO II","Obligatorio"]
[null,null,"11.4.2.d",27,"Documento de colaboración o instrumento análogo formalizado por el representante debidamente facultado de las mismas que especifique la aceptación y designación expresa del representante único de todas ellas, que formule la solicitud y reciba el importe total de la ayuda otorgada, así como la aceptación expresa de participación de todas ellas en el Programa de ayudas establecido por esta convocatoria, asumiendo la totalidad de compromisos y obligaciones derivados del mismo, con detalle de los compromisos de ejecución correspondientes a cada miembro de la agrupación así como importe de la ayuda a aplicar a cada uno de ellos.","REQUIERE ANEXAR DOCUMENTO","Obligatorio"]
[null,null,null,null,"● Empresas de servicios energéticos: Además de la documentación indicada para empresas, deberá aportarse:",{"$error":"#N/A"}]
[null,null,"3.1-1.1-a-3",28,"Acuerdo y/o contrato con empresa donde se realizará la actuación.","REQUIERE ANEXAR DOCUMENTO","Obligatorio"]
[null,null,null,null,"● Aquellas que carezcan de personalidad jurídica propia (Comunidad de Bienes y Sociedad Civil):",{"$error":"#N/A"}]
[null,null,"11.4.9",29,"Documento de colaboración o instrumento análogo formalizado por el representante debidamente facultado que especifique la aceptación y designación expresa del representante único, y donde conste expresamente los compromisos de ejecución asumidos por cada miembro, así como el importe de la ayuda a aplicar a cada uno de ellos","REQUIERE ANEXAR DOCUMENTO","Obligatorio"]
[null,null,null,null,"● Empresas explotadoras, arrendatarias o concesionarias de actuaciones en el ámbito de la energía: Además de la documentación indicada para empresas, deberá aportarse:",{"$error":"#N/A"}]
[null,null,"11.4.7",30,"Copia del contrato o contratos formalizados con el propietario o propietarios del emplazamiento donde se vaya a ejecutar la actuación y así como autorización expresa para la realización de las actuaciones objeto de ayuda.","REQUIERE ANEXAR DOCUMENTO","Obligatorio"]
[null,null,null,null,"Administración o entidad púbica"]
[null,null,"11.4.3",31,"Certificación acreditativa de resolución o acuerdo adoptado por el órgano competente de la administración o entidad pública solicitante, por la que se apruebe la participación en el programa de incentivos correspondiente asumiendo los compromisos contenidos en el mismo.","REQUIERE ANEXAR DOCUMENTO","Obligatorio"]
[null,null,null,null,"Sector público institucional:"]
[null,null,"11.4.4",32,"Declaración responsable donde acredite su adscripción a la Administración correspondiente. (Anexo II - 8.2) ","SE RELLENA EN ANEXO II","Obligatorio"]
[null,null,null,null,"Comunidad de energías renovables o una comunidad ciudadana de energía"]
[null,null,"11.4.6.a",33,"NIF de la entidad jurídica que gestione la comunidad. Solo será necesaria su aportación cuando el solicitante se oponga expresamente a su consulta. (Anexo II 9 - 6)","SE DEBE ANEXAR EN CASO DE OPONERSE A COMPROBACION POR PARTE DE LA ADMINISTRACION","Condicionado"]
[null,null,"11.4.6.b",34,"Composición, estructura y régimen de funcionamiento y acuerdos de los órganos de gobierno de la entidad, para acreditar que todos los socios o miembros son personas físicas, pymes o autoridades locales, incluidos los municipios.","REQUIERE ANEXAR DOCUMENTO","Obligatorio"]
[null,null,"11.4.6.b",35,"Declaración responsable incluida en el (Anexo IV).","REQUIERE ANEXAR DOCUMENTO","Obligatorio"]
[null,null,"11.4.6.c",36,"Certificado de empadronamiento para la persona física situada a mayor distancia de la dirección del proyecto presentado, y/o tarjeta NIF donde conste la dirección social para las pymes socios o miembros de la misma.","REQUIERE ANEXAR DOCUMENTO","Obligatorio"]
[null,null,"11.4.6.c",37,"Mapa a escala de todas las ubicaciones todos los socios o miembros de la comunidad de energías renovable, debiendo quedar todos circunscritos dentro de una circunferencia de radio inferior o igual a veinticinco kilómetros con centro en la dirección del proyecto presentado.","REQUIERE ANEXAR DOCUMENTO","Obligatorio"]
[null,null,"11.4.6.d",38,"Copia de los estatutos donde quede debidamente justificado que su finalidad primordial sea proporcionar beneficios medioambientales, económicos o sociales.","REQUIERE ANEXAR DOCUMENTO","Obligatorio"]
[null,null,"11.4.6.e",39,"Acuerdo de la reunión para ejecución de las actuaciones, nombramiento y cumplimientos de obligaciones.","REQUIERE ANEXAR DOCUMENTO","Obligatorio"]
[null,null,null,null,"Administración u organismos públicos y entidades de derecho público que actúe como representante de agrupaciones u otros propietarios."]
[null,null,"11.4.12",40,"Copia del convenio que recoja la designación de la administración o entidad pública como representante y beneficiario del derecho de cobro de la ayuda por parte de los propietarios a la entidad, así como la forma de recuperación de la inversión.","REQUIERE ANEXAR DOCUMENTO","Obligatorio"]
[null,null,null,null,"Entidades u organizaciones públicas o privadas sin ánimo de lucro."]
[null,null,"11.4.10",41,"Copia de documento que acredite estar inscritas en el registro correspondiente.","REQUIERE ANEXAR DOCUMENTO","Obligatorio"]
[null,null,"11.4.10",42,"Declaración responsable que acredite la puesta a disposición de colectivos vulnerables de viviendas sociales, en su caso. (realizada por el solicitante)","REQUIERE ANEXAR DOCUMENTO","Obligatorio"]
[null,null,null,null,"Comunidades de propietarios"]
[null,null,"11.4.5.1",43,"Escritura de constitución de la comunidad de propietarios o acta de la reunión en la que se constituyó como tal.","REQUIERE ANEXAR DOCUMENTO","Obligatorio"]
[null,null,"11.4.5.2",44,"Acta de la reunión en la que se nombró al presidente.","REQUIERE ANEXAR DOCUMENTO","Obligatorio"]
[null,null,"11.4.5.3",45,"Acta de la reunión en la que conste el acuerdo de la comunidad para solicitar la ayuda, adoptado con el quórum legalmente establecido.","REQUIERE ANEXAR DOCUMENTO","Obligatorio"]
[null,null,"11.4.5.4",46,"Declaración de comuneros,  (Anexo III).","REQUIERE ANEXAR DOCUMENTO","Obligatorio"]
[null,null,null,null,"Comunidades de bienes"]
[null,null,"11.4.8.a",47,"Copia del acta de constitución de la comunidad de bienes.","REQUIERE ANEXAR DOCUMENTO","Obligatorio"]
[null,null,"11.4.8.b",48,"Declaración responsable del solicitante donde conste si la comunidad de bienes ejerce actividad económica.(Anexo II - 8.1.1) ","SE RELLENA EN ANEXO II","Obligatorio"]
[null,null,"11.4.8.c",49,"Declaración de comuneros, (Anexo III).","REQUIERE ANEXAR DOCUMENTO","Obligatorio"]
[null,null,null,null,"Entidad vinculada o dependiente del sector público"]
[null,null,"11.4.11",50,"Declaración responsable donde acredite su adscripción a una Administración Pública y donde declare si desarrolla actividad económica por la que ofrezca bienes y/o servicios en el mercado, y en cado de realizarla cuál es su finalidad y CNAE. \n(Anexo II - 8.2 + Anexo II - 6.2)","SE RELLENA EN ANEXO II","Obligatorio"]

{"sheet":"CODIGOS BENEFICIARIOS Y LINEAS","index":3,"n_rows":33,"n_cols":11,"rows_kept":33,"cut":false,"hidden":true,"merged":[[4,0,14,0],[15,0,18,0],[19,0,21,0],[22,0,32,0],[2,0,3,0],[2,9,3,10],[2,3,2,8],[19,1,21,1],[29,1,31,1],[24,1,25,1],[4,1,6,1],[16,1,18,1],[2,2,3,2],[2,1,3,1],[26,1,27,1]]}
[]
[]
["GRUPOS","BENEFICIARIOS","OPCIONES","PROGRAMAS DE INCENTIVOS",null,null,null,null,null,"ARTÍCULOS"]
[null,null,null,1,2,3,4,5,6]
["EMPRESA","Personas jurídicas","● SI ofrecen actividad económica o bienes (Linea 1,2,3 en función del CNAE)","1.1","2.1","3.1",null,null,null,"artículo 3-1-1.1-a"]
[null,null,"● NO ofrecen actividad económica o bienes",null,null,null,"4.1","5.1",null,"artículo 3-1-1.2-c"]
[null,null,"● NO ofrecen actividad económica o bienes + viviendas",null,null,null,null,null,"6.1","artículo 3-1-1.3-b"]
[null,"Agrupaciones de empresa","● SI ofrecen actividad económica o bienes","1.2","2.2","3.2",null,null,null,"artículo 3-1-1.1-a"]
[null,"Agrupaciones de personas físicas con o sin personalidad jurídica\n(Comunidad de Bienes, Asociaciones Civiles)","● SI ofrecen actividad económica o bienes","1.3","2.3","3.3",null,null,null,"artículo 3-1-1.1-a"]
[null,"Gestores de polígonos públicos o privados",null,"1.4","2.4","3.4",null,null,null,"artículo 3-1-1.1-a"]
[null,"Empresas explotadoras",null,"1.5","2.5","3.5",null,null,null,"artículo 3-1-1.1-a"]
[null,"Empresas arrendatarias",null,"1.6","2.6","3.6",null,null,null,"artículo 3-1-1.1-a"]
[null,"Empresas concesionarias",null,"1.7","2.7","3.7",null,null,null,"artículo 3-1-1.1-a"]
[null,"Empresas de servicios energéticos",null,"1.8","2.8","3.8",null,null,null,"artículo 3-1-1.1-a"]
[null,"Proveedores de servicios energéticos",null,"1.9","2.9","3.9",null,null,null,"artículo 3-1-1.1-a"]
["ADMINISTRACION","La Administración como representante de otros: \na) Los ayuntamientos.\nb) Las diputaciones provinciales o las entidades equivalentes\nc) Las mancomunidades o agrupaciones de municipios españoles\nd) Cabildos y consejos insulares.\ne) Organismos públicos y entidades de derecho público vinculados o dependientes tanto de la administración local como autonómica correspondiente\n",null,"1.10","2.10","3.10","4.2","5.2","6.2","artículo 3-2"]
[null,"Entidades locales de cualquier administración publica","● SI ofrecen actividad económica o bienes","??","2.11","3.11",null,null,null,"artículo 3-1-1.2-b"]
[null,null,"● NO ofrecen actividad económica o bienes",null,null,null,"4.3","5.3",null,"artículo 3-1-1.2-b"]
[null,null,"● NO ofrecen actividad económica o bienes + viviendas",null,null,null,null,null,"6.3","artículo 3-1-1.3-e"]
["SECTOR INSTITUCIONAL","Sector publico institucional de cualquier administración publica:\na) Cualesquiera  organismos  públicos  y  entidades  de  derecho  público  vinculados  o dependientes de las Administraciones Públicas.\nb) Las entidades de derecho privado vinculadas o dependientes de las Administraciones Públicas.\nc)  Las  Universidades  públicas.","● SI ofrecen actividad económica o bienes","??","2.12","3.12",null,null,null,"artículo 3-1-1.2-b"]
[null,null,"● NO ofrecen actividad económica o bienes",null,null,null,"4.4","5.4",null,"artículo 3-1-1.2-b"]
[null,null,"● NO ofrecen actividad económica o bienes + viviendas",null,null,null,null,null,"6.4","artículo 3-1-1.3-e"]
["RESTO BENEFICIARIOS","Personas físicas","● NO ofrecen actividad económica o bienes",null,null,null,"4.5","5.5","6.5","artículo 3-1-1.2-a","artículo 3-1-1.3-a"]
[null,"Autónomo (Persona física)","● SI ofrecen actividad económica o bienes",null,null,null,"4.6","5.6","6.6","artículo 3-1-1.2-d","artículo 3-1-1.3-c"]
[null,"Comunidades de energías renovables","● SI ofrecen actividad económica o bienes","1.13","2.13","3.13",null,null,null,"artículo 3-1-1.1-b"]
[null,null,"● NO ofrecen actividad económica o bienes",null,null,null,"4.7","5.7",null,"artículo 3-1-1.2-f"]
[null,"Comunidades ciudadanas de energía","● SI ofrecen actividad económica o bienes","1.14","2.14","3.14",null,null,null,"artículo 3-1-1.1-b"]
[null,null,"● NO ofrecen actividad económica o bienes",null,null,null,"4.8","5.8",null,"artículo 3-1-1.2-f"]
[null,"Comunidad de propietarios",null,null,null,null,"4.9","5.9","6.7","artículo 3-1-1.2-e","artículo 3-1-1.3-d"]
[null,"Entidad privada sin animo de lucro","● SI ofrecen actividad económica o bienes","??","2.15","3.15",null,null,null,"artículo 3-1-1.2-c"]
[null,null,"● NO ofrecen actividad económica o bienes",null,null,null,"4.10","5.10",null,"artículo 3-1-1.2-c"]
[null,null,"● NO ofrecen actividad económica o bienes + viviendas",null,null,null,null,null,"6.8","artículo 3-1-1.3-b"]
[null,"Entidad publica sin animo de lucro","● NO ofrecen actividad económica o bienes + viviendas",null,null,null,null,null,"6.9","artículo 3-1-1.3-b"]

{"sheet":"PREGUNTAS","index":4,"n_rows":47,"n_cols":19,"rows_kept":47,"cut":false,"hidden":true,"merged":[]}
[]
[]
[]
[]
[]
[]
[]
[null,null,null,"PREGUNTA 1:","¿Es usted el representate legal mediante notario con fecha de validez anterior al 5 de junio de 2014?",null,null,null,null,null,"PREGUNTA 1:","PREGUNTA 2:","PREGUNTA 3:","PREGUNTA 4:","PREGUNTA 5:","PREGUNTA 6:","PREGUNTA 7:","PREGUNTA 8:"]
[null,null,null,"PREGUNTA 2:","¿Su instalación es superior a los 100 kW?",null,null,null,null,null,"Si","Si","Si","Si","Si","Si","Si","Si"]
[null,null,null,"PREGUNTA 3:","¿Su instalación es de tipo fotovoltaica en cubierta o de energia renovable termica?",null,null,null,null,null,"No","No","No","No","No","No","No","No"]
[null,null,null,"PREGUNTA 4:","¿Ha utilizado o comprado equipos o materiales de segunda mano para su instalación?"]
[]
[]
[]
[null,null,null,null,null,null,null,null,null,null,"PREGUNTA 1:",11,"Si",41,null,{"$f":"CONCATENATE(K15,M15)","v":"PREGUNTA 1:Si"},{"$f":"N15*L15","v":451}]
[null,null,null,null,null,null,null,null,null,null,"PREGUNTA 1:",11,"No",43,null,{"$f":"CONCATENATE(K16,M16)","v":"PREGUNTA 1:No"},{"$f":"N16*L16","v":473}]
[null,null,null,null,null,null,null,null,null,null,"PREGUNTA 2:",17,"Si",41,null,"PREGUNTA 2:Si",697]
[null,null,null,null,null,null,null,null,null,null,"PREGUNTA 2:",17,"No",43,null,"PREGUNTA 2:No",731]
[null,null,null,null,null,null,null,null,null,null,"PREGUNTA 3:",23,"Si",41,null,"PREGUNTA 3:Si",943]
[null,null,null,null,null,null,null,null,null,null,"PREGUNTA 3:",23,"No",43,null,"PREGUNTA 3:No",989]
[null,null,null,null,null,null,null,null,null,null,"PREGUNTA 4:",31,"Si",41,null,"PREGUNTA 4:Si",1271]
[null,null,null,null,null,null,null,null,null,null,"PREGUNTA 4:",31,"No",43,null,"PREGUNTA 4:No",1333]
[null,null,null,null,null,null,null,null,null,null,"PREGUNTA 5:",59,"Si",41,null,"PREGUNTA 5:Si",2419]
[null,null,null,null,null,null,null,null,null,null,"PREGUNTA 5:",59,"No",43,null,"PREGUNTA 5:No",2537]
[null,null,null,null,null,null,null,null,null,null,"PREGUNTA 6:",61,"Si",41,null,"PREGUNTA 6:Si",2501]
[null,null,null,null,null,null,null,null,null,null,"PREGUNTA 6:",61,"No",43,null,"PREGUNTA 6:No",2623]
[null,null,null,null,null,null,null,null,null,null,"PREGUNTA 7:",67,"Si",41,null,"PREGUNTA 7:Si",2747]
[null,null,null,null,null,null,null,null,null,null,"PREGUNTA 7:",67,"No",43,null,"PREGUNTA 7:No",2881]
[null,null,null,null,null,null,null,null,null,null,"PREGUNTA 8:",71,"Si",41,null,"PREGUNTA 8:Si",2911]
[null,null,null,null,null,null,null,null,null,null,"PREGUNTA 8:",71,"No",43,null,"PREGUNTA 8:No",3053]
[null,null,null,null,null,null,null,null,null,null,"PREGUNTA 9:",73,"Si",41,null,"PREGUNTA 9:Si",2993]
[null,null,null,null,null,null,null,null,null,null,"PREGUNTA 9:",73,"No",43,null,"PREGUNTA 9:No",3139]
[]
[null,null,null,null,null,null,null,null,null,null,"DATOS DEL FORMULARIO",null,null,null,null,null,null,"resultado condicionalidad"]
[null,null,null,null,null,null,null,null,null,null,"PREGUNTA 1:",11,"Seleccionar",{"$f":"VLOOKUP(M35,$M$15:$N$16,2,FALSE)","v":{"$error":"#N/A"}},null,{"$f":"N35*L35","v":{"$error":"#N/A"}},null,{"$f":"IF(P35=Q15,\"Obligatorio\",\"N\")","v":{"$error":"#N/A"}}]
[null,null,null,null,null,null,"linea selec",{"$f":"DESPLEGABLES!AA2","v":"Seleccionar"},null,null,"PREGUNTA 2:",17,"Seleccionar",{"$f":"VLOOKUP(M36,$M$15:$N$16,2,FALSE)","v":{"$error":"#N/A"}},null,{"$f":"N36*L36","v":{"$error":"#N/A"}},null,{"$f":"IF(P36=Q17,\"Obligatorio\",\"N\")","v":{"$error":"#N/A"}}]
[null,null,null,null,null,null,null,null,null,null,"PREGUNTA 3:",23,"Seleccionar",{"$error":"#N/A"},null,{"$error":"#N/A"},null,{"$f":"IF(P37<>Q19,\"Obligatorio\",\"N\")","v":{"$error":"#N/A"}}]
[null,null,null,null,null,null,null,null,null,null,"PREGUNTA 4:",31,"Seleccionar",{"$error":"#N/A"},null,{"$error":"#N/A"},null,{"$f":"IF(P38=Q21,\"Obligatorio\",\"N\")","v":{"$error":"#N/A"}}]
[null,null,null,null,null,null,"LINEA","nº",null,null,"PREGUNTA 5:",59,"Seleccionar",{"$error":"#N/A"},null,{"$error":"#N/A"},null,{"$f":"IF(P39=Q23,\"N\",\"Obligatorio\")","v":{"$error":"#N/A"}}]
[null,null,null,null,null,null,1,109,null,null,"PREGUNTA 6:",61,"Seleccionar",{"$error":"#N/A"},null,{"$error":"#N/A"},null,{"$f":"IF(P40=Q25,\"Obligatorio\",\"N\")","v":{"$error":"#N/A"}}]
[null,null,null,null,null,null,2,113,null,null,"PREGUNTA 7:",67,"Seleccionar",{"$error":"#N/A"},null,{"$error":"#N/A"},null,{"$f":"IF(P41=Q27,\"Obligatorio\",\"N\")","v":{"$error":"#N/A"}}]
[null,null,null,null,null,null,3,127,null,null,"PREGUNTA 8:",71,"Seleccionar",{"$error":"#N/A"},null,{"$error":"#N/A"},null,{"$f":"IF(P42=Q29,\"Obligatorio\",\"N\")","v":{"$error":"#N/A"}},{"$f":"IF(P42=Q29,\"N\",\"Obligatorio\")","v":{"$error":"#N/A"}}]
[null,null,null,null,null,null,4,131,null,null,"PREGUNTA 9:",73,"Seleccionar",{"$f":"VLOOKUP(M43,$M$15:$N$16,2,FALSE)","v":{"$error":"#N/A"}},null,{"$f":"N43*L43","v":{"$error":"#N/A"}},null,{"$f":"IF(P43=Q31,\"N\",\"Obligatorio\")","v":{"$error":"#N/A"}}]
[null,null,null,null,null,null,5,137]
[null,null,null,null,null,null,6,139,null,null,"P5+P8",null,null,null,null,null,null,{"$f":"IF(AND(P39=Q24,P42=Q29),\"Obligatorio\", \"N\")","v":{"$error":"#N/A"}}]
[]
[null,null,null,null,null,null,{"$f":"IF(H36=6,\"L6\",\"NOL6\")","v":"NOL6"}]

{"sheet":"DOCUMENTACION DEFINITIVA","index":5,"n_rows":66,"n_cols":13,"rows_kept":66,"cut":false,"hidden":true,"merged":[]}
[]
[]
[null,null,"ARTÍCULO","Nº DOCUMENTO","DOCUMENTO","MODO TRAMITACIÓN","CATEGORIA","MODALIDAD2","MODALIDAD"]
[null,{"$f":"LISTADOC[[#This Row],[CATEGORIA]]","v":{"$error":"#N/A"}},{"$f":"'DOCUMENTACIÓN A TRAMITAR'!C7","v":"11.2.b"},{"$f":"'DOCUMENTACIÓN A TRAMITAR'!D7","v":2},{"$f":"'DOCUMENTACIÓN A TRAMITAR'!E7","v":"Memoria técnica que acredite y justifique de forma adecuada, como mínimo, los datos aportados en el apartado 6.3. de la solicitud de ayuda del modelo establecido en el Anexo II del presente decreto."},{"$f":"'DOCUMENTACIÓN A TRAMITAR'!F7","v":"SI"},{"$f":"'DOCUMENTACIÓN A TRAMITAR'!G7","v":{"$error":"#N/A"}},{"$f":"'DOCUMENTACIÓN A TRAMITAR'!H7","v":"A"},{"$f":"VLOOKUP(LISTADOC[[#This Row],[MODALIDAD2]],$L$63:$M$66,2,FALSE)","v":"REQUIERE ADJUNTAR DOCUMENTO"}]
[null,{"$f":"LISTADOC[[#This Row],[CATEGORIA]]","v":{"$error":"#N/A"}},{"$f":"'DOCUMENTACIÓN A TRAMITAR'!C8","v":"11.2.c"},{"$f":"'DOCUMENTACIÓN A TRAMITAR'!D8","v":3},{"$f":"'DOCUMENTACIÓN A TRAMITAR'!E8","v":"Presupuesto de la empresa o empresas que realizarán la ejecución de las actuaciones, suficientemente desglosado por partidas y precios unitarios, de fecha posterior al 30 de junio de 2021. En el caso de que los solicitantes de las ayudas queden sujetos a normativa de contratación pública, esta documentación podrá sustituirse por el borrador de los pliegos de licitación correspondientes."},{"$f":"'DOCUMENTACIÓN A TRAMITAR'!F8","v":"SI"},{"$f":"'DOCUMENTACIÓN A TRAMITAR'!G8","v":{"$error":"#N/A"}},{"$f":"'DOCUMENTACIÓN A TRAMITAR'!H8","v":"A"},{"$f":"VLOOKUP(LISTADOC[[#This Row],[MODALIDAD2]],$L$63:$M$66,2,FALSE)","v":"REQUIERE ADJUNTAR DOCUMENTO"}]
[null,{"$f":"LISTADOC[[#This Row],[CATEGORIA]]","v":{"$error":"#N/A"}},{"$f":"'DOCUMENTACIÓN A TRAMITAR'!C11","v":"11.2.f"},{"$f":"'DOCUMENTACIÓN A TRAMITAR'!D11","v":6},{"$f":"'DOCUMENTACIÓN A TRAMITAR'!E11","v":"Declaración responsable del solicitante de hallarse al corriente en el pago de obligaciones por reintegro de subvenciones."},{"$f":"'DOCUMENTACIÓN A TRAMITAR'!F11","v":"NO (Incluido en Anexo II)"},{"$f":"'DOCUMENTACIÓN A TRAMITAR'!G11","v":{"$error":"#N/A"}},{"$f":"'DOCUMENTACIÓN A TRAMITAR'!H11","v":"B"},{"$f":"VLOOKUP(LISTADOC[[#This Row],[MODALIDAD2]],$L$63:$M$66,2,FALSE)","v":"SE RELLENA ANEXO II"}]
[null,{"$f":"LISTADOC[[#This Row],[CATEGORIA]]","v":{"$error":"#N/A"}},{"$f":"'DOCUMENTACIÓN A TRAMITAR'!C12","v":"11.2.g"},{"$f":"'DOCUMENTACIÓN A TRAMITAR'!D12","v":7},{"$f":"'DOCUMENTACIÓN A TRAMITAR'!E12","v":"Declaración responsable del solicitante, indicando que no ha solicitado o recibido otras ayudas para la misma actuación o finalidad."},{"$f":"'DOCUMENTACIÓN A TRAMITAR'!F12","v":"NO (Incluido en Anexo II)"},{"$f":"'DOCUMENTACIÓN A TRAMITAR'!G12","v":{"$error":"#N/A"}},{"$f":"'DOCUMENTACIÓN A TRAMITAR'!H12","v":"B"},{"$f":"VLOOKUP(LISTADOC[[#This Row],[MODALIDAD2]],$L$63:$M$66,2,FALSE)","v":"SE RELLENA ANEXO II"}]
[null,{"$f":"LISTADOC[[#This Row],[CATEGORIA]]","v":{"$error":"#N/A"}},{"$f":"'DOCUMENTACIÓN A TRAMITAR'!C18","v":"11.3.1"},{"$f":"'DOCUMENTACIÓN A TRAMITAR'!D18","v":12},{"$f":"'DOCUMENTACIÓN A TRAMITAR'!E18","v":"Declaración responsable que acredita que el sistema de almacenamiento no estará directamente conectado a red, sino que formará parte de la instalación de autoconsumo."},{"$f":"'DOCUMENTACIÓN A TRAMITAR'!F18","v":"SI"},{"$f":"'DOCUMENTACIÓN A TRAMITAR'!G18","v":{"$error":"#N/A"}},{"$f":"'DOCUMENTACIÓN A TRAMITAR'!H18","v":"A"},{"$f":"VLOOKUP(LISTADOC[[#This Row],[MODALIDAD2]],$L$63:$M$66,2,FALSE)","v":"REQUIERE ADJUNTAR DOCUMENTO"}]
[null,{"$f":"LISTADOC[[#This Row],[CATEGORIA]]","v":{"$error":"#N/A"}},{"$f":"'DOCUMENTACIÓN A TRAMITAR'!C19","v":"11.3.2"},{"$f":"'DOCUMENTACIÓN A TRAMITAR'!D19","v":13},{"$f":"'DOCUMENTACIÓN A TRAMITAR'!E19","v":"Declaración responsable del solicitante o representante legal, en su caso, manifestando el grupo donde queda encuadrada su actividad según la clasificación del CNAE."},{"$f":"'DOCUMENTACIÓN A TRAMITAR'!F19","v":"NO (Incluido en Anexo II)"},{"$f":"'DOCUMENTACIÓN A TRAMITAR'!G19","v":{"$error":"#N/A"}},{"$f":"'DOCUMENTACIÓN A TRAMITAR'!H19","v":"B"},{"$f":"VLOOKUP(LISTADOC[[#This Row],[MODALIDAD2]],$L$63:$M$66,2,FALSE)","v":"SE RELLENA ANEXO II"}]
[null,{"$f":"LISTADOC[[#This Row],[CATEGORIA]]","v":{"$error":"#N/A"}},{"$f":"'DOCUMENTACIÓN A TRAMITAR'!C49","v":"11.4.6.b"},{"$f":"'DOCUMENTACIÓN A TRAMITAR'!D49","v":34},{"$f":"'DOCUMENTACIÓN A TRAMITAR'!E49","v":"Composición, estructura y régimen de funcionamiento y acuerdos de los órganos de gobierno de la entidad, para acreditar que todos los socios o miembros son personas físicas, pymes o autoridades locales, incluidos los municipios."},{"$f":"'DOCUMENTACIÓN A TRAMITAR'!F49","v":"SI"},{"$f":"'DOCUMENTACIÓN A TRAMITAR'!G49","v":{"$error":"#N/A"}},{"$f":"'DOCUMENTACIÓN A TRAMITAR'!H49","v":"A"},{"$f":"VLOOKUP(LISTADOC[[#This Row],[MODALIDAD2]],$L$63:$M$66,2,FALSE)","v":"REQUIERE ADJUNTAR DOCUMENTO"}]
[null,{"$f":"LISTADOC[[#This Row],[CATEGORIA]]","v":{"$error":"#N/A"}},{"$f":"'DOCUMENTACIÓN A TRAMITAR'!C50","v":"11.4.6.b"},{"$f":"'DOCUMENTACIÓN A TRAMITAR'!D50","v":35},{"$f":"'DOCUMENTACIÓN A TRAMITAR'!E50","v":"Declaración responsable incluida en el (Anexo IV)."},{"$f":"'DOCUMENTACIÓN A TRAMITAR'!F50","v":"SI"},{"$f":"'DOCUMENTACIÓN A TRAMITAR'!G50","v":{"$error":"#N/A"}},{"$f":"'DOCUMENTACIÓN A TRAMITAR'!H50","v":"A"},{"$f":"VLOOKUP(LISTADOC[[#This Row],[MODALIDAD2]],$L$63:$M$66,2,FALSE)","v":"REQUIERE ADJUNTAR DOCUMENTO"}]
[null,{"$f":"LISTADOC[[#This Row],[CATEGORIA]]","v":{"$error":"#N/A"}},{"$f":"'DOCUMENTACIÓN A TRAMITAR'!C51","v":"11.4.6.c"},{"$f":"'DOCUMENTACIÓN A TRAMITAR'!D51","v":36},{"$f":"'DOCUMENTACIÓN A TRAMITAR'!E51","v":"Certificado de empadronamiento para la persona física situada a mayor distancia de la dirección del proyecto presentado, y/o tarjeta NIF donde conste la dirección social para las pymes, socios o miembros de la misma."},{"$f":"'DOCUMENTACIÓN A TRAMITAR'!F51","v":"SI"},{"$f":"'DOCUMENTACIÓN A TRAMITAR'!G51","v":{"$error":"#N/A"}},{"$f":"'DOCUMENTACIÓN A TRAMITAR'!H51","v":"A"},{"$f":"VLOOKUP(LISTADOC[[#This Row],[MODALIDAD2]],$L$63:$M$66,2,FALSE)","v":"REQUIERE ADJUNTAR DOCUMENTO"}]
[null,{"$f":"LISTADOC[[#This Row],[CATEGORIA]]","v":{"$error":"#N/A"}},{"$f":"'DOCUMENTACIÓN A TRAMITAR'!C52","v":"11.4.6.c"},{"$f":"'DOCUMENTACIÓN A TRAMITAR'!D52","v":37},{"$f":"'DOCUMENTACIÓN A TRAMITAR'!E52","v":"Mapa a escala de todas las ubicaciones todos los socios o miembros de la comunidad de energías renovable, debiendo quedar todos circunscritos dentro de una circunferencia de radio inferior o igual a veinticinco kilómetros con centro en la dirección del proyecto presentado."},{"$f":"'DOCUMENTACIÓN A TRAMITAR'!F52","v":"SI"},{"$f":"'DOCUMENTACIÓN A TRAMITAR'!G52","v":{"$error":"#N/A"}},{"$f":"'DOCUMENTACIÓN A TRAMITAR'!H52","v":"A"},{"$f":"VLOOKUP(LISTADOC[[#This Row],[MODALIDAD2]],$L$63:$M$66,2,FALSE)","v":"REQUIERE ADJUNTAR DOCUMENTO"}]
[null,{"$f":"LISTADOC[[#This Row],[CATEGORIA]]","v":{"$error":"#N/A"}},{"$f":"'DOCUMENTACIÓN A TRAMITAR'!C53","v":"11.4.6.d"},{"$f":"'DOCUMENTACIÓN A TRAMITAR'!D53","v":38},{"$f":"'DOCUMENTACIÓN A TRAMITAR'!E53","v":"Copia de los estatutos donde quede debidamente justificado que su finalidad primordial sea proporcionar beneficios medioambientales, económicos o sociales."},{"$f":"'DOCUMENTACIÓN A TRAMITAR'!F53","v":"SI"},{"$f":"'DOCUMENTACIÓN A TRAMITAR'!G53","v":{"$error":"#N/A"}},{"$f":"'DOCUMENTACIÓN A TRAMITAR'!H53","v":"A"},{"$f":"VLOOKUP(LISTADOC[[#This Row],[MODALIDAD2]],$L$63:$M$66,2,FALSE)","v":"REQUIERE ADJUNTAR DOCUMENTO"}]
[null,{"$f":"LISTADOC[[#This Row],[CATEGORIA]]","v":{"$error":"#N/A"}},{"$f":"'DOCUMENTACIÓN A TRAMITAR'!C54","v":"11.4.6.e"},{"$f":"'DOCUMENTACIÓN A TRAMITAR'!D54","v":39},{"$f":"'DOCUMENTACIÓN A TRAMITAR'!E54","v":"Acuerdo de la reunión donde se apruebe la ejecución de las actuaciones, se nombre a uno de sus socios como representante, a los efectos de la presentación, seguimiento de la solicitud de ayudas y cumplimiento de las obligaciones que les pudiera corresponder a los mismos. También deberá quedar contemplado en el acuerdo el número de cuenta a la que se hará el ingreso de la subvención en caso de corresponder la misma, debiendo los titulares de dicha cuenta formar parte de la comunidad. Este representante será el encargado de efectuar y justificar la inversión objeto de ayuda."},{"$f":"'DOCUMENTACIÓN A TRAMITAR'!F54","v":"SI"},{"$f":"'DOCUMENTACIÓN A TRAMITAR'!G54","v":{"$error":"#N/A"}},{"$f":"'DOCUMENTACIÓN A TRAMITAR'!H54","v":"A"},{"$f":"VLOOKUP(LISTADOC[[#This Row],[MODALIDAD2]],$L$63:$M$66,2,FALSE)","v":"REQUIERE ADJUNTAR DOCUMENTO"}]
[null,{"$f":"LISTADOC[[#This Row],[CATEGORIA]]","v":{"$error":"#N/A"}},{"$f":"'DOCUMENTACIÓN A TRAMITAR'!C6","v":"11.2.a"},{"$f":"'DOCUMENTACIÓN A TRAMITAR'!D6","v":1},{"$f":"'DOCUMENTACIÓN A TRAMITAR'!E6","v":"Escritura de apoderamiento o documento acreditativo de representación legal, conforme el artículo 5 de la Ley 39/2015, de 1 de octubre, del Procedimiento Administrativo Común de las Administraciones Públicas, únicamente en el caso de que el poder de representante legal se haya elevado a público ante notario con anterioridad al 5 de junio de 2014, o para fechas posteriores caso de que se oponga a su consulta."},{"$f":"'DOCUMENTACIÓN A TRAMITAR'!F6","v":"SI"},{"$f":"'DOCUMENTACIÓN A TRAMITAR'!G6","v":{"$error":"#N/A"}},{"$f":"'DOCUMENTACIÓN A TRAMITAR'!H6","v":"A"},{"$f":"VLOOKUP(LISTADOC[[#This Row],[MODALIDAD2]],$L$63:$M$66,2,FALSE)","v":"REQUIERE ADJUNTAR DOCUMENTO"}]
[null,{"$f":"LISTADOC[[#This Row],[CATEGORIA]]","v":{"$error":"#N/A"}},{"$f":"'DOCUMENTACIÓN A TRAMITAR'!C9","v":"11.2.d"},{"$f":"'DOCUMENTACIÓN A TRAMITAR'!D9","v":4},{"$f":"'DOCUMENTACIÓN A TRAMITAR'!E9","v":"Informe que incluya plan estratégico, justificación del cumplimiento de no causar daño significativo a ninguno de los objetivos medioambientales y memoria de residuo generado."},{"$f":"'DOCUMENTACIÓN A TRAMITAR'!F9","v":"SI"},{"$f":"'DOCUMENTACIÓN A TRAMITAR'!G9","v":{"$error":"#N/A"}},{"$f":"'DOCUMENTACIÓN A TRAMITAR'!H9","v":"A"},{"$f":"VLOOKUP(LISTADOC[[#This Row],[MODALIDAD2]],$L$63:$M$66,2,FALSE)","v":"REQUIERE ADJUNTAR DOCUMENTO"}]
[null,{"$f":"LISTADOC[[#This Row],[CATEGORIA]]","v":{"$error":"#N/A"}},{"$f":"'DOCUMENTACIÓN A TRAMITAR'!C13","v":"11.2.h"},{"$f":"'DOCUMENTACIÓN A TRAMITAR'!D13","v":8},{"$f":"'DOCUMENTACIÓN A TRAMITAR'!E13","v":"Se deberá presentar un certificado de residencia fiscal emitido por las autoridades competentes de su país de residencia."},{"$f":"'DOCUMENTACIÓN A TRAMITAR'!F13","v":"NO (Solo si se opone)"},{"$f":"'DOCUMENTACIÓN A TRAMITAR'!G13","v":{"$error":"#N/A"}},{"$f":"'DOCUMENTACIÓN A TRAMITAR'!H13","v":"D"},{"$f":"VLOOKUP(LISTADOC[[#This Row],[MODALIDAD2]],$L$63:$M$66,2,FALSE)","v":"SE DEBE ADJUNTAR EN CASO DE OPONERSE A COMPROBACION POR PARTE DE LA ADMINISTRACION"}]
[null,{"$f":"LISTADOC[[#This Row],[CATEGORIA]]","v":{"$error":"#N/A"}},{"$f":"'DOCUMENTACIÓN A TRAMITAR'!C14","v":"11.2.i"},{"$f":"'DOCUMENTACIÓN A TRAMITAR'!D14","v":9},{"$f":"'DOCUMENTACIÓN A TRAMITAR'!E14","v":"Certificados de estar al corriente en el cumplimiento de las obligaciones fiscales y tributarias del interesado con la Hacienda autonómica y con la Seguridad Social. Solo será necesaria su aportación cuando el solicitante no haya autorizado o se oponga expresamente a su consulta."},{"$f":"'DOCUMENTACIÓN A TRAMITAR'!F14","v":"NO (Solo si se opone)"},{"$f":"'DOCUMENTACIÓN A TRAMITAR'!G14","v":{"$error":"#N/A"}},{"$f":"'DOCUMENTACIÓN A TRAMITAR'!H14","v":"D"},{"$f":"VLOOKUP(LISTADOC[[#This Row],[MODALIDAD2]],$L$63:$M$66,2,FALSE)","v":"SE DEBE ADJUNTAR EN CASO DE OPONERSE A COMPROBACION POR PARTE DE LA ADMINISTRACION"}]
[null,{"$f":"LISTADOC[[#This Row],[CATEGORIA]]","v":{"$error":"#N/A"}},{"$f":"'DOCUMENTACIÓN A TRAMITAR'!C15","v":"11.2.j"},{"$f":"'DOCUMENTACIÓN A TRAMITAR'!D15","v":10},{"$f":"'DOCUMENTACIÓN A TRAMITAR'!E15","v":"Certificado de estar al corriente con la Hacienda estatal. Solo será necesaria su aportación cuando el solicitante no haya autorizado o se oponga expresamente a su consulta."},{"$f":"'DOCUMENTACIÓN A TRAMITAR'!F15","v":"NO (Solo si se opone)"},{"$f":"'DOCUMENTACIÓN A TRAMITAR'!G15","v":{"$error":"#N/A"}},{"$f":"'DOCUMENTACIÓN A TRAMITAR'!H15","v":"D"},{"$f":"VLOOKUP(LISTADOC[[#This Row],[MODALIDAD2]],$L$63:$M$66,2,FALSE)","v":"SE DEBE ADJUNTAR EN CASO DE OPONERSE A COMPROBACION POR PARTE DE LA ADMINISTRACION"}]
[null,{"$f":"LISTADOC[[#This Row],[CATEGORIA]]","v":{"$error":"#N/A"}},{"$f":"'DOCUMENTACIÓN A TRAMITAR'!C16","v":"7.2.o"},{"$f":"'DOCUMENTACIÓN A TRAMITAR'!D16","v":11},{"$f":"'DOCUMENTACIÓN A TRAMITAR'!E16","v":"Declaración de vendedor y certificación de tasador para costes de equipos de segunda mano."},{"$f":"'DOCUMENTACIÓN A TRAMITAR'!F16","v":"SI"},{"$f":"'DOCUMENTACIÓN A TRAMITAR'!G16","v":{"$error":"#N/A"}},{"$f":"'DOCUMENTACIÓN A TRAMITAR'!H16","v":"A"},{"$f":"VLOOKUP(LISTADOC[[#This Row],[MODALIDAD2]],$L$63:$M$66,2,FALSE)","v":"REQUIERE ADJUNTAR DOCUMENTO"}]
[null,{"$f":"LISTADOC[[#This Row],[CATEGORIA]]","v":{"$error":"#N/A"}},{"$f":"'DOCUMENTACIÓN A TRAMITAR'!C10","v":"11.2.e"},{"$f":"'DOCUMENTACIÓN A TRAMITAR'!D10","v":5},{"$f":"'DOCUMENTACIÓN A TRAMITAR'!E10","v":"Declaración responsable de promotor de proyecto de no afectación medioambiental, si el proyecto no se haya sometido a previa autorización administrativa, ni a declaración responsable o comunicación previa a ninguna administración, y que no se encuentre en ninguno de los supuestos de evaluación de impacto ambiental obligatoria contemplados en el artículo 7 de la Ley 21/2013 de evaluación ambiental."},{"$f":"'DOCUMENTACIÓN A TRAMITAR'!F10","v":"SI"},{"$f":"'DOCUMENTACIÓN A TRAMITAR'!G10","v":{"$error":"#N/A"}},{"$f":"'DOCUMENTACIÓN A TRAMITAR'!H10","v":"A"},{"$f":"VLOOKUP(LISTADOC[[#This Row],[MODALIDAD2]],$L$63:$M$66,2,FALSE)","v":"REQUIERE ADJUNTAR DOCUMENTO"}]
[null,{"$f":"LISTADOC[[#This Row],[CATEGORIA]]","v":{"$error":"#N/A"}},{"$f":"'DOCUMENTACIÓN A TRAMITAR'!C48","v":"11.4.6.a"},{"$f":"'DOCUMENTACIÓN A TRAMITAR'!D48","v":33},{"$f":"'DOCUMENTACIÓN A TRAMITAR'!E48","v":"NIF de la entidad jurídica que gestione la comunidad, en el caso de que la persona interesada se oponga expresamente en el apartado correspondiente del Anexo II relativo a la solicitud de ayuda, a que el órgano gestor lo recabe de oficio. Dicha entidad será la considerada como beneficiaria de la ayuda."},{"$f":"'DOCUMENTACIÓN A TRAMITAR'!F48","v":"NO (Solo si se opone)"},{"$f":"'DOCUMENTACIÓN A TRAMITAR'!G48","v":{"$error":"#N/A"}},{"$f":"'DOCUMENTACIÓN A TRAMITAR'!H48","v":"D"},{"$f":"VLOOKUP(LISTADOC[[#This Row],[MODALIDAD2]],$L$63:$M$66,2,FALSE)","v":"SE DEBE ADJUNTAR EN CASO DE OPONERSE A COMPROBACION POR PARTE DE LA ADMINISTRACION"}]
[null,{"$f":"LISTADOC[[#This Row],[CATEGORIA]]","v":{"$error":"#N/A"}},{"$f":"'DOCUMENTACIÓN A TRAMITAR'!C34","v":"11.4.2.b"},{"$f":"'DOCUMENTACIÓN A TRAMITAR'!D34","v":25},{"$f":"'DOCUMENTACIÓN A TRAMITAR'!E34","v":"Escrituras de constitución de la empresa o estatutos vigentes de la misma, debidamente inscritos, en su caso, en los registros públicos correspondientes."},{"$f":"'DOCUMENTACIÓN A TRAMITAR'!F34","v":"SI"},{"$f":"'DOCUMENTACIÓN A TRAMITAR'!G34","v":{"$error":"#N/A"}},{"$f":"'DOCUMENTACIÓN A TRAMITAR'!H34","v":"A"},{"$f":"VLOOKUP(LISTADOC[[#This Row],[MODALIDAD2]],$L$63:$M$66,2,FALSE)","v":"REQUIERE ADJUNTAR DOCUMENTO"}]
[null,{"$f":"LISTADOC[[#This Row],[CATEGORIA]]","v":{"$error":"#N/A"}},{"$f":"'DOCUMENTACIÓN A TRAMITAR'!C35","v":"11.4.2.c"},{"$f":"'DOCUMENTACIÓN A TRAMITAR'!D35","v":26},{"$f":"'DOCUMENTACIÓN A TRAMITAR'!E35","v":"Declaración responsable en la que figure la condición de gran empresa, mediana o pequeña empresa."},{"$f":"'DOCUMENTACIÓN A TRAMITAR'!F35","v":"NO (Incluido en Anexo II)"},{"$f":"'DOCUMENTACIÓN A TRAMITAR'!G35","v":{"$error":"#N/A"}},{"$f":"'DOCUMENTACIÓN A TRAMITAR'!H35","v":"B"},{"$f":"VLOOKUP(LISTADOC[[#This Row],[MODALIDAD2]],$L$63:$M$66,2,FALSE)","v":"SE RELLENA ANEXO II"}]
[null,{"$f":"LISTADOC[[#This Row],[CATEGORIA]]","v":{"$error":"#N/A"}},{"$f":"'DOCUMENTACIÓN A TRAMITAR'!C40","v":"11.4.9"},{"$f":"'DOCUMENTACIÓN A TRAMITAR'!D40","v":29},{"$f":"'DOCUMENTACIÓN A TRAMITAR'!E40","v":"Documento de colaboración o instrumento análogo formalizado por el representante debidamente facultado que especifique la aceptación y designación expresa del representante único, y donde conste expresamente los compromisos de ejecución asumidos por cada miembro, así como el importe de la ayuda a aplicar a cada uno de ellos."},{"$f":"'DOCUMENTACIÓN A TRAMITAR'!F40","v":"SI"},{"$f":"'DOCUMENTACIÓN A TRAMITAR'!G40","v":{"$error":"#N/A"}},{"$f":"'DOCUMENTACIÓN A TRAMITAR'!H40","v":"A"},{"$f":"VLOOKUP(LISTADOC[[#This Row],[MODALIDAD2]],$L$63:$M$66,2,FALSE)","v":"REQUIERE ADJUNTAR DOCUMENTO"}]
[null,{"$f":"LISTADOC[[#This Row],[CATEGORIA]]","v":{"$error":"#N/A"}},{"$f":"'DOCUMENTACIÓN A TRAMITAR'!C66","v":"11.4.8.a"},{"$f":"'DOCUMENTACIÓN A TRAMITAR'!D66","v":47},{"$f":"'DOCUMENTACIÓN A TRAMITAR'!E66","v":"Copia del acta de constitución de la comunidad de bienes."},{"$f":"'DOCUMENTACIÓN A TRAMITAR'!F66","v":"SI"},{"$f":"'DOCUMENTACIÓN A TRAMITAR'!G66","v":{"$error":"#N/A"}},{"$f":"'DOCUMENTACIÓN A TRAMITAR'!H66","v":"A"},{"$f":"VLOOKUP(LISTADOC[[#This Row],[MODALIDAD2]],$L$63:$M$66,2,FALSE)","v":"REQUIERE ADJUNTAR DOCUMENTO"}]
[null,{"$f":"LISTADOC[[#This Row],[CATEGORIA]]","v":{"$error":"#N/A"}},{"$f":"'DOCUMENTACIÓN A TRAMITAR'!C67","v":"11.4.8.b"},{"$f":"'DOCUMENTACIÓN A TRAMITAR'!D67","v":48},{"$f":"'DOCUMENTACIÓN A TRAMITAR'!E67","v":"Declaración responsable del solicitante donde conste si la comunidad de bienes ejerce actividad económica."},{"$f":"'DOCUMENTACIÓN A TRAMITAR'!F67","v":"NO (Incluido en Anexo II)"},{"$f":"'DOCUMENTACIÓN A TRAMITAR'!G67","v":{"$error":"#N/A"}},{"$f":"'DOCUMENTACIÓN A TRAMITAR'!H67","v":"B"},{"$f":"VLOOKUP(LISTADOC[[#This Row],[MODALIDAD2]],$L$63:$M$66,2,FALSE)","v":"SE RELLENA ANEXO II"}]
[null,{"$f":"LISTADOC[[#This Row],[CATEGORIA]]","v":{"$error":"#N/A"}},{"$f":"'DOCUMENTACIÓN A TRAMITAR'!C68","v":"11.4.8.c"},{"$f":"'DOCUMENTACIÓN A TRAMITAR'!D68","v":49},{"$f":"'DOCUMENTACIÓN A TRAMITAR'!E68","v":"Declaración de comuneros del Anexo III."},{"$f":"'DOCUMENTACIÓN A TRAMITAR'!F68","v":"SI"},{"$f":"'DOCUMENTACIÓN A TRAMITAR'!G68","v":{"$error":"#N/A"}},{"$f":"'DOCUMENTACIÓN A TRAMITAR'!H68","v":"A"},{"$f":"VLOOKUP(LISTADOC[[#This Row],[MODALIDAD2]],$L$63:$M$66,2,FALSE)","v":"REQUIERE ADJUNTAR DOCUMENTO"}]
[null,{"$f":"LISTADOC[[#This Row],[CATEGORIA]]","v":{"$error":"#N/A"}},{"$f":"'DOCUMENTACIÓN A TRAMITAR'!C33","v":"11.4.2.a"},{"$f":"'DOCUMENTACIÓN A TRAMITAR'!D33","v":24},{"$f":"'DOCUMENTACIÓN A TRAMITAR'!E33","v":"Certificado expedido por la Agencia Estatal de la Administración Tributaria relativo a las altas y bajas en el impuesto sobre actividades económicas, cuando exista oposición expresa."},{"$f":"'DOCUMENTACIÓN A TRAMITAR'!F33","v":"NO (Solo si se opone)"},{"$f":"'DOCUMENTACIÓN A TRAMITAR'!G33","v":{"$error":"#N/A"}},{"$f":"'DOCUMENTACIÓN A TRAMITAR'!H33","v":"D"},{"$f":"VLOOKUP(LISTADOC[[#This Row],[MODALIDAD2]],$L$63:$M$66,2,FALSE)","v":"SE DEBE ADJUNTAR EN CASO DE OPONERSE A COMPROBACION POR PARTE DE LA ADMINISTRACION"}]
[null,{"$f":"LISTADOC[[#This Row],[CATEGORIA]]","v":{"$error":"#N/A"}},{"$f":"'DOCUMENTACIÓN A TRAMITAR'!C20","v":"11.3.3"},{"$f":"'DOCUMENTACIÓN A TRAMITAR'!D20","v":14},{"$f":"'DOCUMENTACIÓN A TRAMITAR'!E20","v":"Declaración de exención de IVA por no ser recuperable."},{"$f":"'DOCUMENTACIÓN A TRAMITAR'!F20","v":"NO (Incluido en Anexo II)"},{"$f":"'DOCUMENTACIÓN A TRAMITAR'!G20","v":{"$error":"#N/A"}},{"$f":"'DOCUMENTACIÓN A TRAMITAR'!H20","v":"B"},{"$f":"VLOOKUP(LISTADOC[[#This Row],[MODALIDAD2]],$L$63:$M$66,2,FALSE)","v":"SE RELLENA ANEXO II"}]
[null,{"$f":"LISTADOC[[#This Row],[CATEGORIA]]","v":{"$error":"#N/A"}},{"$f":"'DOCUMENTACIÓN A TRAMITAR'!C61","v":"11.4.5.1"},{"$f":"'DOCUMENTACIÓN A TRAMITAR'!D61","v":43},{"$f":"'DOCUMENTACIÓN A TRAMITAR'!E61","v":"Escritura de constitución de la comunidad de propietarios o acta de la reunión en la que se constituyó como tal."},{"$f":"'DOCUMENTACIÓN A TRAMITAR'!F61","v":"SI"},{"$f":"'DOCUMENTACIÓN A TRAMITAR'!G61","v":{"$error":"#N/A"}},{"$f":"'DOCUMENTACIÓN A TRAMITAR'!H61","v":"A"},{"$f":"VLOOKUP(LISTADOC[[#This Row],[MODALIDAD2]],$L$63:$M$66,2,FALSE)","v":"REQUIERE ADJUNTAR DOCUMENTO"}]
[null,{"$f":"LISTADOC[[#This Row],[CATEGORIA]]","v":{"$error":"#N/A"}},{"$f":"'DOCUMENTACIÓN A TRAMITAR'!C62","v":"11.4.5.2"},{"$f":"'DOCUMENTACIÓN A TRAMITAR'!D62","v":44},{"$f":"'DOCUMENTACIÓN A TRAMITAR'!E62","v":"Acta de la reunión en la que se nombró al presidente."},{"$f":"'DOCUMENTACIÓN A TRAMITAR'!F62","v":"SI"},{"$f":"'DOCUMENTACIÓN A TRAMITAR'!G62","v":{"$error":"#N/A"}},{"$f":"'DOCUMENTACIÓN A TRAMITAR'!H62","v":"A"},{"$f":"VLOOKUP(LISTADOC[[#This Row],[MODALIDAD2]],$L$63:$M$66,2,FALSE)","v":"REQUIERE ADJUNTAR DOCUMENTO"}]
[null,{"$f":"LISTADOC[[#This Row],[CATEGORIA]]","v":{"$error":"#N/A"}},{"$f":"'DOCUMENTACIÓN A TRAMITAR'!C63","v":"11.4.5.3"},{"$f":"'DOCUMENTACIÓN A TRAMITAR'!D63","v":45},{"$f":"'DOCUMENTACIÓN A TRAMITAR'!E63","v":"Acta de la reunión en la que conste el acuerdo de la comunidad para solicitar la ayuda, adoptado con el quórum legalmente establecido."},{"$f":"'DOCUMENTACIÓN A TRAMITAR'!F63","v":"SI"},{"$f":"'DOCUMENTACIÓN A TRAMITAR'!G63","v":{"$error":"#N/A"}},{"$f":"'DOCUMENTACIÓN A TRAMITAR'!H63","v":"A"},{"$f":"VLOOKUP(LISTADOC[[#This Row],[MODALIDAD2]],$L$63:$M$66,2,FALSE)","v":"REQUIERE ADJUNTAR DOCUMENTO"}]
[null,{"$f":"LISTADOC[[#This Row],[CATEGORIA]]","v":{"$error":"#N/A"}},{"$f":"'DOCUMENTACIÓN A TRAMITAR'!C64","v":"11.4.5.4"},{"$f":"'DOCUMENTACIÓN A TRAMITAR'!D64","v":46},{"$f":"'DOCUMENTACIÓN A TRAMITAR'!E64","v":"Declaración de comuneros del Anexo III."},{"$f":"'DOCUMENTACIÓN A TRAMITAR'!F64","v":"SI"},{"$f":"'DOCUMENTACIÓN A TRAMITAR'!G64","v":{"$error":"#N/A"}},{"$f":"'DOCUMENTACIÓN A TRAMITAR'!H64","v":"A"},{"$f":"VLOOKUP(LISTADOC[[#This Row],[MODALIDAD2]],$L$63:$M$66,2,FALSE)","v":"REQUIERE ADJUNTAR DOCUMENTO"}]
[null,{"$f":"LISTADOC[[#This Row],[CATEGORIA]]","v":{"$error":"#N/A"}},{"$f":"'DOCUMENTACIÓN A TRAMITAR'!C22","v":"11.3.5.a.1"},{"$f":"'DOCUMENTACIÓN A TRAMITAR'!D22","v":16},{"$f":"'DOCUMENTACIÓN A TRAMITAR'!E22","v":"En instalaciones de Biomasa, se aportará proyecto o memoria técnica, de acuerdo con lo establecido en el RITE, suscrita por técnico competente o empresa instaladora, según corresponda."},{"$f":"'DOCUMENTACIÓN A TRAMITAR'!F22","v":"SI"},{"$f":"'DOCUMENTACIÓN A TRAMITAR'!G22","v":{"$error":"#N/A"}},{"$f":"'DOCUMENTACIÓN A TRAMITAR'!H22","v":"A"},{"$f":"VLOOKUP(LISTADOC[[#This Row],[MODALIDAD2]],$L$63:$M$66,2,FALSE)","v":"REQUIERE ADJUNTAR DOCUMENTO"}]
[null,{"$f":"LISTADOC[[#This Row],[CATEGORIA]]","v":{"$error":"#N/A"}},{"$f":"'DOCUMENTACIÓN A TRAMITAR'!C23","v":"11.3.5.a.2"},{"$f":"'DOCUMENTACIÓN A TRAMITAR'!D23","v":17},{"$f":"'DOCUMENTACIÓN A TRAMITAR'!E23","v":"Declaración de que todos los combustibles que se van a utilizar tienen un valor por defecto de reducción de emisiones de GEI del 80 % o superior según los indicados para producción de calor establecidos en el Anexo VI de la Directiva (UE) 2018/2001 del Parlamento Europeo y del Consejo, de 11 de diciembre de 2018, relativa al fomento del uso de energía procedente de fuentes renovables, teniendo en cuenta el sistema de producción y resto de condiciones que determinan dicho valor por defecto, indicando la descripción del combustible o de los combustibles y el valor o los valores por defecto."},{"$f":"'DOCUMENTACIÓN A TRAMITAR'!F23","v":"SI"},{"$f":"'DOCUMENTACIÓN A TRAMITAR'!G23","v":{"$error":"#N/A"}},{"$f":"'DOCUMENTACIÓN A TRAMITAR'!H23","v":"A"},{"$f":"VLOOKUP(LISTADOC[[#This Row],[MODALIDAD2]],$L$63:$M$66,2,FALSE)","v":"REQUIERE ADJUNTAR DOCUMENTO"}]
[null,{"$f":"LISTADOC[[#This Row],[CATEGORIA]]","v":{"$error":"#N/A"}},{"$f":"'DOCUMENTACIÓN A TRAMITAR'!C24","v":"11.3.5.a.3"},{"$f":"'DOCUMENTACIÓN A TRAMITAR'!D24","v":18},{"$f":"'DOCUMENTACIÓN A TRAMITAR'!E24","v":"Una acreditación por parte del fabricante del equipo del cumplimiento de los requisitos de eficiencia energética estacional y emisiones para el combustible que se vaya a utilizar, que no podrán ser menos exigentes que los definidos en el Reglamento de Ecodiseño en vigor (según corresponda, Reglamento (UE) 2015/1185 de la Comisión o Reglamento (UE) 2015/1189 de la Comisión)."},{"$f":"'DOCUMENTACIÓN A TRAMITAR'!F24","v":"SI"},{"$f":"'DOCUMENTACIÓN A TRAMITAR'!G24","v":{"$error":"#N/A"}},{"$f":"'DOCUMENTACIÓN A TRAMITAR'!H24","v":"A"},{"$f":"VLOOKUP(LISTADOC[[#This Row],[MODALIDAD2]],$L$63:$M$66,2,FALSE)","v":"REQUIERE ADJUNTAR DOCUMENTO"}]
[null,{"$f":"LISTADOC[[#This Row],[CATEGORIA]]","v":{"$error":"#N/A"}},{"$f":"'DOCUMENTACIÓN A TRAMITAR'!C25","v":"11.3.5.a.3"},{"$f":"'DOCUMENTACIÓN A TRAMITAR'!D25","v":19},{"$f":"'DOCUMENTACIÓN A TRAMITAR'!E25","v":"Declaración por parte del beneficiario comprometiéndose a mantener, durante un plazo de cinco años, un registro documental suficiente que permita acreditar que el combustible empleado en el equipo dispone de un certificado otorgado por una entidad independiente acreditada relativo al cumplimiento de la clase A1 según lo establecido en la norma UNE-EN-ISO 17225-2, de la clase 1 de la norma UNE-EN-ISO 17225-4, de la clase A1 de la norma 164003 o de la clase A1 de la norma 164004."},{"$f":"'DOCUMENTACIÓN A TRAMITAR'!F25","v":"SI"},{"$f":"'DOCUMENTACIÓN A TRAMITAR'!G25","v":{"$error":"#N/A"}},{"$f":"'DOCUMENTACIÓN A TRAMITAR'!H25","v":"A"},{"$f":"VLOOKUP(LISTADOC[[#This Row],[MODALIDAD2]],$L$63:$M$66,2,FALSE)","v":"REQUIERE ADJUNTAR DOCUMENTO"}]
[null,{"$f":"LISTADOC[[#This Row],[CATEGORIA]]","v":{"$error":"#N/A"}},{"$f":"'DOCUMENTACIÓN A TRAMITAR'!C26","v":"11.3.5.b"},{"$f":"'DOCUMENTACIÓN A TRAMITAR'!D26","v":20},{"$f":"'DOCUMENTACIÓN A TRAMITAR'!E26","v":"En instalaciones de geotermia, hidrotermia y aerotermia, donde la instalación necesite legalización, se aportará proyecto o memoria técnica, de acuerdo con lo establecido en el RITE, suscrita por técnico competente o empresa instaladora según corresponda."},{"$f":"'DOCUMENTACIÓN A TRAMITAR'!F26","v":"SI"},{"$f":"'DOCUMENTACIÓN A TRAMITAR'!G26","v":{"$error":"#N/A"}},{"$f":"'DOCUMENTACIÓN A TRAMITAR'!H26","v":"A"},{"$f":"VLOOKUP(LISTADOC[[#This Row],[MODALIDAD2]],$L$63:$M$66,2,FALSE)","v":"REQUIERE ADJUNTAR DOCUMENTO"}]
[null,{"$f":"LISTADOC[[#This Row],[CATEGORIA]]","v":{"$error":"#N/A"}},{"$f":"'DOCUMENTACIÓN A TRAMITAR'!C27","v":"11.3.5.c"},{"$f":"'DOCUMENTACIÓN A TRAMITAR'!D27","v":21},{"$f":"'DOCUMENTACIÓN A TRAMITAR'!E27","v":"Declaración responsable del beneficiario sobre la titularidad pública de las viviendas."},{"$f":"'DOCUMENTACIÓN A TRAMITAR'!F27","v":"SI"},{"$f":"'DOCUMENTACIÓN A TRAMITAR'!G27","v":{"$error":"#N/A"}},{"$f":"'DOCUMENTACIÓN A TRAMITAR'!H27","v":"A"},{"$f":"VLOOKUP(LISTADOC[[#This Row],[MODALIDAD2]],$L$63:$M$66,2,FALSE)","v":"REQUIERE ADJUNTAR DOCUMENTO"}]
[null,{"$f":"LISTADOC[[#This Row],[CATEGORIA]]","v":{"$error":"#N/A"}},{"$f":"'DOCUMENTACIÓN A TRAMITAR'!C21","v":"11.3.4"},{"$f":"'DOCUMENTACIÓN A TRAMITAR'!D21","v":15},{"$f":"'DOCUMENTACIÓN A TRAMITAR'!E21","v":"Declaración responsable de una producción anual de la cual se consume el 80 %."},{"$f":"'DOCUMENTACIÓN A TRAMITAR'!F21","v":"SI"},{"$f":"'DOCUMENTACIÓN A TRAMITAR'!G21","v":{"$error":"#N/A"}},{"$f":"'DOCUMENTACIÓN A TRAMITAR'!H21","v":"A"},{"$f":"VLOOKUP(LISTADOC[[#This Row],[MODALIDAD2]],$L$63:$M$66,2,FALSE)","v":"REQUIERE ADJUNTAR DOCUMENTO"}]
[null,{"$f":"LISTADOC[[#This Row],[CATEGORIA]]","v":{"$error":"#N/A"}},{"$f":"'DOCUMENTACIÓN A TRAMITAR'!C58","v":"11.4.10"},{"$f":"'DOCUMENTACIÓN A TRAMITAR'!D58","v":41},{"$f":"'DOCUMENTACIÓN A TRAMITAR'!E58","v":"Copia de documento que acredite estar inscritas en el registro correspondiente."},{"$f":"'DOCUMENTACIÓN A TRAMITAR'!F58","v":"SI"},{"$f":"'DOCUMENTACIÓN A TRAMITAR'!G58","v":{"$error":"#N/A"}},{"$f":"'DOCUMENTACIÓN A TRAMITAR'!H58","v":"A"},{"$f":"VLOOKUP(LISTADOC[[#This Row],[MODALIDAD2]],$L$63:$M$66,2,FALSE)","v":"REQUIERE ADJUNTAR DOCUMENTO"}]
[null,{"$f":"LISTADOC[[#This Row],[CATEGORIA]]","v":{"$error":"#N/A"}},{"$f":"'DOCUMENTACIÓN A TRAMITAR'!C59","v":"11.4.10"},{"$f":"'DOCUMENTACIÓN A TRAMITAR'!D59","v":42},{"$f":"'DOCUMENTACIÓN A TRAMITAR'!E59","v":"Declaración responsable que acredite la puesta a disposición de colectivos vulnerables de viviendas sociales, en su caso. (realizada por el solicitante)"},{"$f":"'DOCUMENTACIÓN A TRAMITAR'!F59","v":"SI"},{"$f":"'DOCUMENTACIÓN A TRAMITAR'!G59","v":{"$error":"#N/A"}},{"$f":"'DOCUMENTACIÓN A TRAMITAR'!H59","v":"A"},{"$f":"VLOOKUP(LISTADOC[[#This Row],[MODALIDAD2]],$L$63:$M$66,2,FALSE)","v":"REQUIERE ADJUNTAR DOCUMENTO"}]
[null,{"$f":"LISTADOC[[#This Row],[CATEGORIA]]","v":{"$error":"#N/A"}},{"$f":"'DOCUMENTACIÓN A TRAMITAR'!C44","v":"11.4.3"},{"$f":"'DOCUMENTACIÓN A TRAMITAR'!D44","v":31},{"$f":"'DOCUMENTACIÓN A TRAMITAR'!E44","v":"Certificación acreditativa de resolución o acuerdo adoptado por el órgano competente de la administración o entidad pública solicitante, por la que se apruebe la participación en el programa de incentivos correspondiente asumiendo los compromisos contenidos en el mismo."},{"$f":"'DOCUMENTACIÓN A TRAMITAR'!F44","v":"SI"},{"$f":"'DOCUMENTACIÓN A TRAMITAR'!G44","v":{"$error":"#N/A"}},{"$f":"'DOCUMENTACIÓN A TRAMITAR'!H44","v":"A"},{"$f":"VLOOKUP(LISTADOC[[#This Row],[MODALIDAD2]],$L$63:$M$66,2,FALSE)","v":"REQUIERE ADJUNTAR DOCUMENTO"}]
[null,{"$f":"LISTADOC[[#This Row],[CATEGORIA]]","v":{"$error":"#N/A"}},{"$f":"'DOCUMENTACIÓN A TRAMITAR'!C56","v":"11.4.12"},{"$f":"'DOCUMENTACIÓN A TRAMITAR'!D56","v":40},{"$f":"'DOCUMENTACIÓN A TRAMITAR'!E56","v":"Copia del convenio que recoja la designación de la administración o entidad pública como representante y beneficiario del derecho de cobro de la ayuda por parte de los propietarios a la entidad, así como la forma de recuperación de la inversión."},{"$f":"'DOCUMENTACIÓN A TRAMITAR'!F56","v":"SI"},{"$f":"'DOCUMENTACIÓN A TRAMITAR'!G56","v":{"$error":"#N/A"}},{"$f":"'DOCUMENTACIÓN A TRAMITAR'!H56","v":"A"},{"$f":"VLOOKUP(LISTADOC[[#This Row],[MODALIDAD2]],$L$63:$M$66,2,FALSE)","v":"REQUIERE ADJUNTAR DOCUMENTO"}]
[null,{"$f":"LISTADOC[[#This Row],[CATEGORIA]]","v":{"$error":"#N/A"}},{"$f":"'DOCUMENTACIÓN A TRAMITAR'!C46","v":"11.4.4"},{"$f":"'DOCUMENTACIÓN A TRAMITAR'!D46","v":32},{"$f":"'DOCUMENTACIÓN A TRAMITAR'!E46","v":"Declaración responsable donde acredite su adscripción a la Administración correspondiente."},{"$f":"'DOCUMENTACIÓN A TRAMITAR'!F46","v":"NO (Incluido en Anexo II)"},{"$f":"'DOCUMENTACIÓN A TRAMITAR'!G46","v":{"$error":"#N/A"}},{"$f":"'DOCUMENTACIÓN A TRAMITAR'!H46","v":"B"},{"$f":"VLOOKUP(LISTADOC[[#This Row],[MODALIDAD2]],$L$63:$M$66,2,FALSE)","v":"SE RELLENA ANEXO II"}]
[null,{"$f":"LISTADOC[[#This Row],[CATEGORIA]]","v":{"$error":"#N/A"}},{"$f":"'DOCUMENTACIÓN A TRAMITAR'!C70","v":"11.4.11"},{"$f":"'DOCUMENTACIÓN A TRAMITAR'!D70","v":50},{"$f":"'DOCUMENTACIÓN A TRAMITAR'!E70","v":"Declaración responsable donde acredite su adscripción a una Administración Pública y donde declare si desarrolla actividad económica por la que ofrezca bienes y/o servicios en el mercado, y en cado de realizarla cuál es su finalidad y CNAE."},{"$f":"'DOCUMENTACIÓN A TRAMITAR'!F70","v":"NO (Incluido en Anexo II)"},{"$f":"'DOCUMENTACIÓN A TRAMITAR'!G70","v":{"$error":"#N/A"}},{"$f":"'DOCUMENTACIÓN A TRAMITAR'!H70","v":"B"},{"$f":"VLOOKUP(LISTADOC[[#This Row],[MODALIDAD2]],$L$63:$M$66,2,FALSE)","v":"SE RELLENA ANEXO II"}]
[null,{"$f":"LISTADOC[[#This Row],[CATEGORIA]]","v":{"$error":"#N/A"}},{"$f":"'DOCUMENTACIÓN A TRAMITAR'!C36","v":"11.4.2.d"},{"$f":"'DOCUMENTACIÓN A TRAMITAR'!D36","v":27},{"$f":"'DOCUMENTACIÓN A TRAMITAR'!E36","v":"Documento de colaboración o instrumento análogo formalizado por el representante debidamente facultado de las mismas que especifique la aceptación y designación expresa del representante único de todas ellas, que formule la solicitud y reciba el importe total de la ayuda otorgada, así como la aceptación expresa de participación de todas ellas en el Programa de ayudas establecido por esta convocatoria, asumiendo la totalidad de compromisos y obligaciones derivados del mismo, con detalle de los compromisos de ejecución correspondientes a cada miembro de la agrupación así como importe de la ayuda a aplicar a cada uno de ellos."},{"$f":"'DOCUMENTACIÓN A TRAMITAR'!F36","v":"SI"},{"$f":"'DOCUMENTACIÓN A TRAMITAR'!G36","v":{"$error":"#N/A"}},{"$f":"'DOCUMENTACIÓN A TRAMITAR'!H36","v":"A"},{"$f":"VLOOKUP(LISTADOC[[#This Row],[MODALIDAD2]],$L$63:$M$66,2,FALSE)","v":"REQUIERE ADJUNTAR DOCUMENTO"}]
[null,{"$f":"LISTADOC[[#This Row],[CATEGORIA]]","v":{"$error":"#N/A"}},{"$f":"'DOCUMENTACIÓN A TRAMITAR'!C30","v":"11.4.1.a"},{"$f":"'DOCUMENTACIÓN A TRAMITAR'!D30","v":22},{"$f":"'DOCUMENTACIÓN A TRAMITAR'!E30","v":"Certificado de alta en el Censo de Empresarios, Profesionales y Retenedores o Certificado de Situación Censal. Solo será necesaria su aportación cuando el solicitante se oponga expresamente a su consulta."},{"$f":"'DOCUMENTACIÓN A TRAMITAR'!F30","v":"NO (Solo si se opone)"},{"$f":"'DOCUMENTACIÓN A TRAMITAR'!G30","v":{"$error":"#N/A"}},{"$f":"'DOCUMENTACIÓN A TRAMITAR'!H30","v":"D"},{"$f":"VLOOKUP(LISTADOC[[#This Row],[MODALIDAD2]],$L$63:$M$66,2,FALSE)","v":"SE DEBE ADJUNTAR EN CASO DE OPONERSE A COMPROBACION POR PARTE DE LA ADMINISTRACION"}]
[null,{"$f":"LISTADOC[[#This Row],[CATEGORIA]]","v":{"$error":"#N/A"}},{"$f":"'DOCUMENTACIÓN A TRAMITAR'!C31","v":"11.4.1.b"},{"$f":"'DOCUMENTACIÓN A TRAMITAR'!D31","v":23},{"$f":"'DOCUMENTACIÓN A TRAMITAR'!E31","v":"Declaración de ayudas solicitadas o recibidas bajo el régimen de minimis en los tres últimos años."},{"$f":"'DOCUMENTACIÓN A TRAMITAR'!F31","v":"NO (Incluido en Anexo II)"},{"$f":"'DOCUMENTACIÓN A TRAMITAR'!G31","v":{"$error":"#N/A"}},{"$f":"'DOCUMENTACIÓN A TRAMITAR'!H31","v":"B"},{"$f":"VLOOKUP(LISTADOC[[#This Row],[MODALIDAD2]],$L$63:$M$66,2,FALSE)","v":"SE RELLENA ANEXO II"}]
[null,{"$f":"LISTADOC[[#This Row],[CATEGORIA]]","v":{"$error":"#N/A"}},{"$f":"'DOCUMENTACIÓN A TRAMITAR'!C38","v":"3.1-1.1-a-3"},{"$f":"'DOCUMENTACIÓN A TRAMITAR'!D38","v":28},{"$f":"'DOCUMENTACIÓN A TRAMITAR'!E38","v":"Acuerdo y/o contrato con empresa donde se realizará la actuación."},{"$f":"'DOCUMENTACIÓN A TRAMITAR'!F38","v":"SI"},{"$f":"'DOCUMENTACIÓN A TRAMITAR'!G38","v":{"$error":"#N/A"}},{"$f":"'DOCUMENTACIÓN A TRAMITAR'!H38","v":"A"},{"$f":"VLOOKUP(LISTADOC[[#This Row],[MODALIDAD2]],$L$63:$M$66,2,FALSE)","v":"REQUIERE ADJUNTAR DOCUMENTO"}]
[null,{"$f":"LISTADOC[[#This Row],[CATEGORIA]]","v":{"$error":"#N/A"}},{"$f":"'DOCUMENTACIÓN A TRAMITAR'!C42","v":"11.4.7"},{"$f":"'DOCUMENTACIÓN A TRAMITAR'!D42","v":30},{"$f":"'DOCUMENTACIÓN A TRAMITAR'!E42","v":"Copia del contrato o contratos formalizados con el propietario o propietarios del emplazamiento donde se vaya a ejecutar la actuación y así como autorización expresa para la realización de las actuaciones objeto de ayuda."},{"$f":"'DOCUMENTACIÓN A TRAMITAR'!F42","v":"SI"},{"$f":"'DOCUMENTACIÓN A TRAMITAR'!G42","v":{"$error":"#N/A"}},{"$f":"'DOCUMENTACIÓN A TRAMITAR'!H42","v":"A"},{"$f":"VLOOKUP(LISTADOC[[#This Row],[MODALIDAD2]],$L$63:$M$66,2,FALSE)","v":"REQUIERE ADJUNTAR DOCUMENTO"}]
[]
[]
[]
[]
[]
[]
[]
[]
[]
[null,null,null,null,null,null,null,null,null,null,null,"A","REQUIERE ADJUNTAR DOCUMENTO"]
[null,null,null,null,null,null,null,null,null,null,null,"B","SE RELLENA ANEXO II"]
[null,null,null,null,null,null,null,null,null,null,null,"D","SE DEBE ADJUNTAR EN CASO DE OPONERSE A COMPROBACION POR PARTE DE LA ADMINISTRACION"]
[null,null,null,null,null,null,null,null,null,null,null,"B/A","COMUNEROS ADJUNTAN ANEXO III  /  NO COMUNEROS RELLENAN ANEXO II"]

{"sheet":"COMBINACIONES","index":6,"n_rows":105,"n_cols":79,"rows_kept":105,"cut":false,"hidden":true,"merged":[]}
[null,null,null,null,null,"1.1","1.2","1.3","1.4","1.5","1.6","1.7","1.8","1.9","1.10","1.11","1.12","1.13","1.14","1.15","2.1","2.2","2.3","2.4","2.5","2.6","2.7","2.8","2.9","2.10","2.11","2.12","2.13","2.14","2.15","3.1","3.2","3.3","3.4","3.5","3.6","3.7","3.8","3.9","3.10","3.11","3.12","3.13","3.14","3.15","4.1","4.2","4.3","4.4","4.5","4.6","4.7","4.8","4.9","4.10","5.1","5.2","5.3","5.4","5.5","5.6","5.7","5.8","5.9","5.10","6.1","6.2","6.3","6.4","6.5","6.6","6.7","6.8","6.9"]
[null,null,"Árticulo",null,"Documentación general"]
[]
[null,1,"11.2.a",null,"Escritura de apoderamiento o documento acreditativo de representación legal, conforme el artículo 5 de la Ley 39/2015, de 1 de octubre, del Procedimiento Administrativo Común de las Administraciones Públicas (únicamente en el caso de que el poder de representante legal se haya elevado a público ante notario con anterioridad al 5 de junio de 2014 y se oponga a su consulta).",{"$f":"PREGUNTAS!$R$35","v":{"$error":"#N/A"}},{"$f":"PREGUNTAS!$R$35","v":{"$error":"#N/A"}},{"$f":"PREGUNTAS!$R$35","v":{"$error":"#N/A"}},{"$f":"PREGUNTAS!$R$35","v":{"$error":"#N/A"}},{"$f":"PREGUNTAS!$R$35","v":{"$error":"#N/A"}},{"$f":"PREGUNTAS!$R$35","v":{"$error":"#N/A"}},{"$f":"PREGUNTAS!$R$35","v":{"$error":"#N/A"}},{"$f":"PREGUNTAS!$R$35","v":{"$error":"#N/A"}},{"$f":"PREGUNTAS!$R$35","v":{"$error":"#N/A"}},{"$f":"PREGUNTAS!$R$35","v":{"$error":"#N/A"}},"Obligatorio",{"$f":"PREGUNTAS!$R$35","v":{"$error":"#N/A"}},{"$f":"PREGUNTAS!$R$35","v":{"$error":"#N/A"}},{"$f":"PREGUNTAS!$R$35","v":{"$error":"#N/A"}},{"$f":"PREGUNTAS!$R$35","v":{"$error":"#N/A"}},{"$f":"PREGUNTAS!$R$35","v":{"$error":"#N/A"}},{"$f":"PREGUNTAS!$R$35","v":{"$error":"#N/A"}},{"$f":"PREGUNTAS!$R$35","v":{"$error":"#N/A"}},{"$f":"PREGUNTAS!$R$35","v":{"$error":"#N/A"}},{"$f":"PREGUNTAS!$R$35","v":{"$error":"#N/A"}},{"$f":"PREGUNTAS!$R$35","v":{"$error":"#N/A"}},{"$f":"PREGUNTAS!$R$35","v":{"$error":"#N/A"}},{"$f":"PREGUNTAS!$R$35","v":{"$error":"#N/A"}},{"$f":"PREGUNTAS!$R$35","v":{"$error":"#N/A"}},{"$f":"PREGUNTAS!$R$35","v":{"$error":"#N/A"}},"Obligatorio",{"$f":"PREGUNTAS!$R$35","v":{"$error":"#N/A"}},{"$f":"PREGUNTAS!$R$35","v":{"$error":"#N/A"}},{"$f":"PREGUNTAS!$R$35","v":{"$error":"#N/A"}},{"$f":"PREGUNTAS!$R$35","v":{"$error":"#N/A"}},{"$f":"PREGUNTAS!$R$35","v":{"$error":"#N/A"}},{"$f":"PREGUNTAS!$R$35","v":{"$error":"#N/A"}},{"$f":"PREGUNTAS!$R$35","v":{"$error":"#N/A"}},{"$f":"PREGUNTAS!$R$35","v":{"$error":"#N/A"}},{"$f":"PREGUNTAS!$R$35","v":{"$error":"#N/A"}},{"$f":"PREGUNTAS!$R$35","v":{"$error":"#N/A"}},{"$f":"PREGUNTAS!$R$35","v":{"$error":"#N/A"}},{"$f":"PREGUNTAS!$R$35","v":{"$error":"#N/A"}},{"$f":"PREGUNTAS!$R$35","v":{"$error":"#N/A"}},{"$f":"PREGUNTAS!$R$35","v":{"$error":"#N/A"}},"Obligatorio",{"$f":"PREGUNTAS!$R$35","v":{"$error":"#N/A"}},{"$f":"PREGUNTAS!$R$35","v":{"$error":"#N/A"}},{"$f":"PREGUNTAS!$R$35","v":{"$error":"#N/A"}},{"$f":"PREGUNTAS!$R$35","v":{"$error":"#N/A"}},{"$f":"PREGUNTAS!$R$35","v":{"$error":"#N/A"}},{"$f":"PREGUNTAS!$R$35","v":{"$error":"#N/A"}},"Obligatorio",{"$f":"PREGUNTAS!$R$35","v":{"$error":"#N/A"}},{"$f":"PREGUNTAS!$R$35","v":{"$error":"#N/A"}},{"$f":"PREGUNTAS!$R$35","v":{"$error":"#N/A"}},{"$f":"PREGUNTAS!$R$35","v":{"$error":"#N/A"}},{"$f":"PREGUNTAS!$R$35","v":{"$error":"#N/A"}},{"$f":"PREGUNTAS!$R$35","v":{"$error":"#N/A"}},{"$f":"PREGUNTAS!$R$35","v":{"$error":"#N/A"}},{"$f":"PREGUNTAS!$R$35","v":{"$error":"#N/A"}},{"$f":"PREGUNTAS!$R$35","v":{"$error":"#N/A"}},"Obligatorio",{"$f":"PREGUNTAS!$R$35","v":{"$error":"#N/A"}},{"$f":"PREGUNTAS!$R$35","v":{"$error":"#N/A"}},{"$f":"PREGUNTAS!$R$35","v":{"$error":"#N/A"}},{"$f":"PREGUNTAS!$R$35","v":{"$error":"#N/A"}},{"$f":"PREGUNTAS!$R$35","v":{"$error":"#N/A"}},{"$f":"PREGUNTAS!$R$35","v":{"$error":"#N/A"}},{"$f":"PREGUNTAS!$R$35","v":{"$error":"#N/A"}},{"$f":"PREGUNTAS!$R$35","v":{"$error":"#N/A"}},{"$f":"PREGUNTAS!$R$35","v":{"$error":"#N/A"}},"Obligatorio",{"$f":"PREGUNTAS!$R$35","v":{"$error":"#N/A"}},{"$f":"PREGUNTAS!$R$35","v":{"$error":"#N/A"}},{"$f":"PREGUNTAS!$R$35","v":{"$error":"#N/A"}},{"$f":"PREGUNTAS!$R$35","v":{"$error":"#N/A"}},{"$f":"PREGUNTAS!$R$35","v":{"$error":"#N/A"}},{"$f":"PREGUNTAS!$R$35","v":{"$error":"#N/A"}}]
[null,2,"11.2.b",null,"Memoria acreditativa y justificativa de los datos aportados en el apartado 6.3. de la presente solicitud","Obligatorio","Obligatorio","Obligatorio","Obligatorio","Obligatorio","Obligatorio","Obligatorio","Obligatorio","Obligatorio","Obligatorio","Obligatorio","Obligatorio","Obligatorio","Obligatorio","Obligatorio","Obligatorio","Obligatorio","Obligatorio","Obligatorio","Obligatorio","Obligatorio","Obligatorio","Obligatorio","Obligatorio","Obligatorio","Obligatorio","Obligatorio","Obligatorio","Obligatorio","Obligatorio","Obligatorio","Obligatorio","Obligatorio","Obligatorio","Obligatorio","Obligatorio","Obligatorio","Obligatorio","Obligatorio","Obligatorio","Obligatorio","Obligatorio","Obligatorio","Obligatorio","Obligatorio","Obligatorio","Obligatorio","Obligatorio","Obligatorio","Obligatorio","Obligatorio","Obligatorio","Obligatorio","Obligatorio","Obligatorio","Obligatorio","Obligatorio","Obligatorio","Obligatorio","Obligatorio","Obligatorio","Obligatorio","Obligatorio","Obligatorio","Obligatorio","Obligatorio","Obligatorio","Obligatorio","Obligatorio","Obligatorio","Obligatorio","Obligatorio","Obligatorio","Obligatorio"]
[null,3,"11.2.c",null,"Presupuesto de la empresa o empresas que realizarán la ejecución de las actuaciones, suficientemente desglosado.","Obligatorio","Obligatorio","Obligatorio","Obligatorio","Obligatorio","Obligatorio","Obligatorio","Obligatorio","Obligatorio","Obligatorio","Obligatorio","Obligatorio","Obligatorio","Obligatorio","Obligatorio","Obligatorio","Obligatorio","Obligatorio","Obligatorio","Obligatorio","Obligatorio","Obligatorio","Obligatorio","Obligatorio","Obligatorio","Obligatorio","Obligatorio","Obligatorio","Obligatorio","Obligatorio","Obligatorio","Obligatorio","Obligatorio","Obligatorio","Obligatorio","Obligatorio","Obligatorio","Obligatorio","Obligatorio","Obligatorio","Obligatorio","Obligatorio","Obligatorio","Obligatorio","Obligatorio","Obligatorio","Obligatorio","Obligatorio","Obligatorio","Obligatorio","Obligatorio","Obligatorio","Obligatorio","Obligatorio","Obligatorio","Obligatorio","Obligatorio","Obligatorio","Obligatorio","Obligatorio","Obligatorio","Obligatorio","Obligatorio","Obligatorio","Obligatorio","Obligatorio","Obligatorio","Obligatorio","Obligatorio","Obligatorio","Obligatorio","Obligatorio","Obligatorio","Obligatorio"]
[null,4,"11.2.d",null,"Informe que incluya plan estratégico, justificación del cumplimiento de no causar daño significativo a ninguno de los objetivos medioambientales y memoria de residuo generado, solo en el caso de actuaciones que superen los 100 kW de potencia nominal.",{"$f":"PREGUNTAS!$R$36","v":{"$error":"#N/A"}},{"$f":"PREGUNTAS!$R$36","v":{"$error":"#N/A"}},{"$f":"PREGUNTAS!$R$36","v":{"$error":"#N/A"}},{"$f":"PREGUNTAS!$R$36","v":{"$error":"#N/A"}},{"$f":"PREGUNTAS!$R$36","v":{"$error":"#N/A"}},{"$f":"PREGUNTAS!$R$36","v":{"$error":"#N/A"}},{"$f":"PREGUNTAS!$R$36","v":{"$error":"#N/A"}},{"$f":"PREGUNTAS!$R$36","v":{"$error":"#N/A"}},{"$f":"PREGUNTAS!$R$36","v":{"$error":"#N/A"}},{"$f":"PREGUNTAS!$R$36","v":{"$error":"#N/A"}},{"$f":"PREGUNTAS!$R$36","v":{"$error":"#N/A"}},{"$f":"PREGUNTAS!$R$36","v":{"$error":"#N/A"}},{"$f":"PREGUNTAS!$R$36","v":{"$error":"#N/A"}},{"$f":"PREGUNTAS!$R$36","v":{"$error":"#N/A"}},{"$f":"PREGUNTAS!$R$36","v":{"$error":"#N/A"}},{"$f":"PREGUNTAS!$R$36","v":{"$error":"#N/A"}},{"$f":"PREGUNTAS!$R$36","v":{"$error":"#N/A"}},{"$f":"PREGUNTAS!$R$36","v":{"$error":"#N/A"}},{"$f":"PREGUNTAS!$R$36","v":{"$error":"#N/A"}},{"$f":"PREGUNTAS!$R$36","v":{"$error":"#N/A"}},{"$f":"PREGUNTAS!$R$36","v":{"$error":"#N/A"}},{"$f":"PREGUNTAS!$R$36","v":{"$error":"#N/A"}},{"$f":"PREGUNTAS!$R$36","v":{"$error":"#N/A"}},{"$f":"PREGUNTAS!$R$36","v":{"$error":"#N/A"}},{"$f":"PREGUNTAS!$R$36","v":{"$error":"#N/A"}},{"$f":"PREGUNTAS!$R$36","v":{"$error":"#N/A"}},{"$f":"PREGUNTAS!$R$36","v":{"$error":"#N/A"}},{"$f":"PREGUNTAS!$R$36","v":{"$error":"#N/A"}},{"$f":"PREGUNTAS!$R$36","v":{"$error":"#N/A"}},{"$f":"PREGUNTAS!$R$36","v":{"$error":"#N/A"}},{"$f":"PREGUNTAS!$R$36","v":{"$error":"#N/A"}},{"$f":"PREGUNTAS!$R$36","v":{"$error":"#N/A"}},{"$f":"PREGUNTAS!$R$36","v":{"$error":"#N/A"}},{"$f":"PREGUNTAS!$R$36","v":{"$error":"#N/A"}},{"$f":"PREGUNTAS!$R$36","v":{"$error":"#N/A"}},{"$f":"PREGUNTAS!$R$36","v":{"$error":"#N/A"}},{"$f":"PREGUNTAS!$R$36","v":{"$error":"#N/A"}},{"$f":"PREGUNTAS!$R$36","v":{"$error":"#N/A"}},{"$f":"PREGUNTAS!$R$36","v":{"$error":"#N/A"}},{"$f":"PREGUNTAS!$R$36","v":{"$error":"#N/A"}},{"$f":"PREGUNTAS!$R$36","v":{"$error":"#N/A"}},{"$f":"PREGUNTAS!$R$36","v":{"$error":"#N/A"}},{"$f":"PREGUNTAS!$R$36","v":{"$error":"#N/A"}},{"$f":"PREGUNTAS!$R$36","v":{"$error":"#N/A"}},{"$f":"PREGUNTAS!$R$36","v":{"$error":"#N/A"}},{"$f":"PREGUNTAS!$R$36","v":{"$error":"#N/A"}},{"$f":"PREGUNTAS!$R$36","v":{"$error":"#N/A"}},{"$f":"PREGUNTAS!$R$36","v":{"$error":"#N/A"}},{"$f":"PREGUNTAS!$R$36","v":{"$error":"#N/A"}},{"$f":"PREGUNTAS!$R$36","v":{"$error":"#N/A"}},{"$f":"PREGUNTAS!$R$36","v":{"$error":"#N/A"}},{"$f":"PREGUNTAS!$R$36","v":{"$error":"#N/A"}},{"$f":"PREGUNTAS!$R$36","v":{"$error":"#N/A"}},{"$f":"PREGUNTAS!$R$36","v":{"$error":"#N/A"}},{"$f":"PREGUNTAS!$R$36","v":{"$error":"#N/A"}},{"$f":"PREGUNTAS!$R$36","v":{"$error":"#N/A"}},{"$f":"PREGUNTAS!$R$36","v":{"$error":"#N/A"}},{"$f":"PREGUNTAS!$R$36","v":{"$error":"#N/A"}},{"$f":"PREGUNTAS!$R$36","v":{"$error":"#N/A"}},{"$f":"PREGUNTAS!$R$36","v":{"$error":"#N/A"}},{"$f":"PREGUNTAS!$R$36","v":{"$error":"#N/A"}},{"$f":"PREGUNTAS!$R$36","v":{"$error":"#N/A"}},{"$f":"PREGUNTAS!$R$36","v":{"$error":"#N/A"}},{"$f":"PREGUNTAS!$R$36","v":{"$error":"#N/A"}},{"$f":"PREGUNTAS!$R$36","v":{"$error":"#N/A"}},{"$f":"PREGUNTAS!$R$36","v":{"$error":"#N/A"}},{"$f":"PREGUNTAS!$R$36","v":{"$error":"#N/A"}},{"$f":"PREGUNTAS!$R$36","v":{"$error":"#N/A"}},{"$f":"PREGUNTAS!$R$36","v":{"$error":"#N/A"}},{"$f":"PREGUNTAS!$R$36","v":{"$error":"#N/A"}},{"$f":"PREGUNTAS!$R$36","v":{"$error":"#N/A"}},{"$f":"PREGUNTAS!$R$36","v":{"$error":"#N/A"}},{"$f":"PREGUNTAS!$R$36","v":{"$error":"#N/A"}},{"$f":"PREGUNTAS!$R$36","v":{"$error":"#N/A"}}]
[null,5,"11.2.e",null,"Declaración responsable de promotor de proyecto de no afectación medioambiental, cuando proceda.(No para fotovoltaica en cubierta y linea 6)",{"$f":"PREGUNTAS!$R$37","v":{"$error":"#N/A"}},{"$f":"PREGUNTAS!$R$37","v":{"$error":"#N/A"}},{"$f":"PREGUNTAS!$R$37","v":{"$error":"#N/A"}},{"$f":"PREGUNTAS!$R$37","v":{"$error":"#N/A"}},{"$f":"PREGUNTAS!$R$37","v":{"$error":"#N/A"}},{"$f":"PREGUNTAS!$R$37","v":{"$error":"#N/A"}},{"$f":"PREGUNTAS!$R$37","v":{"$error":"#N/A"}},{"$f":"PREGUNTAS!$R$37","v":{"$error":"#N/A"}},{"$f":"PREGUNTAS!$R$37","v":{"$error":"#N/A"}},{"$f":"PREGUNTAS!$R$37","v":{"$error":"#N/A"}},{"$f":"PREGUNTAS!$R$37","v":{"$error":"#N/A"}},{"$f":"PREGUNTAS!$R$37","v":{"$error":"#N/A"}},{"$f":"PREGUNTAS!$R$37","v":{"$error":"#N/A"}},{"$f":"PREGUNTAS!$R$37","v":{"$error":"#N/A"}},{"$f":"PREGUNTAS!$R$37","v":{"$error":"#N/A"}},{"$f":"PREGUNTAS!$R$37","v":{"$error":"#N/A"}},{"$f":"PREGUNTAS!$R$37","v":{"$error":"#N/A"}},{"$f":"PREGUNTAS!$R$37","v":{"$error":"#N/A"}},{"$f":"PREGUNTAS!$R$37","v":{"$error":"#N/A"}},{"$f":"PREGUNTAS!$R$37","v":{"$error":"#N/A"}},{"$f":"PREGUNTAS!$R$37","v":{"$error":"#N/A"}},{"$f":"PREGUNTAS!$R$37","v":{"$error":"#N/A"}},{"$f":"PREGUNTAS!$R$37","v":{"$error":"#N/A"}},{"$f":"PREGUNTAS!$R$37","v":{"$error":"#N/A"}},{"$f":"PREGUNTAS!$R$37","v":{"$error":"#N/A"}},{"$f":"PREGUNTAS!$R$37","v":{"$error":"#N/A"}},{"$f":"PREGUNTAS!$R$37","v":{"$error":"#N/A"}},{"$f":"PREGUNTAS!$R$37","v":{"$error":"#N/A"}},{"$f":"PREGUNTAS!$R$37","v":{"$error":"#N/A"}},{"$f":"PREGUNTAS!$R$37","v":{"$error":"#N/A"}},{"$f":"PREGUNTAS!$R$37","v":{"$error":"#N/A"}},{"$f":"PREGUNTAS!$R$37","v":{"$error":"#N/A"}},{"$f":"PREGUNTAS!$R$37","v":{"$error":"#N/A"}},{"$f":"PREGUNTAS!$R$37","v":{"$error":"#N/A"}},{"$f":"PREGUNTAS!$R$37","v":{"$error":"#N/A"}},{"$f":"PREGUNTAS!$R$37","v":{"$error":"#N/A"}},{"$f":"PREGUNTAS!$R$37","v":{"$error":"#N/A"}},{"$f":"PREGUNTAS!$R$37","v":{"$error":"#N/A"}},{"$f":"PREGUNTAS!$R$37","v":{"$error":"#N/A"}},{"$f":"PREGUNTAS!$R$37","v":{"$error":"#N/A"}},{"$f":"PREGUNTAS!$R$37","v":{"$error":"#N/A"}},{"$f":"PREGUNTAS!$R$37","v":{"$error":"#N/A"}},{"$f":"PREGUNTAS!$R$37","v":{"$error":"#N/A"}},{"$f":"PREGUNTAS!$R$37","v":{"$error":"#N/A"}},{"$f":"PREGUNTAS!$R$37","v":{"$error":"#N/A"}},{"$f":"PREGUNTAS!$R$37","v":{"$error":"#N/A"}},{"$f":"PREGUNTAS!$R$37","v":{"$error":"#N/A"}},{"$f":"PREGUNTAS!$R$37","v":{"$error":"#N/A"}},{"$f":"PREGUNTAS!$R$37","v":{"$error":"#N/A"}},{"$f":"PREGUNTAS!$R$37","v":{"$error":"#N/A"}},{"$f":"PREGUNTAS!$R$37","v":{"$error":"#N/A"}},{"$f":"PREGUNTAS!$R$37","v":{"$error":"#N/A"}},{"$f":"PREGUNTAS!$R$37","v":{"$error":"#N/A"}},{"$f":"PREGUNTAS!$R$37","v":{"$error":"#N/A"}},{"$f":"PREGUNTAS!$R$37","v":{"$error":"#N/A"}},{"$f":"PREGUNTAS!$R$37","v":{"$error":"#N/A"}},{"$f":"PREGUNTAS!$R$37","v":{"$error":"#N/A"}},{"$f":"PREGUNTAS!$R$37","v":{"$error":"#N/A"}},{"$f":"PREGUNTAS!$R$37","v":{"$error":"#N/A"}},{"$f":"PREGUNTAS!$R$37","v":{"$error":"#N/A"}},{"$f":"PREGUNTAS!$R$37","v":{"$error":"#N/A"}},{"$f":"PREGUNTAS!$R$37","v":{"$error":"#N/A"}},{"$f":"PREGUNTAS!$R$37","v":{"$error":"#N/A"}},{"$f":"PREGUNTAS!$R$37","v":{"$error":"#N/A"}},{"$f":"PREGUNTAS!$R$37","v":{"$error":"#N/A"}},"N","N","N","N","N","N","N","N","N"]
[null,6,"11.2.f",null,"Declaración responsable del solicitante de hallarse al corriente en el pago de obligaciones por reintegro de subvenciones (Anexo II-8)","N","N","N","N","N","N","N","N","N","N","N","N","N","N","N","N","N","N","N","N","N","N","N","N","N","N","N","N","N","N","N","N","N","N","N","N","N","N","N","N","N","N","N","N","N","N","N","N","N","N","N","N","N","N","N","N","N","N","N","N","N","N","N","N","N","N","N","N","N","N","N","N","N","N"]
[null,7,"11.2.g",null,"Declaración responsable del solicitante, indicando que no ha solicitado o recibido otras ayudas para la misma actuación o finalidad. (Anexo II - 8.6)","N","N","N","N","N","N","N","N","N","N","N","N","N","N","N","N","N","N","N","N","N","N","N","N","N","N","N","N","N","N","N","N","N","N","N","N","N","N","N","N","N","N","N","N","N","N","N","N","N","N","N","N","N","N","N","N","N","N","N","N","N","N","N","N","N","N","N","N","N","N","N","N","N","N"]
[null,8,"11.2.h",null,"Certificado residencia fiscal de la Hacienda Estatal, solo será necesario su aportación cuando el solicitante no haya autorizado o se oponga expresamente a su consulta (Anexo II - 9-5), o, en su caso, para solicitantes que no tengan su residencia fiscal en territorio español deberán presentar un certificado de residencia fiscal emitido por las autoridades competentes de su país de residencia.",{"$f":"PREGUNTAS!$R$43","v":{"$error":"#N/A"}},{"$f":"PREGUNTAS!$R$43","v":{"$error":"#N/A"}},{"$f":"PREGUNTAS!$R$43","v":{"$error":"#N/A"}},{"$f":"PREGUNTAS!$R$43","v":{"$error":"#N/A"}},{"$f":"PREGUNTAS!$R$43","v":{"$error":"#N/A"}},{"$f":"PREGUNTAS!$R$43","v":{"$error":"#N/A"}},{"$f":"PREGUNTAS!$R$43","v":{"$error":"#N/A"}},{"$f":"PREGUNTAS!$R$43","v":{"$error":"#N/A"}},{"$f":"PREGUNTAS!$R$43","v":{"$error":"#N/A"}},"N",{"$f":"PREGUNTAS!$R$43","v":{"$error":"#N/A"}},{"$f":"PREGUNTAS!$R$43","v":{"$error":"#N/A"}},{"$f":"PREGUNTAS!$R$43","v":{"$error":"#N/A"}},{"$f":"PREGUNTAS!$R$43","v":{"$error":"#N/A"}},{"$f":"PREGUNTAS!$R$43","v":{"$error":"#N/A"}},{"$f":"PREGUNTAS!$R$43","v":{"$error":"#N/A"}},{"$f":"PREGUNTAS!$R$43","v":{"$error":"#N/A"}},{"$f":"PREGUNTAS!$R$43","v":{"$error":"#N/A"}},{"$f":"PREGUNTAS!$R$43","v":{"$error":"#N/A"}},{"$f":"PREGUNTAS!$R$43","v":{"$error":"#N/A"}},{"$f":"PREGUNTAS!$R$43","v":{"$error":"#N/A"}},{"$f":"PREGUNTAS!$R$43","v":{"$error":"#N/A"}},{"$f":"PREGUNTAS!$R$43","v":{"$error":"#N/A"}},{"$f":"PREGUNTAS!$R$43","v":{"$error":"#N/A"}},"N","N","N",{"$f":"PREGUNTAS!$R$43","v":{"$error":"#N/A"}},{"$f":"PREGUNTAS!$R$43","v":{"$error":"#N/A"}},{"$f":"PREGUNTAS!$R$43","v":{"$error":"#N/A"}},{"$f":"PREGUNTAS!$R$43","v":{"$error":"#N/A"}},{"$f":"PREGUNTAS!$R$43","v":{"$error":"#N/A"}},{"$f":"PREGUNTAS!$R$43","v":{"$error":"#N/A"}},{"$f":"PREGUNTAS!$R$43","v":{"$error":"#N/A"}},{"$f":"PREGUNTAS!$R$43","v":{"$error":"#N/A"}},{"$f":"PREGUNTAS!$R$43","v":{"$error":"#N/A"}},{"$f":"PREGUNTAS!$R$43","v":{"$error":"#N/A"}},{"$f":"PREGUNTAS!$R$43","v":{"$error":"#N/A"}},{"$f":"PREGUNTAS!$R$43","v":{"$error":"#N/A"}},"N","N","N",{"$f":"PREGUNTAS!$R$43","v":{"$error":"#N/A"}},{"$f":"PREGUNTAS!$R$43","v":{"$error":"#N/A"}},{"$f":"PREGUNTAS!$R$43","v":{"$error":"#N/A"}},{"$f":"PREGUNTAS!$R$43","v":{"$error":"#N/A"}},"N","N","N",{"$f":"PREGUNTAS!$R$43","v":{"$error":"#N/A"}},{"$f":"PREGUNTAS!$R$43","v":{"$error":"#N/A"}},{"$f":"PREGUNTAS!$R$43","v":{"$error":"#N/A"}},{"$f":"PREGUNTAS!$R$43","v":{"$error":"#N/A"}},{"$f":"PREGUNTAS!$R$43","v":{"$error":"#N/A"}},{"$f":"PREGUNTAS!$R$43","v":{"$error":"#N/A"}},{"$f":"PREGUNTAS!$R$43","v":{"$error":"#N/A"}},"N","N","N",{"$f":"PREGUNTAS!$R$43","v":{"$error":"#N/A"}},{"$f":"PREGUNTAS!$R$43","v":{"$error":"#N/A"}},{"$f":"PREGUNTAS!$R$43","v":{"$error":"#N/A"}},{"$f":"PREGUNTAS!$R$43","v":{"$error":"#N/A"}},{"$f":"PREGUNTAS!$R$43","v":{"$error":"#N/A"}},{"$f":"PREGUNTAS!$R$43","v":{"$error":"#N/A"}},{"$f":"PREGUNTAS!$R$43","v":{"$error":"#N/A"}},"N","N","N",{"$f":"PREGUNTAS!$R$43","v":{"$error":"#N/A"}},{"$f":"PREGUNTAS!$R$43","v":{"$error":"#N/A"}},{"$f":"PREGUNTAS!$R$43","v":{"$error":"#N/A"}},{"$f":"PREGUNTAS!$R$43","v":{"$error":"#N/A"}},{"$f":"PREGUNTAS!$R$43","v":{"$error":"#N/A"}}]
[null,9,"11.2.i",null,"Certificados de estar al corriente en el cumplimiento de las obligaciones fiscales y tributarias del interesado con la Hacienda autonómica y con la Seguridad Social. Solo será necesaria su aportación cuando el solicitante no haya autorizado o se oponga expresamente a su consulta. (Anexo II - 9-1 y 9-4)  si<10.000€ ==> (Anexo II - 8.3)","N","N","N","N","N","N","N","N","N","N","N","N","N","N","N","N","N","N","N","N","N","N","N","N","N","N","N","N","N","N","N","N","N","N","N","N","N","N","N","N","N","N","N","N","N","N","N","N","N","N","N","N","N","N","N","N","N","N","N","N","N","N","N","N","N","N","N","N","N","N","N","N","N","N"]
[null,10,"11.2.j",null,"Certificado de estar al corriente con la Hacienda estatal. Solo será necesaria su aportación cuando el solicitante no haya autorizado o se oponga expresamente a su consulta. (Anexo II - 9.1)  si<10.000€ ==> Anexo II - 8.3)","N","N","N","N","N","N","N","N","N","N","N","N","N","N","N","N","N","N","N","N","N","N","N","N","N","N","N","N","N","N","N","N","N","N","N","N","N","N","N","N","N","N","N","N","N","N","N","N","N","N","N","N","N","N","N","N","N","N","N","N","N","N","N","N","N","N","N","N","N","N","N","N","N","N"]
[null,11,"7.2.o",null,"Declaración de vendedor y certificación de tasador para costes de equipos de segunda mano.",{"$f":"PREGUNTAS!$R$38","v":{"$error":"#N/A"}},{"$f":"PREGUNTAS!$R$38","v":{"$error":"#N/A"}},{"$f":"PREGUNTAS!$R$38","v":{"$error":"#N/A"}},{"$f":"PREGUNTAS!$R$38","v":{"$error":"#N/A"}},{"$f":"PREGUNTAS!$R$38","v":{"$error":"#N/A"}},{"$f":"PREGUNTAS!$R$38","v":{"$error":"#N/A"}},{"$f":"PREGUNTAS!$R$38","v":{"$error":"#N/A"}},{"$f":"PREGUNTAS!$R$38","v":{"$error":"#N/A"}},{"$f":"PREGUNTAS!$R$38","v":{"$error":"#N/A"}},{"$f":"PREGUNTAS!$R$38","v":{"$error":"#N/A"}},{"$f":"PREGUNTAS!$R$38","v":{"$error":"#N/A"}},{"$f":"PREGUNTAS!$R$38","v":{"$error":"#N/A"}},{"$f":"PREGUNTAS!$R$38","v":{"$error":"#N/A"}},{"$f":"PREGUNTAS!$R$38","v":{"$error":"#N/A"}},"N",{"$f":"PREGUNTAS!$R$38","v":{"$error":"#N/A"}},{"$f":"PREGUNTAS!$R$38","v":{"$error":"#N/A"}},{"$f":"PREGUNTAS!$R$38","v":{"$error":"#N/A"}},{"$f":"PREGUNTAS!$R$38","v":{"$error":"#N/A"}},{"$f":"PREGUNTAS!$R$38","v":{"$error":"#N/A"}},{"$f":"PREGUNTAS!$R$38","v":{"$error":"#N/A"}},{"$f":"PREGUNTAS!$R$38","v":{"$error":"#N/A"}},{"$f":"PREGUNTAS!$R$38","v":{"$error":"#N/A"}},{"$f":"PREGUNTAS!$R$38","v":{"$error":"#N/A"}},{"$f":"PREGUNTAS!$R$38","v":{"$error":"#N/A"}},{"$f":"PREGUNTAS!$R$38","v":{"$error":"#N/A"}},{"$f":"PREGUNTAS!$R$38","v":{"$error":"#N/A"}},{"$f":"PREGUNTAS!$R$38","v":{"$error":"#N/A"}},{"$f":"PREGUNTAS!$R$38","v":{"$error":"#N/A"}},{"$f":"PREGUNTAS!$R$38","v":{"$error":"#N/A"}},{"$f":"PREGUNTAS!$R$38","v":{"$error":"#N/A"}},{"$f":"PREGUNTAS!$R$38","v":{"$error":"#N/A"}},{"$f":"PREGUNTAS!$R$38","v":{"$error":"#N/A"}},{"$f":"PREGUNTAS!$R$38","v":{"$error":"#N/A"}},{"$f":"PREGUNTAS!$R$38","v":{"$error":"#N/A"}},{"$f":"PREGUNTAS!$R$38","v":{"$error":"#N/A"}},{"$f":"PREGUNTAS!$R$38","v":{"$error":"#N/A"}},{"$f":"PREGUNTAS!$R$38","v":{"$error":"#N/A"}},{"$f":"PREGUNTAS!$R$38","v":{"$error":"#N/A"}},{"$f":"PREGUNTAS!$R$38","v":{"$error":"#N/A"}},{"$f":"PREGUNTAS!$R$38","v":{"$error":"#N/A"}},{"$f":"PREGUNTAS!$R$38","v":{"$error":"#N/A"}},{"$f":"PREGUNTAS!$R$38","v":{"$error":"#N/A"}},{"$f":"PREGUNTAS!$R$38","v":{"$error":"#N/A"}},{"$f":"PREGUNTAS!$R$38","v":{"$error":"#N/A"}},{"$f":"PREGUNTAS!$R$38","v":{"$error":"#N/A"}},{"$f":"PREGUNTAS!$R$38","v":{"$error":"#N/A"}},{"$f":"PREGUNTAS!$R$38","v":{"$error":"#N/A"}},{"$f":"PREGUNTAS!$R$38","v":{"$error":"#N/A"}},{"$f":"PREGUNTAS!$R$38","v":{"$error":"#N/A"}},{"$f":"PREGUNTAS!$R$38","v":{"$error":"#N/A"}},{"$f":"PREGUNTAS!$R$38","v":{"$error":"#N/A"}},{"$f":"PREGUNTAS!$R$38","v":{"$error":"#N/A"}},{"$f":"PREGUNTAS!$R$38","v":{"$error":"#N/A"}},{"$f":"PREGUNTAS!$R$38","v":{"$error":"#N/A"}},{"$f":"PREGUNTAS!$R$38","v":{"$error":"#N/A"}},{"$f":"PREGUNTAS!$R$38","v":{"$error":"#N/A"}},{"$f":"PREGUNTAS!$R$38","v":{"$error":"#N/A"}},{"$f":"PREGUNTAS!$R$38","v":{"$error":"#N/A"}},{"$f":"PREGUNTAS!$R$38","v":{"$error":"#N/A"}},{"$f":"PREGUNTAS!$R$38","v":{"$error":"#N/A"}},{"$f":"PREGUNTAS!$R$38","v":{"$error":"#N/A"}},{"$f":"PREGUNTAS!$R$38","v":{"$error":"#N/A"}},{"$f":"PREGUNTAS!$R$38","v":{"$error":"#N/A"}},{"$f":"PREGUNTAS!$R$38","v":{"$error":"#N/A"}},{"$f":"PREGUNTAS!$R$38","v":{"$error":"#N/A"}},{"$f":"PREGUNTAS!$R$38","v":{"$error":"#N/A"}},{"$f":"PREGUNTAS!$R$38","v":{"$error":"#N/A"}},{"$f":"PREGUNTAS!$R$38","v":{"$error":"#N/A"}},{"$f":"PREGUNTAS!$R$38","v":{"$error":"#N/A"}},{"$f":"PREGUNTAS!$R$38","v":{"$error":"#N/A"}},{"$f":"PREGUNTAS!$R$38","v":{"$error":"#N/A"}},{"$f":"PREGUNTAS!$R$38","v":{"$error":"#N/A"}},{"$f":"PREGUNTAS!$R$38","v":{"$error":"#N/A"}}]
[]
[null,null,null,null,"Documentación técnica"]
[]
[null,12,"11.3.1",null,"Declaración responsable (realizada por el solicitante) (lineas 1,2,3,4,5) que acredita que el sistema de almacenamiento no estará directamente conectado a red, sino que formará parte de la instalación de autoconsumo. No se aportará en el programa de incentivos 6.",{"$f":"PREGUNTAS!$R$41","v":{"$error":"#N/A"}},{"$f":"PREGUNTAS!$R$41","v":{"$error":"#N/A"}},{"$f":"PREGUNTAS!$R$41","v":{"$error":"#N/A"}},{"$f":"PREGUNTAS!$R$41","v":{"$error":"#N/A"}},{"$f":"PREGUNTAS!$R$41","v":{"$error":"#N/A"}},{"$f":"PREGUNTAS!$R$41","v":{"$error":"#N/A"}},{"$f":"PREGUNTAS!$R$41","v":{"$error":"#N/A"}},{"$f":"PREGUNTAS!$R$41","v":{"$error":"#N/A"}},{"$f":"PREGUNTAS!$R$41","v":{"$error":"#N/A"}},{"$f":"PREGUNTAS!$R$41","v":{"$error":"#N/A"}},{"$f":"PREGUNTAS!$R$41","v":{"$error":"#N/A"}},{"$f":"PREGUNTAS!$R$41","v":{"$error":"#N/A"}},{"$f":"PREGUNTAS!$R$41","v":{"$error":"#N/A"}},{"$f":"PREGUNTAS!$R$41","v":{"$error":"#N/A"}},{"$f":"PREGUNTAS!$R$41","v":{"$error":"#N/A"}},{"$f":"PREGUNTAS!$R$41","v":{"$error":"#N/A"}},{"$f":"PREGUNTAS!$R$41","v":{"$error":"#N/A"}},{"$f":"PREGUNTAS!$R$41","v":{"$error":"#N/A"}},{"$f":"PREGUNTAS!$R$41","v":{"$error":"#N/A"}},{"$f":"PREGUNTAS!$R$41","v":{"$error":"#N/A"}},{"$f":"PREGUNTAS!$R$41","v":{"$error":"#N/A"}},{"$f":"PREGUNTAS!$R$41","v":{"$error":"#N/A"}},{"$f":"PREGUNTAS!$R$41","v":{"$error":"#N/A"}},{"$f":"PREGUNTAS!$R$41","v":{"$error":"#N/A"}},{"$f":"PREGUNTAS!$R$41","v":{"$error":"#N/A"}},{"$f":"PREGUNTAS!$R$41","v":{"$error":"#N/A"}},{"$f":"PREGUNTAS!$R$41","v":{"$error":"#N/A"}},{"$f":"PREGUNTAS!$R$41","v":{"$error":"#N/A"}},{"$f":"PREGUNTAS!$R$41","v":{"$error":"#N/A"}},{"$f":"PREGUNTAS!$R$41","v":{"$error":"#N/A"}},"Obligatorio","Obligatorio","Obligatorio","Obligatorio","Obligatorio","Obligatorio","Obligatorio","Obligatorio","Obligatorio","Obligatorio","Obligatorio","Obligatorio","Obligatorio","Obligatorio","Obligatorio",{"$f":"PREGUNTAS!$R$41","v":{"$error":"#N/A"}},{"$f":"PREGUNTAS!$R$41","v":{"$error":"#N/A"}},{"$f":"PREGUNTAS!$R$41","v":{"$error":"#N/A"}},{"$f":"PREGUNTAS!$R$41","v":{"$error":"#N/A"}},{"$f":"PREGUNTAS!$R$41","v":{"$error":"#N/A"}},{"$f":"PREGUNTAS!$R$41","v":{"$error":"#N/A"}},{"$f":"PREGUNTAS!$R$41","v":{"$error":"#N/A"}},{"$f":"PREGUNTAS!$R$41","v":{"$error":"#N/A"}},{"$f":"PREGUNTAS!$R$41","v":{"$error":"#N/A"}},{"$f":"PREGUNTAS!$R$41","v":{"$error":"#N/A"}},"Obligatorio","Obligatorio","Obligatorio","Obligatorio","Obligatorio","Obligatorio","Obligatorio","Obligatorio","Obligatorio","Obligatorio","N","N","N","N","N","N","N","N","N"]
[null,13,"11.3.2",null,"Declaración responsable del solicitante o representante legal, en su caso, manifestando el grupo donde queda encuadrada su actividad según la clasificación del CNAE. (Anexo II - 6.2)(programas de incentivos 1, 2 y 3)","N","N","N","N","N","N","N","N","N","N","N","N","N","N","N","N","N","N","N","N","N","N","N","N","N","N","N","N","N","N","N","N","N","N","N","N","N","N","N","N","N","N","N","N","N","N","N","N","N","N","N","N","N","N","N","N","N","N","N","N","N","N","N","N","N","N","N","N","N","N","N","N","N","N"]
[null,14,"11.3.3",null,"Declaración de exención de IVA por no ser recuperable. (Anexo II - 8.5) (programas de incentivos 4, 5 y 6)","N","N","N","N","N","N","N","N","N","N","N","N","N","N","N","N","N","N","N","N","N","N","N","N","N","N","N","N","N","N","N","N","N","N","N","N","N","N","N","N","N","N","N","N","N","N","N","N","N","N","N","N","N","N","N","N","N","N","N","N","N","N","N","N","N","N","N","N","N","N","N","N","N","N"]
[null,15,"11.3.4",null,"Declaración responsable (realizada por el solicitante) de una producción de la cual se consume el 80 %, solo en el caso de programa de incentivos 4.","N","N","N","N","N","N","N","N","N","N","N","N","N","N","N","N","N","N","N","N","N","N","N","N","N","N","N","N","N","N","N","N","N","N","N","N","N","N","N","N","N","N","N","N","N","Obligatorio","Obligatorio","Obligatorio","Obligatorio","Obligatorio","Obligatorio","Obligatorio","Obligatorio","Obligatorio","Obligatorio","N","N","N","N","N","N","N","N","N","N","N","N","N","N","N","N","N","N","N"]
[null,16,"11.3.5.a.1",null,"Proyecto o memoria técnica, según proceda, para actuaciones de biomasa del programa de incentivos 6. (excepto para la tipología de biomasa de aparatos de calefacción local.)(Solo para Biomasa)","N","N","N","N","N","N","N","N","N","N","N","N","N","N","N","N","N","N","N","N","N","N","N","N","N","N","N","N","N","N","N","N","N","N","N","N","N","N","N","N","N","N","N","N","N","N","N","N","N","N","N","N","N","N","N","N","N","N","N","N","N","N","N","N","N",{"$f":"PREGUNTAS!$R$45","v":{"$error":"#N/A"}},{"$f":"PREGUNTAS!$R$45","v":{"$error":"#N/A"}},{"$f":"PREGUNTAS!$R$45","v":{"$error":"#N/A"}},{"$f":"PREGUNTAS!$R$45","v":{"$error":"#N/A"}},{"$f":"PREGUNTAS!$R$45","v":{"$error":"#N/A"}},{"$f":"PREGUNTAS!$R$45","v":{"$error":"#N/A"}},{"$f":"PREGUNTAS!$R$45","v":{"$error":"#N/A"}},{"$f":"PREGUNTAS!$R$45","v":{"$error":"#N/A"}},{"$f":"PREGUNTAS!$R$45","v":{"$error":"#N/A"}}]
[null,17,"11.3.5.a.2",null,"Declaración  (realizada por el solicitante) de combustibles a utilizar con 80% reduccion emisiones, para actuaciones de biomasa de programa de incentivos 6. En su defecto memoria justificativa firmada.","N","N","N","N","N","N","N","N","N","N","N","N","N","N","N","N","N","N","N","N","N","N","N","N","N","N","N","N","N","N","N","N","N","N","N","N","N","N","N","N","N","N","N","N","N","N","N","N","N","N","N","N","N","N","N","N","N","N","N","N","N","N","N","N","N",{"$f":"PREGUNTAS!$R$42","v":{"$error":"#N/A"}},{"$f":"PREGUNTAS!$R$42","v":{"$error":"#N/A"}},{"$f":"PREGUNTAS!$R$42","v":{"$error":"#N/A"}},{"$f":"PREGUNTAS!$R$42","v":{"$error":"#N/A"}},{"$f":"PREGUNTAS!$R$42","v":{"$error":"#N/A"}},{"$f":"PREGUNTAS!$R$42","v":{"$error":"#N/A"}},{"$f":"PREGUNTAS!$R$42","v":{"$error":"#N/A"}},{"$f":"PREGUNTAS!$R$42","v":{"$error":"#N/A"}},{"$f":"PREGUNTAS!$R$42","v":{"$error":"#N/A"}}]
[null,18,"11.3.5.a.3",null,"Acreditación del fabricante de equipo de requisitos de eficiencia energética y emisiones, para actuaciones de biomasa de programa de incentivos 6. (aparatos de calefacción local o calderas de menos de 1 MW)","N","N","N","N","N","N","N","N","N","N","N","N","N","N","N","N","N","N","N","N","N","N","N","N","N","N","N","N","N","N","N","N","N","N","N","N","N","N","N","N","N","N","N","N","N","N","N","N","N","N","N","N","N","N","N","N","N","N","N","N","N","N","N","N","N",{"$f":"PREGUNTAS!$R$40","v":{"$error":"#N/A"}},{"$f":"PREGUNTAS!$R$40","v":{"$error":"#N/A"}},{"$f":"PREGUNTAS!$R$40","v":{"$error":"#N/A"}},{"$f":"PREGUNTAS!$R$40","v":{"$error":"#N/A"}},{"$f":"PREGUNTAS!$R$40","v":{"$error":"#N/A"}},{"$f":"PREGUNTAS!$R$40","v":{"$error":"#N/A"}},{"$f":"PREGUNTAS!$R$40","v":{"$error":"#N/A"}},{"$f":"PREGUNTAS!$R$40","v":{"$error":"#N/A"}},{"$f":"PREGUNTAS!$R$40","v":{"$error":"#N/A"}}]
[null,18,"11.3.5.a.3",null,"Declaración de beneficiario (realizada por el solicitante) de compromiso de registro documental de combustible, para actuaciones de biomasa de programa de incentivos 6, según proceda. (aparatos de calefacción local o calderas de menos de 1 MW)","N","N","N","N","N","N","N","N","N","N","N","N","N","N","N","N","N","N","N","N","N","N","N","N","N","N","N","N","N","N","N","N","N","N","N","N","N","N","N","N","N","N","N","N","N","N","N","N","N","N","N","N","N","N","N","N","N","N","N","N","N","N","N","N","N",{"$f":"PREGUNTAS!$R$40","v":{"$error":"#N/A"}},{"$f":"PREGUNTAS!$R$40","v":{"$error":"#N/A"}},{"$f":"PREGUNTAS!$R$40","v":{"$error":"#N/A"}},{"$f":"PREGUNTAS!$R$40","v":{"$error":"#N/A"}},{"$f":"PREGUNTAS!$R$40","v":{"$error":"#N/A"}},{"$f":"PREGUNTAS!$R$40","v":{"$error":"#N/A"}},{"$f":"PREGUNTAS!$R$40","v":{"$error":"#N/A"}},{"$f":"PREGUNTAS!$R$40","v":{"$error":"#N/A"}},{"$f":"PREGUNTAS!$R$40","v":{"$error":"#N/A"}}]
[null,20,"11.3.5.b",null,"En instalaciones de geotermia, hidrotermia y aerotermia, donde la instalación necesite legalización, se aportará proyecto o memoria técnica, de acuerdo con lo establecido en el RITE, suscrita por técnico competente o empresa instaladora","N","N","N","N","N","N","N","N","N","N","N","N","N","N","N","N","N","N","N","N","N","N","N","N","N","N","N","N","N","N","N","N","N","N","N","N","N","N","N","N","N","N","N","N","N","N","N","N","N","N","N","N","N","N","N","N","N","N","N","N","N","N","N","N","N",{"$f":"PREGUNTAS!$S$42","v":{"$error":"#N/A"}},{"$f":"PREGUNTAS!$S$42","v":{"$error":"#N/A"}},{"$f":"PREGUNTAS!$S$42","v":{"$error":"#N/A"}},{"$f":"PREGUNTAS!$S$42","v":{"$error":"#N/A"}},{"$f":"PREGUNTAS!$S$42","v":{"$error":"#N/A"}},{"$f":"PREGUNTAS!$S$42","v":{"$error":"#N/A"}},{"$f":"PREGUNTAS!$S$42","v":{"$error":"#N/A"}},{"$f":"PREGUNTAS!$S$42","v":{"$error":"#N/A"}},{"$f":"PREGUNTAS!$S$42","v":{"$error":"#N/A"}}]
[null,21,"11.3.5.c",null,"Declaración responsable del beneficiario  (realizada por el solicitante) , para actuaciones del programa de incentivos 6, sobre la titularidad pública de las viviendas, si procede.","N","N","N","N","N","N","N","N","N","N","N","N","N","N","N","N","N","N","N","N","N","N","N","N","N","N","N","N","N","N","N","N","N","N","N","N","N","N","N","N","N","N","N","N","N","N","N","N","N","N","N","N","N","N","N","N","N","N","N","N","N","N","N","N","N","N","N","Obligatorio","Obligatorio","N","N","N","N","N"]
[]
[null,null,null,null,"Documentación según el tipo de beneficiario."]
[]
[null,null,null,null,"Profesional autónomo"]
[]
[null,22,"11.4.1.a",null,"Certificado de alta en el Censo de Empresarios, Profesionales y Retenedores o Certificado de Situación Censal. Solo será necesaria su aportación cuando el solicitante se oponga expresamente a su consulta.(Anexo II - 9-6)","N","N","N","N","N","N","N","N","N","N","N","N","N","N","N","N","N","N","N","N","N","N","N","N","N","N","N","N","N","N","N","N","N","N","N","N","N","N","N","N","N","N","N","N","N","N","N","N","N","N","N","N","N","N","N","N","N","N","N","N","N","N","N","N","N","N","N","N","N","N","N","N","N","N"]
[null,23,"11.4.1.b",null,"Declaración de ayudas solicitadas o recibidas bajo el régimen de minimis en los tres últimos años. (Anexo II - 8.6)","N","N","N","N","N","N","N","N","N","N","N","N","N","N","N","N","N","N","N","N","N","N","N","N","N","N","N","N","N","N","N","N","N","N","N","N","N","N","N","N","N","N","N","N","N","N","N","N","N","N","N","N","N","N","N","N","N","N","N","N","N","N","N","N","N","N","N","N","N","N","N","N","N","N"]
[]
[null,null,null,null,"Empresas o agrupaciones de empresas"]
[]
[null,24,"11.4.2.a",null,"Certificado expedido por la Agencia Estatal de la Administración Tributaria relativo a las altas y bajas en el impuesto sobre actividades económicas, cuando exista oposición expresa en el apartado correspondiente del (Anexo II - 9-2)","N","N","N","N","N","N","N","N","N","N","N","N","N","N","N","N","N","N","N","N","N","N","N","N","N","N","N","N","N","N","N","N","N","N","N","N","N","N","N","N","N","N","N","N","N","N","N","N","N","N","N","N","N","N","N","N","N","N","N","N","N","N","N","N","N","N","N","N","N","N","N","N","N","N"]
[null,25,"11.4.2.b",null,"Escrituras de constitución de la empresa o estatutos vigentes de la misma, debidamente inscritos, en su caso, en los registros públicos correspondientes.","Obligatorio","Obligatorio","Obligatorio","Obligatorio","Obligatorio","Obligatorio","Obligatorio","Obligatorio","Obligatorio","N","N","N","N","N","N","Obligatorio","Obligatorio","Obligatorio","Obligatorio","Obligatorio","Obligatorio","Obligatorio","Obligatorio","Obligatorio","N","N","N","N","N","N","Obligatorio","Obligatorio","Obligatorio","Obligatorio","Obligatorio","Obligatorio","Obligatorio","Obligatorio","Obligatorio","N","N","N","N","N","N","Obligatorio","N","N","N","N","N","N","N","N","N","Obligatorio","N","N","N","N","N","N","N","N","N","Obligatorio","N","N","N","N","N","N","N","N"]
[null,26,"11.4.2.c",null,"Declaración responsable en la que figure la condición de gran empresa, mediana o pequeña empresa. (Anexo II - 8.1.1)","N","N","N","N","N","N","N","N","N","N","N","N","N","N","N","N","N","N","N","N","N","N","N","N","N","N","N","N","N","N","N","N","N","N","N","N","N","N","N","N","N","N","N","N","N","N","N","N","N","N","N","N","N","N","N","N","N","N","N","N","N","N","N","N","N","N","N","N","N","N","N","N","N","N"]
[null,27,"11.4.2.d",null,"En el caso de agrupación de empresas, documento de colaboración o instrumento análogo formalizado por el representante debidamente facultado de las mismas que especifique la aceptación y designación expresa del representante único de todas ellas, que formule la solicitud y reciba el importe total de la ayuda otorgada, así como la aceptación expresa de participación de todas ellas en el Programa de ayudas establecido por esta convocatoria, asumiendo la totalidad de compromisos y obligaciones derivados del mismo, con detalle de los compromisos de ejecución correspondientes a cada miembro de la agrupación así como importe de la ayuda a aplicar a cada uno de ellos.","N","Obligatorio","??","N","N","N","N","N","N","N","N","N","N","N","N","N","Obligatorio","¿¿","N","N","N","N","N","N","N","N","N","N","N","N","N","Obligatorio","¿¿","N","N","N","N","N","N","N","N","N","N","N","N","N","N","N","N","N","N","N","N","N","N","N","N","N","N","N","N","N","N","N","N","N","N","N","N","N","N","N","N","N"]
[]
[null,null,null,null,"● Empresas de servicios energéticos: Además de la documentación indicada para empresas, deberá aportarse:"]
[]
[null,28,"3.1-1.1-a-3",null,"Acuerdo y/o contrato con empresa donde se realizará la actuación.","N","N","N","N","Obligatorio","Obligatorio","Obligatorio","Obligatorio","Obligatorio","N","N","N","N","N","N","N","N","N","N","Obligatorio","Obligatorio","Obligatorio","Obligatorio","Obligatorio","N","N","N","N","N","N","N","N","N","N","Obligatorio","Obligatorio","Obligatorio","Obligatorio","Obligatorio","N","N","N","N","N","N","N","N","N","N","N","N","N","N","N","N","N","N","N","N","N","N","N","N","N","N","N","N","N","N","N","N","N","N","N"]
[]
[]
[]
[null,29,"11.4.9",null,"Documento de colaboración o instrumento análogo formalizado por el representante debidamente facultado que especifique la aceptación y designación expresa del representante único, y donde conste expresamente los compromisos de ejecución asumidos por cada miembro, así como el importe de la ayuda a aplicar a cada uno de ellos","N","N","Obligatorio","N","N","N","N","N","N","N","N","N","N","N","N","N","N","Obligatorio","N","N","N","N","N","N","N","N","N","N","N","N","N","N","Obligatorio","N","N","N","N","N","N","N","N","N","N","N","N","N","N","N","N","N","N","N","N","N","N","N","N","N","N","N","N","N","N","N","N","N","N","N","N","N","N","N","N","N"]
[]
[]
[null,null,null,null,"● Empresas explotadoras, arrendatarias o concesionarias de actuaciones en el ámbito de la energía: Además de la documentación indicada para empresas, deberá aportarse:"]
[]
[null,30,"11.4.7",null,"Copia del contrato o contratos formalizados con el propietario o propietarios del emplazamiento donde se vaya a ejecutar la actuación y asi como autorización expresa para la realización de las actuaciones objeto de ayuda.","N","N","N","N","Obligatorio","Obligatorio","Obligatorio","N","N","N","N","N","N","N","N","N","N","N","N","Obligatorio","Obligatorio","Obligatorio","N","N","N","N","N","N","N","N","N","N","N","N","Obligatorio","Obligatorio","Obligatorio","N","N","N","N","N","N","N","N","N","N","N","N","N","N","N","N","N","N","N","N","N","N","N","N","N","N","N","N","N","N","N","N","N","N","N","N","N"]
[null,null,null,null,null,null,null,null,null,null,null,null,null,null,null,null,null,null,null,null,null,null,null,null,null,null,null,null,null,null,null,null,null,null,null,null,null,null,null,null,null,null,null,"N","N","N","N","N","N","N","N","N","N","N","N","N","N","N","N","N","N","N","N","N","N","N","N","N","N","N","N","N","N","N","N","N","N","N","N"]
[null,null,null,null,"Administración o entidad púbica",null,null,null,null,null,null,null,null,null,null,null,null,null,null,null,null,null,null,null,null,null,null,null,null,null,null,null,null,null,null,null,null,null,null,null,null,null,null,"N","N","N","N","N","N","N","N","N","N","N","N","N","N","N","N","N","N","N","N","N","N","N","N","N","N","N","N","N","N","N","N","N","N","N","N"]
[null,null,null,null,null,null,null,null,null,null,null,null,null,null,null,null,null,null,null,null,null,null,null,null,null,null,null,null,null,null,null,null,null,null,null,null,null,null,null,null,null,null,null,"N","N","N","N","N","N","N","N","N","N","N","N","N","N","N","N","N","N","N","N","N","N","N","N","N","N","N","N","N","N","N","N","N","N","N","N"]
[null,31,"11.4.3",null,"Certificación acreditativa de resolución o acuerdo adoptado por el órgano competente de la administración o entidad pública solicitante, por la que se apruebe la participación en el programa de incentivos correspondiente asumiendo los compromisos contenidos en el mismo.","N","N","N","N","N","N","N","N","N","Obligatorio","N","N","N","N","N","N","N","N","N","N","N","N","N","N","Obligatorio","Obligatorio","N","N","N","N","N","N","N","N","N","N","N","N","N","Obligatorio","Obligatorio","N","N","N","N","N","Obligatorio","Obligatorio","N","N","N","N","N","N","N","N","Obligatorio","Obligatorio","N","N","N","N","N","N","N","N","Obligatorio","Obligatorio","N","N","N","N","N","N"]
[]
[null,null,null,null,"Sector público institucional:"]
[]
[null,32,"11.4.4",null,"Declaración responsable donde acredite su adscripción a la Administración correspondiente. (Anexo II - 8.2) ","N","N","N","N","N","N","N","N","N","N","N","N","N","N","N","N","N","N","N","N","N","N","N","N","N","N","N","N","N","N","N","N","N","N","N","N","N","N","N","N","N","N","N","N","N","N","N","N","N","N","N","N","N","N","N","N","N","N","N","N","N","N","N","N","N","N","N","N","N","N","N","N","N","N"]
[]
[null,null,null,null,"Comunidad de energías renovables o una comunidad ciudadana de energía"]
[]
[null,33,"11.4.6.a",null,"NIF de la entidad jurídica que gestione la comunidad. Solo será necesaria su aportación cuando el solicitante se oponga expresamente a su consulta. (Anexo II 9 - 6)","N","N","N","N","N","N","N","N","N","N","N","N","N","N","N","N","N","N","N","N","N","N","N","N","N","N","N","N","N","N","N","N","N","N","N","N","N","N","N","N","N","N","N","N","N","N","N","N","N","N","N","N","N","N","N","N","N","N","N","N","N","N","N","N","N","N","N","N","N","N","N","N","N","N"]
[null,34,"11.4.6.b",null,"Composición, estructura y régimen de funcionamiento y acuerdos de los órganos de gobierno de la entidad, para acreditar que todos los socios o miembros son personas físicas, pymes o autoridades locales, incluidos los municipios.","N","N","N","N","N","N","N","N","N","N","N","N","Obligatorio","Obligatorio","N","N","N","N","N","N","N","N","N","N","N","N","N","Obligatorio","Obligatorio","N","N","N","N","N","N","N","N","N","N","N","N","N","Obligatorio","Obligatorio","N","N","N","N","N","N","N","Obligatorio","Obligatorio","N","N","N","N","N","N","N","N","Obligatorio","Obligatorio","N","N","N","N","N","N","N","N","N","N","N"]
[null,34,"11.4.6.b",null,"Declaración responsable incluida en el (Anexo IV).","N","N","N","N","N","N","N","N","N","N","N","N","Obligatorio","Obligatorio","N","N","N","N","N","N","N","N","N","N","N","N","N","Obligatorio","Obligatorio","N","N","N","N","N","N","N","N","N","N","N","N","N","Obligatorio","Obligatorio","N","N","N","N","N","N","N","Obligatorio","Obligatorio","N","N","N","N","N","N","N","N","Obligatorio","Obligatorio","N","N","N","N","N","N","N","N","N","N","N"]
[null,36,"11.4.6.c",null,"Certificado de empadronamiento para la persona física situada a mayor distancia de la dirección del proyecto presentado, y/o tarjeta NIF donde conste la dirección social para las pymes socios o miembros de la misma.","N","N","N","N","N","N","N","N","N","N","N","N","Obligatorio","Obligatorio","N","N","N","N","N","N","N","N","N","N","N","N","N","Obligatorio","Obligatorio","N","N","N","N","N","N","N","N","N","N","N","N","N","Obligatorio","Obligatorio","N","N","N","N","N","N","N","Obligatorio","Obligatorio","N","N","N","N","N","N","N","N","Obligatorio","Obligatorio","N","N","N","N","N","N","N","N","N","N","N"]
[null,36,"11.4.6.c",null,"Mapa a escala de todas las ubicaciones todos los socios o miembros de la comunidad de energías renovable, debiendo quedar todos circunscritos dentro de una circunferencia de radio inferior o igual a veinticinco kilómetros con centro en la dirección del proyecto presentado.","N","N","N","N","N","N","N","N","N","N","N","N","Obligatorio","Obligatorio","N","N","N","N","N","N","N","N","N","N","N","N","N","Obligatorio","Obligatorio","N","N","N","N","N","N","N","N","N","N","N","N","N","Obligatorio","Obligatorio","N","N","N","N","N","N","N","Obligatorio","Obligatorio","N","N","N","N","N","N","N","N","Obligatorio","Obligatorio","N","N","N","N","N","N","N","N","N","N","N"]
[null,38,"11.4.6.d",null,"Copia de los estatutos donde quede debidamente justificado que su finalidad primordial sea proporcionar beneficios medioambientales, económicos o sociales.","N","N","N","N","N","N","N","N","N","N","N","N","Obligatorio","Obligatorio","N","N","N","N","N","N","N","N","N","N","N","N","N","Obligatorio","Obligatorio","N","N","N","N","N","N","N","N","N","N","N","N","N","Obligatorio","Obligatorio","N","N","N","N","N","N","N","Obligatorio","Obligatorio","N","N","N","N","N","N","N","N","Obligatorio","Obligatorio","N","N","N","N","N","N","N","N","N","N","N"]
[null,39,"11.4.6.e",null,"Acuerdo de la reunión para ejecución de las actuaciones, nombramiento y cumplimientos de obligaciones.","N","N","N","N","N","N","N","N","N","N","N","N","Obligatorio","Obligatorio","N","N","N","N","N","N","N","N","N","N","N","N","N","Obligatorio","Obligatorio","N","N","N","N","N","N","N","N","N","N","N","N","N","Obligatorio","Obligatorio","N","N","N","N","N","N","N","Obligatorio","Obligatorio","N","N","N","N","N","N","N","N","Obligatorio","Obligatorio","N","N","N","N","N","N","N","N","N","N","N"]
[]
[null,null,null,null,"Administración u organismos públicos y entidades de derecho público que actúe como representante de agrupaciones u otros propietarios."]
[]
[null,40,"11.4.12",null,"Copia del convenio que recoja la designación de la administración o entidad pública como representante y beneficiario del derecho de cobro de la ayuda por parte de los propietarios a la entidad, así como la forma de recuperación de la inversión.","N","N","N","N","N","N","N","N","N","Obligatorio","N","N","N","N","N","N","N","N","N","N","N","N","N","N","Obligatorio","N","N","N","N","N","N","N","N","N","N","N","N","N","N","Obligatorio","N","N","N","N","N","N","Obligatorio","N","N","N","N","N","N","N","N","N","Obligatorio","N","N","N","N","N","N","N","N","N","Obligatorio","N","N","N","N","N","N","N"]
[]
[null,null,null,null,"Entidades u organizaciones públicas o privadas sin ánimo de lucro."]
[]
[null,41,"11.4.10",null,"Copia de documento que acredite estar inscritas en el registro correspondiente.","N","N","N","N","N","N","N","N","N","N","N","N","N","N","N","N","N","N","N","N","N","N","N","N","N","N","N","N","N","Obligatorio","N","N","N","N","N","N","N","N","N","N","N","N","N","N","Obligatorio","N","N","N","N","N","N","N","N","N","Obligatorio","N","N","N","N","N","N","N","N","N","Obligatorio","N","N","N","N","N","N","N","Obligatorio","Obligatorio"]
[null,42,"11.4.10",null,"Declaración responsable que acredite la puesta a disposición de colectivos vulnerables de viviendas sociales, en su caso. (realizada por el solicitante)","N","N","N","N","N","N","N","N","N","N","N","N","N","N","N","N","N","N","N","N","N","N","N","N","N","N","N","N","N","N","N","N","N","N","N","N","N","N","N","N","N","N","N","N","N","N","N","N","N","N","N","N","N","N","N","N","N","N","N","N","N","N","N","N","N","N","N","N","N","N","N","N","Obligatorio","Obligatorio"]
[]
[null,null,null,null,"Comunidades de propietarios"]
[]
[null,43,"11.4.5.1",null,"Escritura de constitución de la comunidad de propietarios o acta de la reunión en la que se constituyó como tal.","N","N","N","N","N","N","N","N","N","N","N","N","N","N","N","N","N","N","N","N","N","N","N","N","N","N","N","N","N","N","N","N","N","N","N","N","N","N","N","N","N","N","N","N","N","N","N","N","N","N","N","N","N","Obligatorio","N","N","N","N","N","N","N","N","N","Obligatorio","N","N","N","N","N","N","N","Obligatorio","N","N"]
[null,44,"11.4.5.2",null,"Acta de la reunión en la que se nombró al presidente.","N","N","N","N","N","N","N","N","N","N","N","N","N","N","N","N","N","N","N","N","N","N","N","N","N","N","N","N","N","N","N","N","N","N","N","N","N","N","N","N","N","N","N","N","N","N","N","N","N","N","N","N","N","Obligatorio","N","N","N","N","N","N","N","N","N","Obligatorio","N","N","N","N","N","N","N","Obligatorio","N","N"]
[null,45,"11.4.5.3",null,"Acta de la reunión en la que conste el acuerdo de la comunidad para solicitar la ayuda, adoptado con el quórum legalmente establecido.","N","N","N","N","N","N","N","N","N","N","N","N","N","N","N","N","N","N","N","N","N","N","N","N","N","N","N","N","N","N","N","N","N","N","N","N","N","N","N","N","N","N","N","N","N","N","N","N","N","N","N","N","N","Obligatorio","N","N","N","N","N","N","N","N","N","Obligatorio","N","N","N","N","N","N","N","Obligatorio","N","N"]
[null,46,"11.4.5.4",null,"Declaración de comuneros,  (Anexo III).","N","N","N","N","N","N","N","N","N","N","N","N","N","N","N","N","N","N","N","N","N","N","N","N","N","N","N","N","N","N","N","N","N","N","N","N","N","N","N","N","N","N","N","N","N","N","N","N","N","N","N","N","N","Obligatorio","N","N","N","N","N","N","N","N","N","Obligatorio","N","N","N","N","N","N","N","Obligatorio","N","N"]
[]
[null,null,null,null,"Comunidades de bienes"]
[]
[null,47,"11.4.8.a",null,"Copia del acta de constitución de la comunidad de bienes.","N","N","Obligatorio","N","N","N","N","N","N","N","N","N","N","N","N","N","N","Obligatorio","N","N","N","N","N","N","N","N","N","N","N","N","N","N","Obligatorio","N","N","N","N","N","N","N","N","N","N","N","N","N","N","N","N","N","N","N","N","N","N","N","N","N","N","N","N","N","N","N","N","N","N","N","N","N","N","N","N","N"]
[null,48,"11.4.8.b",null,"Declaración responsable del solicitante donde conste si la comunidad de bienes ejerce actividad económica.(Anexo II - 8.1.1) ","N","N","N","N","N","N","N","N","N","N","N","N","N","N","N","N","N","N","N","N","N","N","N","N","N","N","N","N","N","N","N","N","N","N","N","N","N","N","N","N","N","N","N","N","N","N","N","N","N","N","N","N","N","N","N","N","N","N","N","N","N","N","N","N","N","N","N","N","N","N","N","N","N","N"]
[null,49,"11.4.8.c",null,"Declaración de comuneros, (Anexo III).","N","N","Obligatorio","N","N","N","N","N","N","N","N","N","N","N","N","N","N","Obligatorio","N","N","N","N","N","N","N","N","N","N","N","N","N","N","Obligatorio","N","N","N","N","N","N","N","N","N","N","N","N","N","N","N","N","N","N","N","N","N","N","N","N","N","N","N","N","N","N","N","N","N","N","N","N","N","N","N","N","N"]
[]
[null,null,null,null,"Entidad vinculada o dependiente del sector público"]
[]
[null,50,"11.4.11",null,"Declaración responsable donde acredite su adscripción a una Administración Pública y donde declare si desarrolla actividad económica por la que ofrezca bienes y/o servicios en el mercado, y en caso de realizarla cuál es su finalidad y CNAE. \n(Anexo II - 8.2 + Anexo II - 6.2)","N","N","N","N","N","N","N","N","N","N","N","N","N","N","N","N","N","N","N","N","N","N","N","N","N","N","N","N","N","N","N","N","N","N","N","N","N","N","N","N","N","N","N","N","N","N","N","N","N","N","N","N","N","N","N","N","N","N","N","N","N","N","N","N","N","N","N","N","N","N","N","N","N","N"]
[]
[]
[]
[]
[]
[null,null,null,null,"Documento condicionado"]
[null,null,null,null,"Documento obligatorio"]

{"sheet":"DOCUMENTACIÓN A TRAMITAR","index":7,"n_rows":79,"n_cols":8,"rows_kept":79,"cut":false,"hidden":true,"merged":[[2,3,2,4],[70,1,70,2]]}
[]
[]
["GRUPO","BENEFICIARIO","OPCIONES","Nº DOCUMENTO",null,"REQUIRE DOCUMENTO FISICO","CODIGO DE BENEFICIARIO Y LINEA"]
[{"$f":"VLOOKUP(G4,CABECERAS!A2:E91,2,FALSE)","v":{"$error":"#N/A"}},{"$f":"VLOOKUP(G4,CABECERAS!A2:E86,3,FALSE)","v":{"$error":"#N/A"}},{"$f":"VLOOKUP(G4,CABECERAS!A2:E91,4,FALSE)","v":{"$error":"#N/A"}},{"$f":"VLOOKUP(G4,CABECERAS!A2:E91,5,FALSE)","v":{"$error":"#N/A"}},{"$f":"VLOOKUP(G4,CABECERAS!A2:E91,5,FALSE)","v":{"$error":"#N/A"}},null,{"$f":"DESPLEGABLES!AG2","v":{"$error":"#N/A"}}]
["CONFIRMACIÓN / ","COMENTARIOS","Articulo","Nº DOCUMENTO","Documentación general","MODALIDAD","CATEGORIA","MODALIDAD"]
[null,null,"11.2.a",1,"Escritura de apoderamiento o documento acreditativo de representación legal, conforme el artículo 5 de la Ley 39/2015, de 1 de octubre, del Procedimiento Administrativo Común de las Administraciones Públicas, únicamente en el caso de que el poder de representante legal se haya elevado a público ante notario con anterioridad al 5 de junio de 2014, o para fechas posteriores caso de que se oponga a su consulta.","SI",{"$f":"HLOOKUP($G$4,COMBINACIONES!$F$1:$CA$103,4,FALSE)","v":{"$error":"#N/A"}},"A"]
[null,null,"11.2.b",2,"Memoria técnica que acredite y justifique de forma adecuada, como mínimo, los datos aportados en el apartado 6.3. de la solicitud de ayuda del modelo establecido en el Anexo II del presente decreto.","SI",{"$f":"HLOOKUP($G$4,COMBINACIONES!$F$1:$CA$103,5,FALSE)","v":{"$error":"#N/A"}},"A"]
[null,null,"11.2.c",3,"Presupuesto de la empresa o empresas que realizarán la ejecución de las actuaciones, suficientemente desglosado por partidas y precios unitarios, de fecha posterior al 30 de junio de 2021. En el caso de que los solicitantes de las ayudas queden sujetos a normativa de contratación pública, esta documentación podrá sustituirse por el borrador de los pliegos de licitación correspondientes.","SI",{"$f":"HLOOKUP($G$4,COMBINACIONES!$F$1:$CA$103,6,FALSE)","v":{"$error":"#N/A"}},"A"]
[null,null,"11.2.d",4,"Informe que incluya plan estratégico, justificación del cumplimiento de no causar daño significativo a ninguno de los objetivos medioambientales y memoria de residuo generado.","SI",{"$f":"HLOOKUP($G$4,COMBINACIONES!$F$1:$CA$103,7,FALSE)","v":{"$error":"#N/A"}},"A"]
[null,null,"11.2.e",5,"Declaración responsable de promotor de proyecto de no afectación medioambiental, si el proyecto no se haya sometido a previa autorización administrativa, ni a declaración responsable o comunicación previa a ninguna administración, y que no se encuentre en ninguno de los supuestos de evaluación de impacto ambiental obligatoria contemplados en el artículo 7 de la Ley 21/2013 de evaluación ambiental.","SI",{"$f":"HLOOKUP($G$4,COMBINACIONES!$F$1:$CA$103,8,FALSE)","v":{"$error":"#N/A"}},"A"]
[null,null,"11.2.f",6,"Declaración responsable del solicitante de hallarse al corriente en el pago de obligaciones por reintegro de subvenciones.","NO (Incluido en Anexo II)",{"$f":"HLOOKUP($G$4,COMBINACIONES!$F$1:$CA$103,9,FALSE)","v":{"$error":"#N/A"}},"B"]
[null,null,"11.2.g",7,"Declaración responsable del solicitante, indicando que no ha solicitado o recibido otras ayudas para la misma actuación o finalidad.","NO (Incluido en Anexo II)",{"$f":"HLOOKUP($G$4,COMBINACIONES!$F$1:$CA$103,10,FALSE)","v":{"$error":"#N/A"}},"B"]
[null,null,"11.2.h",8,"Se deberá presentar un certificado de residencia fiscal emitido por las autoridades competentes de su país de residencia.","NO (Solo si se opone)",{"$f":"HLOOKUP($G$4,COMBINACIONES!$F$1:$CA$103,11,FALSE)","v":{"$error":"#N/A"}},"D"]
[null,null,"11.2.i",9,"Certificados de estar al corriente en el cumplimiento de las obligaciones fiscales y tributarias del interesado con la Hacienda autonómica y con la Seguridad Social. Solo será necesaria su aportación cuando el solicitante no haya autorizado o se oponga expresamente a su consulta.","NO (Solo si se opone)",{"$f":"HLOOKUP($G$4,COMBINACIONES!$F$1:$CA$103,12,FALSE)","v":{"$error":"#N/A"}},"D"]
[null,null,"11.2.j",10,"Certificado de estar al corriente con la Hacienda estatal. Solo será necesaria su aportación cuando el solicitante no haya autorizado o se oponga expresamente a su consulta.","NO (Solo si se opone)",{"$f":"HLOOKUP($G$4,COMBINACIONES!$F$1:$CA$103,13,FALSE)","v":{"$error":"#N/A"}},"D"]
[null,null,"7.2.o",11,"Declaración de vendedor y certificación de tasador para costes de equipos de segunda mano.","SI",{"$f":"HLOOKUP($G$4,COMBINACIONES!$F$1:$CA$103,14,FALSE)","v":{"$error":"#N/A"}},"A"]
["CONFIRMACIÓN / ","COMENTARIOS","Articulo","Nº DOCUMENTO","Documentación técnica"]
[null,null,"11.3.1",12,"Declaración responsable que acredita que el sistema de almacenamiento no estará directamente conectado a red, sino que formará parte de la instalación de autoconsumo.","SI",{"$f":"HLOOKUP($G$4,COMBINACIONES!$F$1:$CA$103,18,FALSE)","v":{"$error":"#N/A"}},"A"]
[null,null,"11.3.2",13,"Declaración responsable del solicitante o representante legal, en su caso, manifestando el grupo donde queda encuadrada su actividad según la clasificación del CNAE.","NO (Incluido en Anexo II)",{"$f":"HLOOKUP($G$4,COMBINACIONES!$F$1:$CA$103,19,FALSE)","v":{"$error":"#N/A"}},"B"]
[null,null,"11.3.3",14,"Declaración de exención de IVA por no ser recuperable.","NO (Incluido en Anexo II)",{"$f":"HLOOKUP($G$4,COMBINACIONES!$F$1:$CA$103,20,FALSE)","v":{"$error":"#N/A"}},"B"]
[null,null,"11.3.4",15,"Declaración responsable de una producción anual de la cual se consume el 80 %.","SI",{"$f":"HLOOKUP($G$4,COMBINACIONES!$F$1:$CA$103,21,FALSE)","v":{"$error":"#N/A"}},"A"]
[null,null,"11.3.5.a.1",16,"En instalaciones de Biomasa, se aportará proyecto o memoria técnica, de acuerdo con lo establecido en el RITE, suscrita por técnico competente o empresa instaladora, según corresponda.","SI",{"$f":"HLOOKUP($G$4,COMBINACIONES!$F$1:$CA$103,22,FALSE)","v":{"$error":"#N/A"}},"A"]
[null,null,"11.3.5.a.2",17,"Declaración de que todos los combustibles que se van a utilizar tienen un valor por defecto de reducción de emisiones de GEI del 80 % o superior según los indicados para producción de calor establecidos en el Anexo VI de la Directiva (UE) 2018/2001 del Parlamento Europeo y del Consejo, de 11 de diciembre de 2018, relativa al fomento del uso de energía procedente de fuentes renovables, teniendo en cuenta el sistema de producción y resto de condiciones que determinan dicho valor por defecto, indicando la descripción del combustible o de los combustibles y el valor o los valores por defecto.","SI",{"$f":"HLOOKUP($G$4,COMBINACIONES!$F$1:$CA$103,23,FALSE)","v":{"$error":"#N/A"}},"A"]
[null,null,"11.3.5.a.3",18,"Una acreditación por parte del fabricante del equipo del cumplimiento de los requisitos de eficiencia energética estacional y emisiones para el combustible que se vaya a utilizar, que no podrán ser menos exigentes que los definidos en el Reglamento de Ecodiseño en vigor (según corresponda, Reglamento (UE) 2015/1185 de la Comisión o Reglamento (UE) 2015/1189 de la Comisión).","SI",{"$f":"HLOOKUP($G$4,COMBINACIONES!$F$1:$CA$103,24,FALSE)","v":{"$error":"#N/A"}},"A"]
[null,null,"11.3.5.a.3",19,"Declaración por parte del beneficiario comprometiéndose a mantener, durante un plazo de cinco años, un registro documental suficiente que permita acreditar que el combustible empleado en el equipo dispone de un certificado otorgado por una entidad independiente acreditada relativo al cumplimiento de la clase A1 según lo establecido en la norma UNE-EN-ISO 17225-2, de la clase 1 de la norma UNE-EN-ISO 17225-4, de la clase A1 de la norma 164003 o de la clase A1 de la norma 164004.","SI",{"$f":"HLOOKUP($G$4,COMBINACIONES!$F$1:$CA$103,25,FALSE)","v":{"$error":"#N/A"}},"A"]
[null,null,"11.3.5.b",20,"En instalaciones de geotermia, hidrotermia y aerotermia, donde la instalación necesite legalización, se aportará proyecto o memoria técnica, de acuerdo con lo establecido en el RITE, suscrita por técnico competente o empresa instaladora según corresponda.","SI",{"$f":"HLOOKUP($G$4,COMBINACIONES!$F$1:$CA$103,26,FALSE)","v":{"$error":"#N/A"}},"A"]
[null,null,"11.3.5.c",21,"Declaración responsable del beneficiario sobre la titularidad pública de las viviendas.","SI",{"$f":"HLOOKUP($G$4,COMBINACIONES!$F$1:$CA$103,27,FALSE)","v":{"$error":"#N/A"}},"A"]
["CONFIRMACIÓN / ","COMENTARIOS","Articulo","Nº DOCUMENTO","Documentación según el tipo de beneficiario."]
[null,null,null,null,"Profesional autónomo"]
[null,null,"11.4.1.a",22,"Certificado de alta en el Censo de Empresarios, Profesionales y Retenedores o Certificado de Situación Censal. Solo será necesaria su aportación cuando el solicitante se oponga expresamente a su consulta.","NO (Solo si se opone)",{"$f":"HLOOKUP($G$4,COMBINACIONES!$F$1:$CA$103,33,FALSE)","v":{"$error":"#N/A"}},"D"]
[null,null,"11.4.1.b",23,"Declaración de ayudas solicitadas o recibidas bajo el régimen de minimis en los tres últimos años.","NO (Incluido en Anexo II)",{"$f":"HLOOKUP($G$4,COMBINACIONES!$F$1:$CA$103,34,FALSE)","v":{"$error":"#N/A"}},"B"]
[null,null,null,null,"Empresas o agrupaciones de empresas"]
[null,null,"11.4.2.a",24,"Certificado expedido por la Agencia Estatal de la Administración Tributaria relativo a las altas y bajas en el impuesto sobre actividades económicas, cuando exista oposición expresa.","NO (Solo si se opone)",{"$f":"HLOOKUP($G$4,COMBINACIONES!$F$1:$CA$103,38,FALSE)","v":{"$error":"#N/A"}},"D"]
[null,null,"11.4.2.b",25,"Escrituras de constitución de la empresa o estatutos vigentes de la misma, debidamente inscritos, en su caso, en los registros públicos correspondientes.","SI",{"$f":"HLOOKUP($G$4,COMBINACIONES!$F$1:$CA$103,39,FALSE)","v":{"$error":"#N/A"}},"A"]
[null,null,"11.4.2.c",26,"Declaración responsable en la que figure la condición de gran empresa, mediana o pequeña empresa.","NO (Incluido en Anexo II)",{"$f":"HLOOKUP($G$4,COMBINACIONES!$F$1:$CA$103,40,FALSE)","v":{"$error":"#N/A"}},"B"]
[null,null,"11.4.2.d",27,"Documento de colaboración o instrumento análogo formalizado por el representante debidamente facultado de las mismas que especifique la aceptación y designación expresa del representante único de todas ellas, que formule la solicitud y reciba el importe total de la ayuda otorgada, así como la aceptación expresa de participación de todas ellas en el Programa de ayudas establecido por esta convocatoria, asumiendo la totalidad de compromisos y obligaciones derivados del mismo, con detalle de los compromisos de ejecución correspondientes a cada miembro de la agrupación así como importe de la ayuda a aplicar a cada uno de ellos.","SI",{"$f":"HLOOKUP($G$4,COMBINACIONES!$F$1:$CA$103,41,FALSE)","v":{"$error":"#N/A"}},"A"]
[null,null,null,null,"● Empresas de servicios energéticos: Además de la documentación indicada para empresas, deberá aportarse:"]
[null,null,"3.1-1.1-a-3",28,"Acuerdo y/o contrato con empresa donde se realizará la actuación.","SI",{"$f":"HLOOKUP($G$4,COMBINACIONES!$F$1:$CA$103,45,FALSE)","v":{"$error":"#N/A"}},"A"]
[null,null,null,null,"● Aquellas que carezcan de personalidad jurídica propia (Comunidad de Bienes y Sociedad Civil):"]
[null,null,"11.4.9",29,"Documento de colaboración o instrumento análogo formalizado por el representante debidamente facultado que especifique la aceptación y designación expresa del representante único, y donde conste expresamente los compromisos de ejecución asumidos por cada miembro, así como el importe de la ayuda a aplicar a cada uno de ellos.","SI",{"$f":"HLOOKUP($G$4,COMBINACIONES!$F$1:$CA$103,49,FALSE)","v":{"$error":"#N/A"}},"A"]
[null,null,null,null,"● Empresas explotadoras, arrendatarias o concesionarias de actuaciones en el ámbito de la energía: Además de la documentación indicada para empresas, deberá aportarse:"]
[null,null,"11.4.7",30,"Copia del contrato o contratos formalizados con el propietario o propietarios del emplazamiento donde se vaya a ejecutar la actuación y así como autorización expresa para la realización de las actuaciones objeto de ayuda.","SI",{"$f":"HLOOKUP($G$4,COMBINACIONES!$F$1:$CA$103,54,FALSE)","v":{"$error":"#N/A"}},"A"]
[null,null,null,null,"Administración o entidad púbica"]
[null,null,"11.4.3",31,"Certificación acreditativa de resolución o acuerdo adoptado por el órgano competente de la administración o entidad pública solicitante, por la que se apruebe la participación en el programa de incentivos correspondiente asumiendo los compromisos contenidos en el mismo.","SI",{"$f":"HLOOKUP($G$4,COMBINACIONES!$F$1:$CA$103,58,FALSE)","v":{"$error":"#N/A"}},"A"]
[null,null,null,null,"Sector público institucional:"]
[null,null,"11.4.4",32,"Declaración responsable donde acredite su adscripción a la Administración correspondiente.","NO (Incluido en Anexo II)",{"$f":"HLOOKUP($G$4,COMBINACIONES!$F$1:$CA$103,62,FALSE)","v":{"$error":"#N/A"}},"B"]
[null,null,null,null,"Comunidad de energías renovables o una comunidad ciudadana de energía"]
[null,null,"11.4.6.a",33,"NIF de la entidad jurídica que gestione la comunidad, en el caso de que la persona interesada se oponga expresamente en el apartado correspondiente del Anexo II relativo a la solicitud de ayuda, a que el órgano gestor lo recabe de oficio. Dicha entidad será la considerada como beneficiaria de la ayuda.","NO (Solo si se opone)",{"$f":"HLOOKUP($G$4,COMBINACIONES!$F$1:$CA$103,66,FALSE)","v":{"$error":"#N/A"}},"D"]
[null,null,"11.4.6.b",34,"Composición, estructura y régimen de funcionamiento y acuerdos de los órganos de gobierno de la entidad, para acreditar que todos los socios o miembros son personas físicas, pymes o autoridades locales, incluidos los municipios.","SI",{"$f":"HLOOKUP($G$4,COMBINACIONES!$F$1:$CA$103,67,FALSE)","v":{"$error":"#N/A"}},"A"]
[null,null,"11.4.6.b",35,"Declaración responsable incluida en el (Anexo IV).","SI",{"$f":"HLOOKUP($G$4,COMBINACIONES!$F$1:$CA$103,68,FALSE)","v":{"$error":"#N/A"}},"A"]
[null,null,"11.4.6.c",36,"Certificado de empadronamiento para la persona física situada a mayor distancia de la dirección del proyecto presentado, y/o tarjeta NIF donde conste la dirección social para las pymes, socios o miembros de la misma.","SI",{"$f":"HLOOKUP($G$4,COMBINACIONES!$F$1:$CA$103,69,FALSE)","v":{"$error":"#N/A"}},"A"]
[null,null,"11.4.6.c",37,"Mapa a escala de todas las ubicaciones todos los socios o miembros de la comunidad de energías renovable, debiendo quedar todos circunscritos dentro de una circunferencia de radio inferior o igual a veinticinco kilómetros con centro en la dirección del proyecto presentado.","SI",{"$f":"HLOOKUP($G$4,COMBINACIONES!$F$1:$CA$103,70,FALSE)","v":{"$error":"#N/A"}},"A"]
[null,null,"11.4.6.d",38,"Copia de los estatutos donde quede debidamente justificado que su finalidad primordial sea proporcionar beneficios medioambientales, económicos o sociales.","SI",{"$f":"HLOOKUP($G$4,COMBINACIONES!$F$1:$CA$103,71,FALSE)","v":{"$error":"#N/A"}},"A"]
[null,null,"11.4.6.e",39,"Acuerdo de la reunión donde se apruebe la ejecución de las actuaciones, se nombre a uno de sus socios como representante, a los efectos de la presentación, seguimiento de la solicitud de ayudas y cumplimiento de las obligaciones que les pudiera corresponder a los mismos. También deberá quedar contemplado en el acuerdo el número de cuenta a la que se hará el ingreso de la subvención en caso de corresponder la misma, debiendo los titulares de dicha cuenta formar parte de la comunidad. Este representante será el encargado de efectuar y justificar la inversión objeto de ayuda.","SI",{"$f":"HLOOKUP($G$4,COMBINACIONES!$F$1:$CA$103,72,FALSE)","v":{"$error":"#N/A"}},"A"]
[null,null,null,null,"Administración u organismos públicos y entidades de derecho público que actúe como representante de agrupaciones u otros propietarios."]
[null,null,"11.4.12",40,"Copia del convenio que recoja la designación de la administración o entidad pública como representante y beneficiario del derecho de cobro de la ayuda por parte de los propietarios a la entidad, así como la forma de recuperación de la inversión.","SI",{"$f":"HLOOKUP($G$4,COMBINACIONES!$F$1:$CA$103,76,FALSE)","v":{"$error":"#N/A"}},"A"]
[null,null,null,null,"Entidades u organizaciones públicas o privadas sin ánimo de lucro."]
[null,null,"11.4.10",41,"Copia de documento que acredite estar inscritas en el registro correspondiente.","SI",{"$f":"HLOOKUP($G$4,COMBINACIONES!$F$1:$CA$103,80,FALSE)","v":{"$error":"#N/A"}},"A"]
[null,null,"11.4.10",42,"Declaración responsable que acredite la puesta a disposición de colectivos vulnerables de viviendas sociales, en su caso. (realizada por el solicitante)","SI",{"$f":"HLOOKUP($G$4,COMBINACIONES!$F$1:$CA$103,81,FALSE)","v":{"$error":"#N/A"}},"A"]
[null,null,null,null,"Comunidades de propietarios"]
[null,null,"11.4.5.1",43,"Escritura de constitución de la comunidad de propietarios o acta de la reunión en la que se constituyó como tal.","SI",{"$f":"HLOOKUP($G$4,COMBINACIONES!$F$1:$CA$103,85,FALSE)","v":{"$error":"#N/A"}},"A"]
[null,null,"11.4.5.2",44,"Acta de la reunión en la que se nombró al presidente.","SI",{"$f":"HLOOKUP($G$4,COMBINACIONES!$F$1:$CA$103,86,FALSE)","v":{"$error":"#N/A"}},"A"]
[null,null,"11.4.5.3",45,"Acta de la reunión en la que conste el acuerdo de la comunidad para solicitar la ayuda, adoptado con el quórum legalmente establecido.","SI",{"$f":"HLOOKUP($G$4,COMBINACIONES!$F$1:$CA$103,87,FALSE)","v":{"$error":"#N/A"}},"A"]
[null,null,"11.4.5.4",46,"Declaración de comuneros del Anexo III.","SI",{"$f":"HLOOKUP($G$4,COMBINACIONES!$F$1:$CA$103,88,FALSE)","v":{"$error":"#N/A"}},"A"]
[null,null,null,null,"Comunidades de bienes"]
[null,null,"11.4.8.a",47,"Copia del acta de constitución de la comunidad de bienes.","SI",{"$f":"HLOOKUP($G$4,COMBINACIONES!$F$1:$CA$103,92,FALSE)","v":{"$error":"#N/A"}},"A"]
[null,null,"11.4.8.b",48,"Declaración responsable del solicitante donde conste si la comunidad de bienes ejerce actividad económica.","NO (Incluido en Anexo II)",{"$f":"HLOOKUP($G$4,COMBINACIONES!$F$1:$CA$103,93,FALSE)","v":{"$error":"#N/A"}},"B"]
[null,null,"11.4.8.c",49,"Declaración de comuneros del Anexo III.","SI",{"$f":"HLOOKUP($G$4,COMBINACIONES!$F$1:$CA$103,94,FALSE)","v":{"$error":"#N/A"}},"A"]
[null,null,null,null,"Entidad vinculada o dependiente del sector público"]
[null,null,"11.4.11",50,"Declaración responsable donde acredite su adscripción a una Administración Pública y donde declare si desarrolla actividad económica por la que ofrezca bienes y/o servicios en el mercado, y en cado de realizarla cuál es su finalidad y CNAE.","NO (Incluido en Anexo II)",{"$f":"HLOOKUP($G$4,COMBINACIONES!$F$1:$CA$103,98,FALSE)","v":{"$error":"#N/A"}},"B"]
[null,null,null,","]
["C","Documento condicionado"]
["O","Documento obligatorio"]
["N","Documento no necesario"]
[]
[]
["A","REQUIERE ANEXAR DOCUMENTO"]
["B","SE RELLENA EN ANEXO II"]
["D","SE DEBE ANEXAR EN CASO DE OPONERSE A COMPROBACION POR PARTE DE LA ADMINISTRACION"]

{"sheet":"DESPLEGABLES","index":8,"n_rows":94,"n_cols":47,"rows_kept":94,"cut":false,"hidden":true,"merged":[]}
["CODIGO","GRUPO",null,"BENEFICIARIO",null,"OPCIONES",null,"LINEA",null,"concatenacion","CODIGO","INDICADO",null,null,null,null,null,null,null,null,null,null,null,null,null,null,null,null,null,null,null,"concatenar",null,null,null,"GRUPO","nº","BENEFICIARIO","nº","OPCIONES","nº","LINEA","nº",null,null,"CODIGO"]
["1.1","EMPRESAS",{"$f":"VLOOKUP(B2,$AJ$2:$AK$5,2,FALSE)","v":2},"Personas_juridicas",{"$f":"VLOOKUP(D2,$AL$2:$AM$20,2,FALSE)","v":11},"SI_ofrecen_actividad_economica_o_bienes",{"$f":"VLOOKUP(F2,$AN$2:$AO6,2,FALSE)","v":89},1,{"$f":"VLOOKUP(H2,$AP$2:$AQ$7,2,FALSE)","v":109},{"$f":"I2*G2*E2*C2","v":213422},"1.1","Seleccionar",null,null,null,{"$f":"VLOOKUP(L2,AJ2:AK5,2,FALSE)","v":{"$error":"#N/A"}},"Seleccionar",null,null,null,{"$f":"VLOOKUP(Q2,AL2:AM20,2,FALSE)","v":{"$error":"#N/A"}},"Seleccionar",null,null,null,{"$f":"VLOOKUP(V2,AN2:AO6,2,FALSE)","v":{"$error":"#N/A"}},"Seleccionar",null,null,null,{"$f":"VLOOKUP(AA2,AP2:AQ7,2,FALSE)","v":{"$error":"#N/A"}},{"$f":"AE2*Z2*U2*P2","v":{"$error":"#N/A"}},{"$f":"VLOOKUP(AF2,J2:K91,2,FALSE)","v":{"$error":"#N/A"}},null,null,"EMPRESAS",2,"Personas_juridicas",11,"SI_ofrecen_actividad_economica_o_bienes",89,1,109,null,null,"1.1","SELECCIÓN CORRECTA"]
["1.2","EMPRESAS",{"$f":"VLOOKUP(B3,$AJ$2:$AK$5,2,FALSE)","v":2},"Agrupaciones_de_empresa",{"$f":"VLOOKUP(D3,$AL$2:$AM$20,2,FALSE)","v":13},"SI_ofrecen_actividad_economica_o_bienes",{"$f":"VLOOKUP(F3,$AN$2:$AO7,2,FALSE)","v":89},1,{"$f":"VLOOKUP(H3,$AP$2:$AQ$7,2,FALSE)","v":109},{"$f":"I3*G3*E3*C3","v":252226},"1.2",null,null,null,null,null,null,null,null,null,null,null,null,null,null,null,null,null,null,null,null,null,null,null,null,"ADMINISTRACIÓN",3,"Agrupaciones_de_empresa",13,"NO_ofrecen_actividad_economica_o_bienes",97,2,113,null,null,"1.2","SELECCIÓN CORRECTA"]
["1.3","EMPRESAS",2,"Agrupaciones_de_personas_fisicas_con_o_sin_personalidad_jurídica",17,"SI_ofrecen_actividad_economica_o_bienes",{"$f":"VLOOKUP(F4,$AN$2:$AO8,2,FALSE)","v":89},1,109,329834,"1.3",null,null,null,null,null,null,null,null,null,null,null,null,null,null,null,null,null,null,null,null,null,null,null,null,"SECTOR_INSTITUCIONAL",5,"Agrupaciones_de_personas_fisicas_con_o_sin_personalidad_jurídica",17,"NO_ofrecen_actividad_economica_o_bienes_+_Actuación_en_vivienda_de_titularidad_pública",101,3,127,null,null,"1.3","SELECCIÓN CORRECTA"]
["1.4","EMPRESAS",2,"Gestores_de_poligonos_publicos_o_privados",19,"Ninguna",{"$f":"VLOOKUP(F5,$AN$2:$AO9,2,FALSE)","v":103},1,109,426626,"1.4",null,null,null,null,null,null,null,null,null,null,null,null,null,null,null,null,null,null,null,null,null,null,null,null,"RESTO_BENEFICIARIOS",7,"Gestores_de_poligonos_publicos_o_privados",19,"Ninguna",103,4,131,null,null,"1.4","SELECCIÓN CORRECTA"]
["1.5","EMPRESAS",2,"Empresas_explotadoras",23,"Ninguna",{"$f":"VLOOKUP(F6,$AN$2:$AO10,2,FALSE)","v":103},1,109,516442,"1.5",null,null,null,null,null,null,null,null,null,null,null,null,null,null,null,null,null,null,null,null,null,null,null,null,null,null,"Empresas_explotadoras",23,"Excluida_ayuda_de_estado",107,5,137,null,null,"1.5","SELECCIÓN CORRECTA"]
["1.6","EMPRESAS",2,"Empresas_arrendatarias",29,"Ninguna",{"$f":"VLOOKUP(F7,$AN$2:$AO11,2,FALSE)","v":103},1,109,651166,"1.6",null,null,null,null,null,null,null,null,null,null,null,null,null,null,null,null,null,null,null,null,null,null,null,null,null,null,"Empresas_arrendatarias",29,null,null,6,139,null,null,"1.6","SELECCIÓN CORRECTA"]
["1.7","EMPRESAS",2,"Empresas_concesionarias",31,"Ninguna",{"$f":"VLOOKUP(F8,$AN$2:$AO12,2,FALSE)","v":103},1,109,696074,"1.7",null,null,null,null,null,null,null,null,null,null,null,null,null,null,null,null,null,null,null,null,null,null,null,null,null,null,"Empresas_concesionarias",31,null,null,null,null,null,null,"1.7","SELECCIÓN CORRECTA"]
["1.8","EMPRESAS",2,"Empresas_de_servicios_energeticos",37,"Ninguna",{"$f":"VLOOKUP(F9,$AN$2:$AO13,2,FALSE)","v":103},1,109,830798,"1.8",null,null,null,null,null,null,null,null,null,null,null,null,null,null,null,null,null,null,null,null,null,null,null,null,"EMPRESAS",null,"Empresas_de_servicios_energeticos",37,null,null,null,null,null,null,"1.8","SELECCIÓN CORRECTA"]
["1.9","EMPRESAS",2,"Proveedores_de_servicios_energéticos",41,"Ninguna",{"$f":"VLOOKUP(F10,$AN$2:$AO14,2,FALSE)","v":103},1,109,920614,"1.9",null,null,null,null,null,null,null,null,null,null,null,null,null,null,null,null,null,null,null,null,null,null,null,null,"Personas_juridicas",null,"Proveedores_de_servicios_energéticos",41,null,null,null,null,null,null,"1.9","SELECCIÓN CORRECTA"]
["1.10","ADMINISTRACIÓN",3,"La_Aministracion_como_representante_de_otro",43,"Ninguna",{"$f":"VLOOKUP(F11,$AN$2:$AO15,2,FALSE)","v":103},1,109,1448283,"1.10",null,null,null,null,null,null,null,null,null,null,null,null,null,null,null,null,null,null,null,null,null,null,null,null,"Agrupaciones_de_empresa",null,"La_Aministracion_como_representante_de_otro",43,null,null,null,null,null,null,"1.10","SELECCIÓN CORRECTA"]
["1.11",null,{"$error":"#N/A"},null,{"$error":"#N/A"},"Ninguna",{"$f":"VLOOKUP(F12,$AN$2:$AO16,2,FALSE)","v":103},1,109,{"$error":"#N/A"},"1.11",null,null,null,null,null,null,null,null,null,null,null,null,null,null,null,null,null,null,null,null,null,null,null,null,"Agrupaciones_de_personas_fisicas_con_o_sin_personalidad_jurídica",null,"Entidades_locales_de_cualquier_administracion_publica",47,null,null,null,null,null,null,"1.11","SELECCIÓN CORRECTA"]
["1.12",null,{"$error":"#N/A"},null,{"$error":"#N/A"},"Seleccionar",{"$f":"VLOOKUP(F13,$AN$2:$AO17,2,FALSE)","v":{"$error":"#N/A"}},1,109,{"$error":"#N/A"},"1.12",null,null,null,null,null,null,null,null,null,null,null,null,null,null,null,null,null,null,null,null,null,null,null,null,"Gestores_de_poligonos_publicos_o_privados",null,"Sector_publico_institucional_de_cualquier_administracion_publica",53,null,null,null,null,null,null,"1.12","SELECCIÓN CORRECTA"]
["1.13","RESTO_BENEFICIARIOS",7,"Comunidades_de_energias_renovables",67,"SI_ofrecen_actividad_economica_o_bienes",{"$f":"VLOOKUP(F14,$AN$2:$AO18,2,FALSE)","v":89},1,109,4549769,"1.13",null,null,null,null,null,null,null,null,null,null,null,null,null,null,null,null,null,null,null,null,null,null,null,null,"Empresas_explotadoras",null,"Personas_fisicas",59,null,null,null,null,null,null,"1.13","SELECCIÓN CORRECTA"]
["1.14","RESTO_BENEFICIARIOS",7,"Comunidades_ciudadanas_de_energia",71,"SI_ofrecen_actividad_economica_o_bienes",{"$f":"VLOOKUP(F15,$AN$2:$AO19,2,FALSE)","v":89},1,109,4821397,"1.14",null,null,null,null,null,null,null,null,null,null,null,null,null,null,null,null,null,null,null,null,null,null,null,null,"Empresas_arrendatarias",null,"Autonomo",61,null,null,null,null,null,null,"1.14","SELECCIÓN CORRECTA"]
["1.15",null,{"$error":"#N/A"},null,{"$error":"#N/A"},null,{"$f":"VLOOKUP(F16,$AN$2:$AO20,2,FALSE)","v":{"$error":"#N/A"}},null,{"$error":"#N/A"},{"$error":"#N/A"},"1.15",null,null,null,null,null,null,null,null,null,null,null,null,null,null,null,null,null,null,null,null,null,null,null,null,"Empresas_concesionarias",null,"Comunidades_de_energias_renovables",67,null,null,null,null,null,null,"1.15","SELECCIÓN CORRECTA"]
["2.1","EMPRESAS",2,"Personas_juridicas",11,"SI_ofrecen_actividad_economica_o_bienes",{"$f":"VLOOKUP(F17,$AN$2:$AO21,2,FALSE)","v":89},2,113,221254,"2.1",null,null,null,null,null,null,null,null,null,null,null,null,null,null,null,null,null,null,null,null,null,null,null,null,"Empresas_de_servicios_energeticos",null,"Comunidades_ciudadanas_de_energia",71,null,null,null,null,null,null,"2.1","SELECCIÓN CORRECTA"]
["2.2","EMPRESAS",2,"Agrupaciones_de_empresa",13,"SI_ofrecen_actividad_economica_o_bienes",{"$f":"VLOOKUP(F18,$AN$2:$AO22,2,FALSE)","v":89},2,113,261482,"2.2",null,null,null,null,null,null,null,null,null,null,null,null,null,null,null,null,null,null,null,null,null,null,null,null,"Proveedores_de_servicios_energéticos",null,"Comunidad_de_propietarios",73,null,null,null,null,null,null,"2.2","SELECCIÓN CORRECTA"]
["2.3","EMPRESAS",2,"Agrupaciones_de_personas_fisicas_con_o_sin_personalidad_jurídica",17,"SI_ofrecen_actividad_economica_o_bienes",{"$f":"VLOOKUP(F19,$AN$2:$AO23,2,FALSE)","v":89},2,113,341938,"2.3",null,null,null,null,null,null,null,null,null,null,null,null,null,null,null,null,null,null,null,null,null,null,null,null,null,null,"Entidad_privada_sin_animo_de_lucro",79,null,null,null,null,null,null,"2.3","SELECCIÓN CORRECTA"]
["2.4","EMPRESAS",2,"Gestores_de_poligonos_publicos_o_privados",19,"Ninguna",{"$f":"VLOOKUP(F20,$AN$2:$AO24,2,FALSE)","v":103},2,113,442282,"2.4",null,null,null,null,null,null,null,null,null,null,null,null,null,null,null,null,null,null,null,null,null,null,null,null,"ADMINISTRACIÓN",null,"Entidad_publica_sin_animo_de_lucro",83,null,null,null,null,null,null,"2.4","SELECCIÓN CORRECTA"]
["2.5","EMPRESAS",2,"Empresas_explotadoras",23,"Ninguna",{"$f":"VLOOKUP(F21,$AN$2:$AO25,2,FALSE)","v":103},2,113,535394,"2.5",null,null,null,null,null,null,null,null,null,null,null,null,null,null,null,null,null,null,null,null,null,null,null,null,"La_Aministracion_como_representante_de_otro",null,null,null,null,null,null,null,null,null,"2.5","SELECCIÓN CORRECTA"]
["2.6","EMPRESAS",2,"Empresas_arrendatarias",29,"Ninguna",{"$f":"VLOOKUP(F22,$AN$2:$AO26,2,FALSE)","v":103},2,113,675062,"2.6",null,null,null,null,null,null,null,null,null,null,null,null,null,null,null,null,null,null,null,null,null,null,null,null,"Entidades_locales_de_cualquier_administracion_publica",null,null,null,null,null,null,null,null,null,"2.6","SELECCIÓN CORRECTA"]
["2.7","EMPRESAS",2,"Empresas_concesionarias",31,"Ninguna",{"$f":"VLOOKUP(F23,$AN$2:$AO27,2,FALSE)","v":103},2,113,721618,"2.7",null,null,null,null,null,null,null,null,null,null,null,null,null,null,null,null,null,null,null,null,null,null,null,null,null,null,null,null,null,null,null,null,null,null,"2.7","SELECCIÓN CORRECTA"]
["2.8","EMPRESAS",2,"Empresas_de_servicios_energeticos",37,"Ninguna",{"$f":"VLOOKUP(F24,$AN$2:$AO28,2,FALSE)","v":103},2,113,861286,"2.8",null,null,null,null,null,null,null,null,null,null,null,null,null,null,null,null,null,null,null,null,null,null,null,null,"SECTOR_INSTITUCIONAL",null,"Personas_juridicas",null,null,null,null,null,null,null,"2.8","SELECCIÓN CORRECTA"]
["2.9","EMPRESAS",2,"Proveedores_de_servicios_energéticos",41,"Ninguna",{"$f":"VLOOKUP(F25,$AN$2:$AO29,2,FALSE)","v":103},2,113,954398,"2.9",null,null,null,null,null,null,null,null,null,null,null,null,null,null,null,null,null,null,null,null,null,null,null,null,"Sector_publico_institucional_de_cualquier_administracion_publica",null,"SI_ofrecen_actividad_economica_o_bienes",null,null,null,null,null,null,null,"2.9","SELECCIÓN CORRECTA"]
["2.10","ADMINISTRACIÓN",3,"La_Aministracion_como_representante_de_otro",43,"Ninguna",{"$f":"VLOOKUP(F26,$AN$2:$AO30,2,FALSE)","v":103},2,113,1501431,"2.10",null,null,null,null,null,null,null,null,null,null,null,null,null,null,null,null,null,null,null,null,null,null,null,null,null,null,"NO_ofrecen_actividad_economica_o_bienes",null,null,null,null,null,null,null,"2.10","SELECCIÓN CORRECTA"]
["2.11","ADMINISTRACIÓN",3,"Entidades_locales_de_cualquier_administracion_publica",47,"SI_ofrecen_actividad_economica_o_bienes",{"$f":"VLOOKUP(F27,$AN$2:$AO31,2,FALSE)","v":89},2,113,1418037,"2.11",null,null,null,null,null,null,null,null,null,null,null,null,null,null,null,null,null,null,null,null,null,null,null,null,"RESTO_BENEFICIARIOS",null,"NO_ofrecen_actividad_economica_o_bienes_+_Actuación_en_vivienda_de_titularidad_pública",null,null,null,null,null,null,null,"2.11","SELECCIÓN CORRECTA"]
["2.12","SECTOR_INSTITUCIONAL",5,"Sector_publico_institucional_de_cualquier_administracion_publica",53,"SI_ofrecen_actividad_economica_o_bienes",{"$f":"VLOOKUP(F28,$AN$2:$AO32,2,FALSE)","v":89},2,113,2665105,"2.12",null,null,null,null,null,null,null,null,null,null,null,null,null,null,null,null,null,null,null,null,null,null,null,null,"Personas_fisicas",null,null,null,null,null,null,null,null,null,"2.12","SELECCIÓN CORRECTA"]
["2.13","RESTO_BENEFICIARIOS",7,"Comunidades_de_energias_renovables",67,"SI_ofrecen_actividad_economica_o_bienes",{"$f":"VLOOKUP(F29,$AN$2:$AO33,2,FALSE)","v":89},2,113,4716733,"2.13",null,null,null,null,null,null,null,null,null,null,null,null,null,null,null,null,null,null,null,null,null,null,null,null,"Autonomo",null,"Agrupaciones_de_empresa",null,null,null,null,null,null,null,"2.13","SELECCIÓN CORRECTA"]
["2.14","RESTO_BENEFICIARIOS",7,"Comunidades_ciudadanas_de_energia",71,"SI_ofrecen_actividad_economica_o_bienes",{"$f":"VLOOKUP(F30,$AN$2:$AO34,2,FALSE)","v":89},2,113,4998329,"2.14",null,null,null,null,null,null,null,null,null,null,null,null,null,null,null,null,null,null,null,null,null,null,null,null,"Comunidades_de_energias_renovables",null,"SI_ofrecen_actividad_economica_o_bienes",null,null,null,null,null,null,null,"2.14","SELECCIÓN CORRECTA"]
["2.15","RESTO_BENEFICIARIOS",7,"Entidad_privada_sin_animo_de_lucro",79,"SI_ofrecen_actividad_economica_o_bienes",{"$f":"VLOOKUP(F31,$AN$2:$AO35,2,FALSE)","v":89},2,113,5561521,"2.15",null,null,null,null,null,null,null,null,null,null,null,null,null,null,null,null,null,null,null,null,null,null,null,null,"Comunidades_ciudadanas_de_energia",null,null,null,null,null,null,null,null,null,"2.15","SELECCIÓN CORRECTA"]
["3.1","EMPRESAS",2,"Personas_juridicas",11,"SI_ofrecen_actividad_economica_o_bienes",{"$f":"VLOOKUP(F32,$AN$2:$AO36,2,FALSE)","v":89},3,127,248666,"3.1",null,null,null,null,null,null,null,null,null,null,null,null,null,null,null,null,null,null,null,null,null,null,null,null,"Comunidad_de_propietarios",null,"Agrupaciones_de_personas_fisicas_con_o_sin_personalidad_jurídica",null,null,null,null,null,null,null,"3.1","SELECCIÓN CORRECTA"]
["3.2","EMPRESAS",2,"Agrupaciones_de_empresa",13,"SI_ofrecen_actividad_economica_o_bienes",{"$f":"VLOOKUP(F33,$AN$2:$AO37,2,FALSE)","v":89},3,127,293878,"3.2",null,null,null,null,null,null,null,null,null,null,null,null,null,null,null,null,null,null,null,null,null,null,null,null,"Entidad_privada_sin_animo_de_lucro",null,"SI_ofrecen_actividad_economica_o_bienes",null,null,null,null,null,null,null,"3.2","SELECCIÓN CORRECTA"]
["3.3","EMPRESAS",2,"Agrupaciones_de_personas_fisicas_con_o_sin_personalidad_jurídica",17,"SI_ofrecen_actividad_economica_o_bienes",{"$f":"VLOOKUP(F34,$AN$2:$AO38,2,FALSE)","v":89},3,127,384302,"3.3",null,null,null,null,null,null,null,null,null,null,null,null,null,null,null,null,null,null,null,null,null,null,null,null,"Entidad_publica_sin_animo_de_lucro",null,null,null,null,null,null,null,null,null,"3.3","SELECCIÓN CORRECTA"]
["3.4","EMPRESAS",2,"Gestores_de_poligonos_publicos_o_privados",19,"Ninguna",{"$f":"VLOOKUP(F35,$AN$2:$AO39,2,FALSE)","v":103},3,127,497078,"3.4",null,null,null,null,null,null,null,null,null,null,null,null,null,null,null,null,null,null,null,null,null,null,null,null,null,null,"Gestores_de_poligonos_publicos_o_privados",null,null,null,null,null,null,null,"3.4","SELECCIÓN CORRECTA"]
["3.5","EMPRESAS",2,"Empresas_explotadoras",23,"Ninguna",{"$f":"VLOOKUP(F36,$AN$2:$AO40,2,FALSE)","v":103},3,127,601726,"3.5",null,null,null,null,null,null,null,null,null,null,null,null,null,null,null,null,null,null,null,null,null,null,null,null,null,null,"Ninguna",null,null,null,null,null,null,null,"3.5","SELECCIÓN CORRECTA"]
["3.6","EMPRESAS",2,"Empresas_arrendatarias",29,"Ninguna",{"$f":"VLOOKUP(F37,$AN$2:$AO41,2,FALSE)","v":103},3,127,758698,"3.6",null,null,null,null,null,null,null,null,null,null,null,null,null,null,null,null,null,null,null,null,null,null,null,null,null,null,null,null,null,null,null,null,null,null,"3.6","SELECCIÓN CORRECTA"]
["3.7","EMPRESAS",2,"Empresas_concesionarias",31,"Ninguna",{"$f":"VLOOKUP(F38,$AN$2:$AO42,2,FALSE)","v":103},3,127,811022,"3.7",null,null,null,null,null,null,null,null,null,null,null,null,null,null,null,null,null,null,null,null,null,null,null,null,null,null,"Empresas_explotadoras",null,null,null,null,null,null,null,"3.7","SELECCIÓN CORRECTA"]
["3.8","EMPRESAS",2,"Empresas_de_servicios_energeticos",37,"Ninguna",{"$f":"VLOOKUP(F39,$AN$2:$AO43,2,FALSE)","v":103},3,127,967994,"3.8",null,null,null,null,null,null,null,null,null,null,null,null,null,null,null,null,null,null,null,null,null,null,null,null,null,null,"Ninguna",null,null,null,null,null,null,null,"3.8","SELECCIÓN CORRECTA"]
["3.9","EMPRESAS",2,"Proveedores_de_servicios_energéticos",41,"Ninguna",{"$f":"VLOOKUP(F40,$AN$2:$AO44,2,FALSE)","v":103},3,127,1072642,"3.9",null,null,null,null,null,null,null,null,null,null,null,null,null,null,null,null,null,null,null,null,null,null,null,null,null,null,null,null,null,null,null,null,null,null,"3.9","SELECCIÓN CORRECTA"]
["3.10","ADMINISTRACIÓN",3,"La_Aministracion_como_representante_de_otro",43,"Ninguna",{"$f":"VLOOKUP(F41,$AN$2:$AO45,2,FALSE)","v":103},3,127,1687449,"3.10",null,null,null,null,null,null,null,null,null,null,null,null,null,null,null,null,null,null,null,null,null,null,null,null,null,null,"Empresas_arrendatarias",null,null,null,null,null,null,null,"3.10","SELECCIÓN CORRECTA"]
["3.11","ADMINISTRACIÓN",3,"Entidades_locales_de_cualquier_administracion_publica",47,"SI_ofrecen_actividad_economica_o_bienes",{"$f":"VLOOKUP(F42,$AN$2:$AO46,2,FALSE)","v":89},3,127,1593723,"3.11",null,null,null,null,null,null,null,null,null,null,null,null,null,null,null,null,null,null,null,null,null,null,null,null,null,null,"Ninguna",null,null,null,null,null,null,null,"3.11","SELECCIÓN CORRECTA"]
["3.12","SECTOR_INSTITUCIONAL",5,"Sector_publico_institucional_de_cualquier_administracion_publica",53,"SI_ofrecen_actividad_economica_o_bienes",{"$f":"VLOOKUP(F43,$AN$2:$AO47,2,FALSE)","v":89},3,127,2995295,"3.12",null,null,null,null,null,null,null,null,null,null,null,null,null,null,null,null,null,null,null,null,null,null,null,null,null,null,null,null,null,null,null,null,null,null,"3.12","SELECCIÓN CORRECTA"]
["3.13","RESTO_BENEFICIARIOS",7,"Comunidades_de_energias_renovables",67,"SI_ofrecen_actividad_economica_o_bienes",{"$f":"VLOOKUP(F44,$AN$2:$AO48,2,FALSE)","v":89},3,127,5301107,"3.13",null,null,null,null,null,null,null,null,null,null,null,null,null,null,null,null,null,null,null,null,null,null,null,null,null,null,"Empresas_concesionarias",null,null,null,null,null,null,null,"3.13","SELECCIÓN CORRECTA"]
["3.14","RESTO_BENEFICIARIOS",7,"Comunidades_ciudadanas_de_energia",71,"SI_ofrecen_actividad_economica_o_bienes",{"$f":"VLOOKUP(F45,$AN$2:$AO49,2,FALSE)","v":89},3,127,5617591,"3.14",null,null,null,null,null,null,null,null,null,null,null,null,null,null,null,null,null,null,null,null,null,null,null,null,null,null,"Ninguna",null,null,null,null,null,null,null,"3.14","SELECCIÓN CORRECTA"]
["3.15","RESTO_BENEFICIARIOS",7,"Entidad_privada_sin_animo_de_lucro",79,"SI_ofrecen_actividad_economica_o_bienes",{"$f":"VLOOKUP(F46,$AN$2:$AO50,2,FALSE)","v":89},3,127,6250559,"3.15",null,null,null,null,null,null,null,null,null,null,null,null,null,null,null,null,null,null,null,null,null,null,null,null,null,null,null,null,null,null,null,null,null,null,"3.15","SELECCIÓN CORRECTA"]
["4.1","EMPRESAS",2,"Personas_juridicas",11,"NO_ofrecen_actividad_economica_o_bienes",{"$f":"VLOOKUP(F47,$AN$2:$AO51,2,FALSE)","v":97},4,131,279554,"4.1",null,null,null,null,null,null,null,null,null,null,null,null,null,null,null,null,null,null,null,null,null,null,null,null,null,null,"Empresas_de_servicios_energeticos",null,null,null,null,null,null,null,"4.1","SELECCIÓN CORRECTA"]
["4.2","ADMINISTRACIÓN",3,"La_Aministracion_como_representante_de_otro",43,"Ninguna",{"$f":"VLOOKUP(F48,$AN$2:$AO52,2,FALSE)","v":103},4,131,1740597,"4.2",null,null,null,null,null,null,null,null,null,null,null,null,null,null,null,null,null,null,null,null,null,null,null,null,null,null,"Ninguna",null,null,null,null,null,null,null,"4.2","SELECCIÓN CORRECTA"]
["4.3","ADMINISTRACIÓN",3,"Entidades_locales_de_cualquier_administracion_publica",47,"NO_ofrecen_actividad_economica_o_bienes",{"$f":"VLOOKUP(F49,$AN$2:$AO53,2,FALSE)","v":97},4,131,1791687,"4.3",null,null,null,null,null,null,null,null,null,null,null,null,null,null,null,null,null,null,null,null,null,null,null,null,null,null,null,null,null,null,null,null,null,null,"4.3","SELECCIÓN CORRECTA"]
["4.4","SECTOR_INSTITUCIONAL",5,"Sector_publico_institucional_de_cualquier_administracion_publica",53,"NO_ofrecen_actividad_economica_o_bienes",{"$f":"VLOOKUP(F50,$AN$2:$AO54,2,FALSE)","v":97},4,131,3367355,"4.4",null,null,null,null,null,null,null,null,null,null,null,null,null,null,null,null,null,null,null,null,null,null,null,null,null,null,"Proveedores_de_servicios_energéticos",null,null,null,null,null,null,null,"4.4","SELECCIÓN CORRECTA"]
["4.5","RESTO_BENEFICIARIOS",7,"Personas_fisicas",59,"NO_ofrecen_actividad_economica_o_bienes",{"$f":"VLOOKUP(F51,$AN$2:$AO55,2,FALSE)","v":97},4,131,5247991,"4.5",null,null,null,null,null,null,null,null,null,null,null,null,null,null,null,null,null,null,null,null,null,null,null,null,null,null,"Ninguna",null,null,null,null,null,null,null,"4.5","SELECCIÓN CORRECTA"]
["4.6","RESTO_BENEFICIARIOS",7,"Autonomo",61,"SI_ofrecen_actividad_economica_o_bienes",{"$f":"VLOOKUP(F52,$AN$2:$AO56,2,FALSE)","v":89},4,131,4978393,"4.6",null,null,null,null,null,null,null,null,null,null,null,null,null,null,null,null,null,null,null,null,null,null,null,null,null,null,null,null,null,null,null,null,null,null,"4.6","SELECCIÓN CORRECTA"]
["4.7","RESTO_BENEFICIARIOS",7,"Comunidades_de_energias_renovables",67,"NO_ofrecen_actividad_economica_o_bienes",{"$f":"VLOOKUP(F53,$AN$2:$AO57,2,FALSE)","v":97},4,131,5959583,"4.7",null,null,null,null,null,null,null,null,null,null,null,null,null,null,null,null,null,null,null,null,null,null,null,null,null,null,"La_Aministracion_como_representante_de_otro",null,null,null,null,null,null,null,"4.7","SELECCIÓN CORRECTA"]
["4.8","RESTO_BENEFICIARIOS",7,"Comunidades_ciudadanas_de_energia",71,"NO_ofrecen_actividad_economica_o_bienes",{"$f":"VLOOKUP(F54,$AN$2:$AO58,2,FALSE)","v":97},4,131,6315379,"4.8",null,null,null,null,null,null,null,null,null,null,null,null,null,null,null,null,null,null,null,null,null,null,null,null,null,null,"Ninguna",null,null,null,null,null,null,null,"4.8","SELECCIÓN CORRECTA"]
["4.9","RESTO_BENEFICIARIOS",7,"Comunidad_de_propietarios",73,"Ninguna",{"$f":"VLOOKUP(F55,$AN$2:$AO59,2,FALSE)","v":103},4,131,6894923,"4.9",null,null,null,null,null,null,null,null,null,null,null,null,null,null,null,null,null,null,null,null,null,null,null,null,null,null,null,null,null,null,null,null,null,null,"4.9","SELECCIÓN CORRECTA"]
["4.10","RESTO_BENEFICIARIOS",7,"Entidad_privada_sin_animo_de_lucro",79,"NO_ofrecen_actividad_economica_o_bienes",{"$f":"VLOOKUP(F56,$AN$2:$AO60,2,FALSE)","v":97},4,131,7026971,"4.10",null,null,null,null,null,null,null,null,null,null,null,null,null,null,null,null,null,null,null,null,null,null,null,null,null,null,"Entidades_locales_de_cualquier_administracion_publica",null,null,null,null,null,null,null,"4.10","SELECCIÓN CORRECTA"]
["4.11",null,{"$error":"#N/A"},null,{"$error":"#N/A"},"Ninguna",{"$f":"VLOOKUP(F57,$AN$2:$AO61,2,FALSE)","v":103},4,131,{"$error":"#N/A"},"4.11",null,null,null,null,null,null,null,null,null,null,null,null,null,null,null,null,null,null,null,null,null,null,null,null,null,null,"SI_ofrecen_actividad_economica_o_bienes",null,null,null,null,null,null,null,"4.11","SELECCIÓN CORRECTA"]
["4.12",null,{"$error":"#N/A"},null,{"$error":"#N/A"},"Ninguna",{"$f":"VLOOKUP(F58,$AN$2:$AO62,2,FALSE)","v":103},4,131,{"$error":"#N/A"},"4.12",null,null,null,null,null,null,null,null,null,null,null,null,null,null,null,null,null,null,null,null,null,null,null,null,null,null,"NO_ofrecen_actividad_economica_o_bienes",null,null,null,null,null,null,null,"4.12","SELECCIÓN CORRECTA"]
["4.13",null,{"$error":"#N/A"},null,{"$error":"#N/A"},"Ninguna",{"$f":"VLOOKUP(F59,$AN$2:$AO63,2,FALSE)","v":103},4,131,{"$error":"#N/A"},"4.13",null,null,null,null,null,null,null,null,null,null,null,null,null,null,null,null,null,null,null,null,null,null,null,null,null,null,"NO_ofrecen_actividad_economica_o_bienes_+_Actuación_en_vivienda_de_titularidad_pública",null,null,null,null,null,null,null,"4.13","SELECCIÓN CORRECTA"]
["4.14",null,{"$error":"#N/A"},null,{"$error":"#N/A"},"Ninguna",{"$f":"VLOOKUP(F60,$AN$2:$AO64,2,FALSE)","v":103},4,131,{"$error":"#N/A"},"4.14",null,null,null,null,null,null,null,null,null,null,null,null,null,null,null,null,null,null,null,null,null,null,null,null,null,null,null,null,null,null,null,null,null,null,"4.14","SELECCIÓN CORRECTA"]
["4.15",null,{"$error":"#N/A"},null,{"$error":"#N/A"},"Ninguna",{"$f":"VLOOKUP(F61,$AN$2:$AO65,2,FALSE)","v":103},4,131,{"$error":"#N/A"},"4.15",null,null,null,null,null,null,null,null,null,null,null,null,null,null,null,null,null,null,null,null,null,null,null,null,null,null,"Personas_fisicas",null,null,null,null,null,null,null,"4.15","SELECCIÓN CORRECTA"]
["5.1","EMPRESAS",2,"Personas_juridicas",11,"NO_ofrecen_actividad_economica_o_bienes",{"$f":"VLOOKUP(F62,$AN$2:$AO66,2,FALSE)","v":97},5,137,292358,"5.1",null,null,null,null,null,null,null,null,null,null,null,null,null,null,null,null,null,null,null,null,null,null,null,null,null,null,"NO_ofrecen_actividad_economica_o_bienes",null,null,null,null,null,null,null,"5.1","SELECCIÓN CORRECTA"]
["5.2","ADMINISTRACIÓN",3,"La_Aministracion_como_representante_de_otro",43,"Ninguna",{"$f":"VLOOKUP(F63,$AN$2:$AO67,2,FALSE)","v":103},5,137,1820319,"5.2",null,null,null,null,null,null,null,null,null,null,null,null,null,null,null,null,null,null,null,null,null,null,null,null,null,null,null,null,null,null,null,null,null,null,"5.2","SELECCIÓN CORRECTA"]
["5.3","ADMINISTRACIÓN",3,"Entidades_locales_de_cualquier_administracion_publica",47,"NO_ofrecen_actividad_economica_o_bienes",{"$f":"VLOOKUP(F64,$AN$2:$AO68,2,FALSE)","v":97},5,137,1873749,"5.3",null,null,null,null,null,null,null,null,null,null,null,null,null,null,null,null,null,null,null,null,null,null,null,null,null,null,"Autonomo",null,null,null,null,null,null,null,"5.3","SELECCIÓN CORRECTA"]
["5.4","SECTOR_INSTITUCIONAL",5,"Sector_publico_institucional_de_cualquier_administracion_publica",53,"NO_ofrecen_actividad_economica_o_bienes",{"$f":"VLOOKUP(F65,$AN$2:$AO69,2,FALSE)","v":97},5,137,3521585,"5.4",null,null,null,null,null,null,null,null,null,null,null,null,null,null,null,null,null,null,null,null,null,null,null,null,null,null,"SI_ofrecen_actividad_economica_o_bienes",null,null,null,null,null,null,null,"5.4","SELECCIÓN CORRECTA"]
["5.5","RESTO_BENEFICIARIOS",7,"Personas_fisicas",59,"NO_ofrecen_actividad_economica_o_bienes",{"$f":"VLOOKUP(F66,$AN$2:$AO70,2,FALSE)","v":97},5,137,5488357,"5.5",null,null,null,null,null,null,null,null,null,null,null,null,null,null,null,null,null,null,null,null,null,null,null,null,null,null,null,null,null,null,null,null,null,null,"5.5","SELECCIÓN CORRECTA"]
["5.6","RESTO_BENEFICIARIOS",{"$f":"VLOOKUP(B67,$AJ$2:$AK$5,2,FALSE)","v":7},"Autonomo",{"$f":"VLOOKUP(D67,$AL$2:$AM$20,2,FALSE)","v":61},"SI_ofrecen_actividad_economica_o_bienes",{"$f":"VLOOKUP(F67,$AN$2:$AO71,2,FALSE)","v":89},5,{"$f":"VLOOKUP(H67,$AP$2:$AQ$7,2,FALSE)","v":137},{"$f":"I67*G67*E67*C67","v":5206411},"5.6",null,null,null,null,null,null,null,null,null,null,null,null,null,null,null,null,null,null,null,null,null,null,null,null,null,null,"Comunidades_de_energias_renovables",null,null,null,null,null,null,null,"5.6","SELECCIÓN CORRECTA"]
["5.7","RESTO_BENEFICIARIOS",7,"Comunidades_de_energias_renovables",67,"NO_ofrecen_actividad_economica_o_bienes",{"$f":"VLOOKUP(F68,$AN$2:$AO72,2,FALSE)","v":97},5,137,6232541,"5.7",null,null,null,null,null,null,null,null,null,null,null,null,null,null,null,null,null,null,null,null,null,null,null,null,null,null,"SI_ofrecen_actividad_economica_o_bienes",null,null,null,null,null,null,null,"5.7","SELECCIÓN CORRECTA"]
["5.8","RESTO_BENEFICIARIOS",7,"Comunidades_ciudadanas_de_energia",71,"NO_ofrecen_actividad_economica_o_bienes",{"$f":"VLOOKUP(F69,$AN$2:$AO73,2,FALSE)","v":97},5,137,6604633,"5.8",null,null,null,null,null,null,null,null,null,null,null,null,null,null,null,null,null,null,null,null,null,null,null,null,null,null,"NO_ofrecen_actividad_economica_o_bienes",null,null,null,null,null,null,null,"5.8","SELECCIÓN CORRECTA"]
["5.9","RESTO_BENEFICIARIOS",7,"Comunidad_de_propietarios",73,"Ninguna",{"$f":"VLOOKUP(F70,$AN$2:$AO74,2,FALSE)","v":103},5,137,7210721,"5.9",null,null,null,null,null,null,null,null,null,null,null,null,null,null,null,null,null,null,null,null,null,null,null,null,null,null,null,null,null,null,null,null,null,null,"5.9","SELECCIÓN CORRECTA"]
["5.10","RESTO_BENEFICIARIOS",7,"Entidad_privada_sin_animo_de_lucro",79,"NO_ofrecen_actividad_economica_o_bienes",{"$f":"VLOOKUP(F71,$AN$2:$AO75,2,FALSE)","v":97},5,137,7348817,"5.10",null,null,null,null,null,null,null,null,null,null,null,null,null,null,null,null,null,null,null,null,null,null,null,null,null,null,"Comunidades_ciudadanas_de_energia",null,null,null,null,null,null,null,"5.10","SELECCIÓN CORRECTA"]
["5.11",null,{"$error":"#N/A"},null,{"$error":"#N/A"},"Ninguna",{"$f":"VLOOKUP(F72,$AN$2:$AO76,2,FALSE)","v":103},5,137,{"$error":"#N/A"},"5.11",null,null,null,null,null,null,null,null,null,null,null,null,null,null,null,null,null,null,null,null,null,null,null,null,null,null,"SI_ofrecen_actividad_economica_o_bienes",null,null,null,null,null,null,null,"5.11","SELECCIÓN CORRECTA"]
["5.12",null,{"$error":"#N/A"},null,{"$error":"#N/A"},"Ninguna",{"$f":"VLOOKUP(F73,$AN$2:$AO77,2,FALSE)","v":103},5,137,{"$error":"#N/A"},"5.12",null,null,null,null,null,null,null,null,null,null,null,null,null,null,null,null,null,null,null,null,null,null,null,null,null,null,"NO_ofrecen_actividad_economica_o_bienes",null,null,null,null,null,null,null,"5.12","SELECCIÓN CORRECTA"]
["5.13",null,{"$error":"#N/A"},null,{"$error":"#N/A"},"Ninguna",{"$f":"VLOOKUP(F74,$AN$2:$AO78,2,FALSE)","v":103},5,137,{"$error":"#N/A"},"5.13",null,null,null,null,null,null,null,null,null,null,null,null,null,null,null,null,null,null,null,null,null,null,null,null,null,null,null,null,null,null,null,null,null,null,"5.13","SELECCIÓN CORRECTA"]
["5.14",null,{"$error":"#N/A"},null,{"$error":"#N/A"},"Ninguna",{"$f":"VLOOKUP(F75,$AN$2:$AO79,2,FALSE)","v":103},5,137,{"$error":"#N/A"},"5.14",null,null,null,null,null,null,null,null,null,null,null,null,null,null,null,null,null,null,null,null,null,null,null,null,null,null,"Comunidad_de_propietarios",null,null,null,null,null,null,null,"5.14","SELECCIÓN CORRECTA"]
["5.15",null,{"$error":"#N/A"},null,{"$error":"#N/A"},"Ninguna",{"$f":"VLOOKUP(F76,$AN$2:$AO80,2,FALSE)","v":103},5,137,{"$error":"#N/A"},"5.15",null,null,null,null,null,null,null,null,null,null,null,null,null,null,null,null,null,null,null,null,null,null,null,null,null,null,"Ninguna",null,null,null,null,null,null,null,"5.15","SELECCIÓN CORRECTA"]
["6.1","EMPRESAS",2,"Personas_juridicas",11,"NO_ofrecen_actividad_economica_o_bienes_+_Actuación_en_vivienda_de_titularidad_pública",{"$f":"VLOOKUP(F77,$AN$2:$AO81,2,FALSE)","v":101},6,139,308858,"6.1",null,null,null,null,null,null,null,null,null,null,null,null,null,null,null,null,null,null,null,null,null,null,null,null,null,null,null,null,null,null,null,null,null,null,"6.1","SELECCIÓN CORRECTA"]
["6.2","ADMINISTRACIÓN",3,"La_Aministracion_como_representante_de_otro",43,"Ninguna",{"$f":"VLOOKUP(F78,$AN$2:$AO82,2,FALSE)","v":103},6,139,1846893,"6.2",null,null,null,null,null,null,null,null,null,null,null,null,null,null,null,null,null,null,null,null,null,null,null,null,null,null,"Entidad_privada_sin_animo_de_lucro",null,null,null,null,null,null,null,"6.2","SELECCIÓN CORRECTA"]
["6.3","ADMINISTRACIÓN",3,"Entidades_locales_de_cualquier_administracion_publica",47,"NO_ofrecen_actividad_economica_o_bienes_+_Actuación_en_vivienda_de_titularidad_pública",{"$f":"VLOOKUP(F79,$AN$2:$AO83,2,FALSE)","v":101},6,139,1979499,"6.3",null,null,null,null,null,null,null,null,null,null,null,null,null,null,null,null,null,null,null,null,null,null,null,null,null,null,"SI_ofrecen_actividad_economica_o_bienes",null,null,null,null,null,null,null,"6.3","SELECCIÓN CORRECTA"]
["6.4","SECTOR_INSTITUCIONAL",5,"Sector_publico_institucional_de_cualquier_administracion_publica",53,"NO_ofrecen_actividad_economica_o_bienes_+_Actuación_en_vivienda_de_titularidad_pública",{"$f":"VLOOKUP(F80,$AN$2:$AO84,2,FALSE)","v":101},6,139,3720335,"6.4",null,null,null,null,null,null,null,null,null,null,null,null,null,null,null,null,null,null,null,null,null,null,null,null,null,null,"NO_ofrecen_actividad_economica_o_bienes",null,null,null,null,null,null,null,"6.4","SELECCIÓN CORRECTA"]
["6.5","RESTO_BENEFICIARIOS",7,"Personas_fisicas",59,"NO_ofrecen_actividad_economica_o_bienes",{"$f":"VLOOKUP(F81,$AN$2:$AO85,2,FALSE)","v":97},6,139,5568479,"6.5",null,null,null,null,null,null,null,null,null,null,null,null,null,null,null,null,null,null,null,null,null,null,null,null,null,null,"NO_ofrecen_actividad_economica_o_bienes_+_Actuación_en_vivienda_de_titularidad_pública",null,null,null,null,null,null,null,"6.5","SELECCIÓN CORRECTA"]
["6.6","RESTO_BENEFICIARIOS",7,"Autonomo",61,"SI_ofrecen_actividad_economica_o_bienes",{"$f":"VLOOKUP(F82,$AN$2:$AO86,2,FALSE)","v":89},6,139,5282417,"6.6",null,null,null,null,null,null,null,null,null,null,null,null,null,null,null,null,null,null,null,null,null,null,null,null,null,null,null,null,null,null,null,null,null,null,"6.6","SELECCIÓN CORRECTA"]
["6.7","RESTO_BENEFICIARIOS",7,"Comunidad_de_propietarios",73,"Ninguna",{"$f":"VLOOKUP(F83,$AN$2:$AO87,2,FALSE)","v":103},6,139,7315987,"6.7",null,null,null,null,null,null,null,null,null,null,null,null,null,null,null,null,null,null,null,null,null,null,null,null,null,null,"Entidad_publica_sin_animo_de_lucro",null,null,null,null,null,null,null,"6.7","SELECCIÓN CORRECTA"]
["6.8","RESTO_BENEFICIARIOS",7,"Entidad_privada_sin_animo_de_lucro",79,"NO_ofrecen_actividad_economica_o_bienes_+_Actuación_en_vivienda_de_titularidad_pública",{"$f":"VLOOKUP(F84,$AN$2:$AO88,2,FALSE)","v":101},6,139,7763567,"6.8",null,null,null,null,null,null,null,null,null,null,null,null,null,null,null,null,null,null,null,null,null,null,null,null,null,null,"NO_ofrecen_actividad_economica_o_bienes_+_Actuación_en_vivienda_de_titularidad_pública",null,null,null,null,null,null,null,"6.8","SELECCIÓN CORRECTA"]
["6.9","RESTO_BENEFICIARIOS",7,"Entidad_publica_sin_animo_de_lucro",83,"NO_ofrecen_actividad_economica_o_bienes_+_Actuación_en_vivienda_de_titularidad_pública",{"$f":"VLOOKUP(F85,$AN$2:$AO89,2,FALSE)","v":101},6,139,8156659,"6.9",null,null,null,null,null,null,null,null,null,null,null,null,null,null,null,null,null,null,null,null,null,null,null,null,null,null,null,null,null,null,null,null,null,null,"6.9","SELECCIÓN CORRECTA"]
["6.10",null,{"$error":"#N/A"},null,{"$error":"#N/A"},null,{"$f":"VLOOKUP(F86,$AN$2:$AO90,2,FALSE)","v":{"$error":"#N/A"}},6,139,{"$error":"#N/A"},"6.10",null,null,null,null,null,null,null,null,null,null,null,null,null,null,null,null,null,null,null,null,null,null,null,null,null,null,"Sector_publico_institucional_de_cualquier_administracion_publica",null,null,null,null,null,null,null,"6.10","SELECCIÓN CORRECTA"]
["6.11",null,null,null,{"$error":"#N/A"},null,{"$f":"VLOOKUP(F87,$AN$2:$AO91,2,FALSE)","v":{"$error":"#N/A"}},6,139,{"$error":"#N/A"},"6.11",null,null,null,null,null,null,null,null,null,null,null,null,null,null,null,null,null,null,null,null,null,null,null,null,null,null,"SI_ofrecen_actividad_economica_o_bienes",null,null,null,null,null,null,null,"6.11","SELECCIÓN CORRECTA"]
["6.12",null,null,null,{"$error":"#N/A"},null,{"$f":"VLOOKUP(F88,$AN$2:$AO92,2,FALSE)","v":{"$error":"#N/A"}},6,139,{"$error":"#N/A"},"6.12",null,null,null,null,null,null,null,null,null,null,null,null,null,null,null,null,null,null,null,null,null,null,null,null,null,null,"NO_ofrecen_actividad_economica_o_bienes",null,null,null,null,null,null,null,"6.12","SELECCIÓN CORRECTA"]
["6.13",null,null,null,{"$error":"#N/A"},null,{"$f":"VLOOKUP(F89,$AN$2:$AO93,2,FALSE)","v":{"$error":"#N/A"}},6,139,{"$error":"#N/A"},"6.13",null,null,null,null,null,null,null,null,null,null,null,null,null,null,null,null,null,null,null,null,null,null,null,null,null,null,"NO_ofrecen_actividad_economica_o_bienes_+_Actuación_en_vivienda_de_titularidad_pública",null,null,null,null,null,null,null,"6.13","SELECCIÓN CORRECTA"]
["6.14",null,null,null,{"$error":"#N/A"},null,{"$f":"VLOOKUP(F90,$AN$2:$AO94,2,FALSE)","v":{"$error":"#N/A"}},6,139,{"$error":"#N/A"},"6.14",null,null,null,null,null,null,null,null,null,null,null,null,null,null,null,null,null,null,null,null,null,null,null,null,null,null,null,null,null,null,null,null,null,null,"6.14","SELECCIÓN CORRECTA"]
["6.15",null,null,null,{"$error":"#N/A"},null,{"$f":"VLOOKUP(F91,$AN$2:$AO95,2,FALSE)","v":{"$error":"#N/A"}},6,139,{"$error":"#N/A"},"6.15",null,null,null,null,null,null,null,null,null,null,null,null,null,null,null,null,null,null,null,null,null,null,null,null,null,null,null,null,null,null,null,null,null,null,"6.15","SELECCIÓN CORRECTA"]
[null,null,null,null,null,null,null,null,null,null,{"$error":"#N/A"},null,null,null,null,null,null,null,null,null,null,null,null,null,null,null,null,null,null,null,null,null,null,null,null,null,null,null,null,null,null,null,null,null,null,100,"SELECCIÓN INCORRECTA. LA COMBINACIÓN QUE HA INDICADO NO ES POSIBLE. POR FAVOR, REVISE LOS CAMPOS DE GRUPO, BENEFICIARIOS, OPCIÓN Y PROGRAMA DE INCENTIVOS."]
[]
[null,null,null,null,null,null,null,null,null,null,null,null,null,null,null,null,null,null,null,null,null,null,null,null,null,null,null,null,null,null,null,null,null,null,null,null,null,null,null,null,null,null,null,null,null,{"$f":"_xlfn.IFNA(DESPLEGABLES!AG2,100)","v":100}]

{"sheet":"CABECERAS","index":9,"n_rows":91,"n_cols":8,"rows_kept":91,"cut":false,"hidden":true,"merged":[]}
["CODIGO","GRUPO","BENEFICIARIO","OPCIONES","PROGRAMA DE INCENTIVOS"]
["1.1","EMPRESAS","Personas juridicas","SI ofrecen actividad economica o bienes","Programa de incentivos 1: Realización de instalaciones de autoconsumo, con fuentes de energía renovable, en el sector servicios, con o sin almacenamiento."]
["1.2","EMPRESAS","Agrupaciones de empresa","SI ofrecen actividad economica o bienes","Programa de incentivos 1: Realización de instalaciones de autoconsumo, con fuentes de energía renovable, en el sector servicios, con o sin almacenamiento."]
["1.3","EMPRESAS","Agrupaciones de personas fisicas con o sin personalidad jurídica (comunidad de bienes)","SI ofrecen actividad economica o bienes","Programa de incentivos 1: Realización de instalaciones de autoconsumo, con fuentes de energía renovable, en el sector servicios, con o sin almacenamiento."]
["1.4","EMPRESAS","Gestores de poligonos publicos o privados","Ninguna","Programa de incentivos 1: Realización de instalaciones de autoconsumo, con fuentes de energía renovable, en el sector servicios, con o sin almacenamiento."]
["1.5","EMPRESAS","Empresas explotadoras","Ninguna","Programa de incentivos 1: Realización de instalaciones de autoconsumo, con fuentes de energía renovable, en el sector servicios, con o sin almacenamiento."]
["1.6","EMPRESAS","Empresas arrendatarias","Ninguna","Programa de incentivos 1: Realización de instalaciones de autoconsumo, con fuentes de energía renovable, en el sector servicios, con o sin almacenamiento.","Seleccionar"]
["1.7","EMPRESAS","Empresas concesionarias","Ninguna","Programa de incentivos 1: Realización de instalaciones de autoconsumo, con fuentes de energía renovable, en el sector servicios, con o sin almacenamiento."]
["1.8","EMPRESAS","Empresas de servicios energeticos","Ninguna","Programa de incentivos 1: Realización de instalaciones de autoconsumo, con fuentes de energía renovable, en el sector servicios, con o sin almacenamiento.","Seleccionar"]
["1.9","EMPRESAS","Proveedores de servicios energéticos","Ninguna","Programa de incentivos 1: Realización de instalaciones de autoconsumo, con fuentes de energía renovable, en el sector servicios, con o sin almacenamiento."]
["1.10","ADMINISTRACIÓN","La Aministracion como representante de otro","Ninguna","Programa de incentivos 1: Realización de instalaciones de autoconsumo, con fuentes de energía renovable, en el sector servicios, con o sin almacenamiento.","Seleccionar"]
["1.11",null,null,"Ninguna","Programa de incentivos 1: Realización de instalaciones de autoconsumo, con fuentes de energía renovable, en el sector servicios, con o sin almacenamiento."]
["1.12",null,null,"Ninguna","Programa de incentivos 1: Realización de instalaciones de autoconsumo, con fuentes de energía renovable, en el sector servicios, con o sin almacenamiento.","Seleccionar"]
["1.13","RESTO BENEFICIARIOS","Comunidades de energias renovables","SI ofrecen actividad economica o bienes","Programa de incentivos 1: Realización de instalaciones de autoconsumo, con fuentes de energía renovable, en el sector servicios, con o sin almacenamiento."]
["1.14","RESTO BENEFICIARIOS","Comunidades ciudadanas de energia","SI ofrecen actividad economica o bienes","Programa de incentivos 1: Realización de instalaciones de autoconsumo, con fuentes de energía renovable, en el sector servicios, con o sin almacenamiento."]
["1.15","RESTO BENEFICIARIOS","Entidad privada sin animo de lucro","SI ofrecen actividad economica o bienes","Programa de incentivos 1: Realización de instalaciones de autoconsumo, con fuentes de energía renovable, en el sector servicios, con o sin almacenamiento."]
["2.1","EMPRESAS","Personas juridicas","SI ofrecen actividad economica o bienes","Programa de incentivos 2: Realización de instalaciones de autoconsumo, con fuentes de energía renovable, en otros sectores productivos de la economía, con o sin almacenamiento."]
["2.2","EMPRESAS","Agrupaciones de empresa","SI ofrecen actividad economica o bienes","Programa de incentivos 2: Realización de instalaciones de autoconsumo, con fuentes de energía renovable, en otros sectores productivos de la economía, con o sin almacenamiento."]
["2.3","EMPRESAS","Agrupaciones de personas fisicas con o sin personalidad jurídica (comunidad de bienes)","SI ofrecen actividad economica o bienes","Programa de incentivos 2: Realización de instalaciones de autoconsumo, con fuentes de energía renovable, en otros sectores productivos de la economía, con o sin almacenamiento."]
["2.4","EMPRESAS","Gestores de poligonos publicos o privados","Ninguna","Programa de incentivos 2: Realización de instalaciones de autoconsumo, con fuentes de energía renovable, en otros sectores productivos de la economía, con o sin almacenamiento."]
["2.5","EMPRESAS","Empresas explotadoras","Ninguna","Programa de incentivos 2: Realización de instalaciones de autoconsumo, con fuentes de energía renovable, en otros sectores productivos de la economía, con o sin almacenamiento.",null,null,"Seleccionar"]
["2.6","EMPRESAS","Empresas arrendatarias","Ninguna","Programa de incentivos 2: Realización de instalaciones de autoconsumo, con fuentes de energía renovable, en otros sectores productivos de la economía, con o sin almacenamiento."]
["2.7","EMPRESAS","Empresas concesionarias","Ninguna","Programa de incentivos 2: Realización de instalaciones de autoconsumo, con fuentes de energía renovable, en otros sectores productivos de la economía, con o sin almacenamiento.",null,null,"Seleccionar"]
["2.8","EMPRESAS","Empresas de servicios energeticos","Ninguna","Programa de incentivos 2: Realización de instalaciones de autoconsumo, con fuentes de energía renovable, en otros sectores productivos de la economía, con o sin almacenamiento."]
["2.9","EMPRESAS","Proveedores de servicios energéticos","Ninguna","Programa de incentivos 2: Realización de instalaciones de autoconsumo, con fuentes de energía renovable, en otros sectores productivos de la economía, con o sin almacenamiento.",null,null,"Seleccionar"]
["2.10","ADMINISTRACIÓN","La Aministracion como representante de otro","Ninguna","Programa de incentivos 2: Realización de instalaciones de autoconsumo, con fuentes de energía renovable, en otros sectores productivos de la economía, con o sin almacenamiento."]
["2.11","ADMINISTRACIÓN","Entidades locales de cualquier administracion publica","Ninguna","Programa de incentivos 2: Realización de instalaciones de autoconsumo, con fuentes de energía renovable, en otros sectores productivos de la economía, con o sin almacenamiento.",null,null,"Seleccionar"]
["2.12","SECTOR INSTITUCIONAL","Sector publico institucional de cualquier administracion publica","SI ofrecen actividad economica o bienes","Programa de incentivos 2: Realización de instalaciones de autoconsumo, con fuentes de energía renovable, en otros sectores productivos de la economía, con o sin almacenamiento."]
["2.13","RESTO BENEFICIARIOS","Comunidades de energias renovables","SI ofrecen actividad economica o bienes","Programa de incentivos 2: Realización de instalaciones de autoconsumo, con fuentes de energía renovable, en otros sectores productivos de la economía, con o sin almacenamiento.",null,null,"Seleccionar"]
["2.14","RESTO BENEFICIARIOS","Comunidades ciudadanas de energia","SI ofrecen actividad economica o bienes","Programa de incentivos 2: Realización de instalaciones de autoconsumo, con fuentes de energía renovable, en otros sectores productivos de la economía, con o sin almacenamiento."]
["2.15","RESTO BENEFICIARIOS","Entidad privada sin animo de lucro","SI ofrecen actividad economica o bienes","Programa de incentivos 2: Realización de instalaciones de autoconsumo, con fuentes de energía renovable, en otros sectores productivos de la economía, con o sin almacenamiento.",null,null,"Seleccionar"]
["3.1","EMPRESAS","Personas juridicas","SI ofrecen actividad economica o bienes","Programa de incentivos 3: Incorporación de almacenamiento en instalaciones de autoconsumo, con fuentes de energía renovable, ya existentes en el sector servicios y otros sectores productivos."]
["3.2","EMPRESAS","Agrupaciones de empresa","SI ofrecen actividad economica o bienes","Programa de incentivos 3: Incorporación de almacenamiento en instalaciones de autoconsumo, con fuentes de energía renovable, ya existentes en el sector servicios y otros sectores productivos.",null,null,"Seleccionar"]
["3.3","EMPRESAS","Agrupaciones de personas fisicas con o sin personalidad jurídica (comunidad de bienes)","SI ofrecen actividad economica o bienes","Programa de incentivos 3: Incorporación de almacenamiento en instalaciones de autoconsumo, con fuentes de energía renovable, ya existentes en el sector servicios y otros sectores productivos."]
["3.4","EMPRESAS","Gestores de poligonos publicos o privados","Ninguna","Programa de incentivos 3: Incorporación de almacenamiento en instalaciones de autoconsumo, con fuentes de energía renovable, ya existentes en el sector servicios y otros sectores productivos."]
["3.5","EMPRESAS","Empresas explotadoras","Ninguna","Programa de incentivos 3: Incorporación de almacenamiento en instalaciones de autoconsumo, con fuentes de energía renovable, ya existentes en el sector servicios y otros sectores productivos."]
["3.6","EMPRESAS","Empresas arrendatarias","Ninguna","Programa de incentivos 3: Incorporación de almacenamiento en instalaciones de autoconsumo, con fuentes de energía renovable, ya existentes en el sector servicios y otros sectores productivos."]
["3.7","EMPRESAS","Empresas concesionarias","Ninguna","Programa de incentivos 3: Incorporación de almacenamiento en instalaciones de autoconsumo, con fuentes de energía renovable, ya existentes en el sector servicios y otros sectores productivos."]
["3.8","EMPRESAS","Empresas de servicios energeticos","Ninguna","Programa de incentivos 3: Incorporación de almacenamiento en instalaciones de autoconsumo, con fuentes de energía renovable, ya existentes en el sector servicios y otros sectores productivos."]
["3.9","EMPRESAS","Proveedores de servicios energéticos","Ninguna","Programa de incentivos 3: Incorporación de almacenamiento en instalaciones de autoconsumo, con fuentes de energía renovable, ya existentes en el sector servicios y otros sectores productivos."]
["3.10","ADMINISTRACIÓN","La Aministracion como representante de otro","Ninguna","Programa de incentivos 3: Incorporación de almacenamiento en instalaciones de autoconsumo, con fuentes de energía renovable, ya existentes en el sector servicios y otros sectores productivos."]
["3.11","ADMINISTRACIÓN","Entidades locales de cualquier administracion publica","SI ofrecen actividad economica o bienes","Programa de incentivos 3: Incorporación de almacenamiento en instalaciones de autoconsumo, con fuentes de energía renovable, ya existentes en el sector servicios y otros sectores productivos."]
["3.12","SECTOR INSTITUCIONAL","Sector publico institucional de cualquier administracion publica","SI ofrecen actividad economica o bienes","Programa de incentivos 3: Incorporación de almacenamiento en instalaciones de autoconsumo, con fuentes de energía renovable, ya existentes en el sector servicios y otros sectores productivos."]
["3.13","RESTO BENEFICIARIOS","Comunidades de energias renovables","SI ofrecen actividad economica o bienes","Programa de incentivos 3: Incorporación de almacenamiento en instalaciones de autoconsumo, con fuentes de energía renovable, ya existentes en el sector servicios y otros sectores productivos."]
["3.14","RESTO BENEFICIARIOS","Comunidades ciudadanas de energia","SI ofrecen actividad economica o bienes","Programa de incentivos 3: Incorporación de almacenamiento en instalaciones de autoconsumo, con fuentes de energía renovable, ya existentes en el sector servicios y otros sectores productivos."]
["3.15","RESTO BENEFICIARIOS","Entidad privada sin animo de lucro","SI ofrecen actividad economica o bienes","Programa de incentivos 3: Incorporación de almacenamiento en instalaciones de autoconsumo, con fuentes de energía renovable, ya existentes en el sector servicios y otros sectores productivos."]
["4.1","EMPRESAS","Personas juridicas","NO ofrecen actividad economica o bienes","Programa de incentivos 4: Realización de instalaciones de autoconsumo, con fuentes de energía renovable, en el sector residencial, las administraciones públicas y el tercer sector, con o sin almacenamiento."]
["4.2","ADMINISTRACIÓN","La Aministracion como representante de otro","Ninguna","Programa de incentivos 4: Realización de instalaciones de autoconsumo, con fuentes de energía renovable, en el sector residencial, las administraciones públicas y el tercer sector, con o sin almacenamiento."]
["4.3","ADMINISTRACIÓN","Entidades locales de cualquier administracion publica","NO ofrecen actividad economica o bienes","Programa de incentivos 4: Realización de instalaciones de autoconsumo, con fuentes de energía renovable, en el sector residencial, las administraciones públicas y el tercer sector, con o sin almacenamiento."]
["4.4","SECTOR INSTITUCIONAL","Sector publico institucional de cualquier administracion publica","NO ofrecen actividad economica o bienes","Programa de incentivos 4: Realización de instalaciones de autoconsumo, con fuentes de energía renovable, en el sector residencial, las administraciones públicas y el tercer sector, con o sin almacenamiento."]
["4.5","RESTO DE BENEFICIARIOS","Personas fisicas","NO ofrecen actividad economica o bienes","Programa de incentivos 4: Realización de instalaciones de autoconsumo, con fuentes de energía renovable, en el sector residencial, las administraciones públicas y el tercer sector, con o sin almacenamiento."]
["4.6","RESTO DE BENEFICIARIOS","Autonomo (Persona física)","SI ofrecen actividad economica o bienes","Programa de incentivos 4: Realización de instalaciones de autoconsumo, con fuentes de energía renovable, en el sector residencial, las administraciones públicas y el tercer sector, con o sin almacenamiento."]
["4.7","RESTO DE BENEFICIARIOS","Comunidades de energias renovables","NO ofrecen actividad economica o bienes","Programa de incentivos 4: Realización de instalaciones de autoconsumo, con fuentes de energía renovable, en el sector residencial, las administraciones públicas y el tercer sector, con o sin almacenamiento."]
["4.8","RESTO DE BENEFICIARIOS","Comunidades ciudadanas de energia","NO ofrecen actividad economica o bienes","Programa de incentivos 4: Realización de instalaciones de autoconsumo, con fuentes de energía renovable, en el sector residencial, las administraciones públicas y el tercer sector, con o sin almacenamiento."]
["4.9","RESTO DE BENEFICIARIOS","Comunidad de propietarios","Ninguna","Programa de incentivos 4: Realización de instalaciones de autoconsumo, con fuentes de energía renovable, en el sector residencial, las administraciones públicas y el tercer sector, con o sin almacenamiento."]
["4.10","RESTO DE BENEFICIARIOS","Entidad privada sin animo de lucro","NO ofrecen actividad economica o bienes","Programa de incentivos 4: Realización de instalaciones de autoconsumo, con fuentes de energía renovable, en el sector residencial, las administraciones públicas y el tercer sector, con o sin almacenamiento."]
["4.11",null,null,"Ninguna","Programa de incentivos 4: Realización de instalaciones de autoconsumo, con fuentes de energía renovable, en el sector residencial, las administraciones públicas y el tercer sector, con o sin almacenamiento."]
["4.12",null,null,"Ninguna","Programa de incentivos 4: Realización de instalaciones de autoconsumo, con fuentes de energía renovable, en el sector residencial, las administraciones públicas y el tercer sector, con o sin almacenamiento."]
["4.13",null,null,"Ninguna","Programa de incentivos 4: Realización de instalaciones de autoconsumo, con fuentes de energía renovable, en el sector residencial, las administraciones públicas y el tercer sector, con o sin almacenamiento."]
["4.14",null,null,"Ninguna","Programa de incentivos 4: Realización de instalaciones de autoconsumo, con fuentes de energía renovable, en el sector residencial, las administraciones públicas y el tercer sector, con o sin almacenamiento."]
["4.15",null,null,"Ninguna","Programa de incentivos 4: Realización de instalaciones de autoconsumo, con fuentes de energía renovable, en el sector residencial, las administraciones públicas y el tercer sector, con o sin almacenamiento."]
["5.1","EMPRESAS","Personas juridicas","NO ofrecen actividad economica o bienes","Programa de incentivos 5: Incorporación de almacenamiento en instalaciones de autoconsumo, con fuentes de energía renovable, ya existentes en el sector residencial, las administraciones públicas y el tercer sector."]
["5.2","ADMINISTRACIÓN","La Aministracion como representante de otro","Ninguna","Programa de incentivos 5: Incorporación de almacenamiento en instalaciones de autoconsumo, con fuentes de energía renovable, ya existentes en el sector residencial, las administraciones públicas y el tercer sector."]
["5.3","ADMINISTRACIÓN","Entidades locales de cualquier administracion publica","NO ofrecen actividad economica o bienes","Programa de incentivos 5: Incorporación de almacenamiento en instalaciones de autoconsumo, con fuentes de energía renovable, ya existentes en el sector residencial, las administraciones públicas y el tercer sector."]
["5.4","SECTOR INSTITUCIONAL","Sector publico institucional de cualquier administracion publica","NO ofrecen actividad economica o bienes","Programa de incentivos 5: Incorporación de almacenamiento en instalaciones de autoconsumo, con fuentes de energía renovable, ya existentes en el sector residencial, las administraciones públicas y el tercer sector."]
["5.5","RESTO DE BENEFICIARIOS","Personas fisicas","NO ofrecen actividad economica o bienes","Programa de incentivos 5: Incorporación de almacenamiento en instalaciones de autoconsumo, con fuentes de energía renovable, ya existentes en el sector residencial, las administraciones públicas y el tercer sector."]
["5.6","RESTO DE BENEFICIARIOS","Autonomo (Persona física)","SI ofrecen actividad economica o bienes","Programa de incentivos 5: Incorporación de almacenamiento en instalaciones de autoconsumo, con fuentes de energía renovable, ya existentes en el sector residencial, las administraciones públicas y el tercer sector."]
["5.7","RESTO DE BENEFICIARIOS","Comunidades de energias renovables","NO ofrecen actividad economica o bienes","Programa de incentivos 5: Incorporación de almacenamiento en instalaciones de autoconsumo, con fuentes de energía renovable, ya existentes en el sector residencial, las administraciones públicas y el tercer sector."]
["5.8","RESTO DE BENEFICIARIOS","Comunidades ciudadanas de energia","NO ofrecen actividad economica o bienes","Programa de incentivos 5: Incorporación de almacenamiento en instalaciones de autoconsumo, con fuentes de energía renovable, ya existentes en el sector residencial, las administraciones públicas y el tercer sector."]
["5.9","RESTO DE BENEFICIARIOS","Comunidad de propietarios","Ninguna","Programa de incentivos 5: Incorporación de almacenamiento en instalaciones de autoconsumo, con fuentes de energía renovable, ya existentes en el sector residencial, las administraciones públicas y el tercer sector."]
["5.10","RESTO DE BENEFICIARIOS","Entidad privada sin animo de lucro","NO ofrecen actividad economica o bienes","Programa de incentivos 5: Incorporación de almacenamiento en instalaciones de autoconsumo, con fuentes de energía renovable, ya existentes en el sector residencial, las administraciones públicas y el tercer sector."]
["5.11",null,null,"Ninguna","Programa de incentivos 5: Incorporación de almacenamiento en instalaciones de autoconsumo, con fuentes de energía renovable, ya existentes en el sector residencial, las administraciones públicas y el tercer sector."]
["5.12",null,null,"Ninguna","Programa de incentivos 5: Incorporación de almacenamiento en instalaciones de autoconsumo, con fuentes de energía renovable, ya existentes en el sector residencial, las administraciones públicas y el tercer sector."]
["5.13",null,null,"Ninguna","Programa de incentivos 5: Incorporación de almacenamiento en instalaciones de autoconsumo, con fuentes de energía renovable, ya existentes en el sector residencial, las administraciones públicas y el tercer sector."]
["5.14",null,null,"Ninguna","Programa de incentivos 5: Incorporación de almacenamiento en instalaciones de autoconsumo, con fuentes de energía renovable, ya existentes en el sector residencial, las administraciones públicas y el tercer sector."]
["5.15",null,null,"Ninguna","Programa de incentivos 5: Incorporación de almacenamiento en instalaciones de autoconsumo, con fuentes de energía renovable, ya existentes en el sector residencial, las administraciones públicas y el tercer sector."]
["6.1","EMPRESAS","Personas juridicas","NO ofrecen actividad economica o bienes + viviendas","Programa de incentivos 6: Realización de instalaciones de energías renovables térmicas en el sector residencial."]
["6.2","ADMINISTRACIÓN","La Aministracion como representante de otro","Ninguna","Programa de incentivos 6: Realización de instalaciones de energías renovables térmicas en el sector residencial."]
["6.3","ADMINISTRACIÓN","Entidades locales de cualquier administracion publica","EXCLUIDA AYUDA DE ESTADO","Programa de incentivos 6: Realización de instalaciones de energías renovables térmicas en el sector residencial."]
["6.4","SECTOR INSTITUCIONAL","Sector publico institucional de cualquier administracion publica","EXCLUIDA AYUDA DE ESTADO","Programa de incentivos 6: Realización de instalaciones de energías renovables térmicas en el sector residencial."]
["6.5","RESTO DE BENEFICIARIOS","Personas fisicas","Ninguna","Programa de incentivos 6: Realización de instalaciones de energías renovables térmicas en el sector residencial."]
["6.6","RESTO DE BENEFICIARIOS","Autonomo (Persona física)","SI ofrecen actividad economica o bienes","Programa de incentivos 6: Realización de instalaciones de energías renovables térmicas en el sector residencial."]
["6.7","RESTO DE BENEFICIARIOS","Comunidad de propietarios","Ninguna","Programa de incentivos 6: Realización de instalaciones de energías renovables térmicas en el sector residencial."]
["6.8","RESTO DE BENEFICIARIOS","Entidad privada sin animo de lucro","NO ofrecen actividad economica o bienes + viviendas","Programa de incentivos 6: Realización de instalaciones de energías renovables térmicas en el sector residencial."]
["6.9","RESTO DE BENEFICIARIOS","Entidad publica sin animo de lucro","NO ofrecen actividad economica o bienes + viviendas","Programa de incentivos 6: Realización de instalaciones de energías renovables térmicas en el sector residencial."]
["6.10","RESTO DE BENEFICIARIOS",null,"Ninguna","Programa de incentivos 6: Realización de instalaciones de energías renovables térmicas en el sector residencial."]
["6.11"]
["6.12"]
["6.13"]
["6.14"]
["6.15"]